Body Name,Body,Service Label,Service Code,Service Division Label,Service Division Code,Expenditure Category,Expenditure Code,CIPFA Detailed Expenditure Type,CIPFA Detailed Expenditure Code,Date,Transaction Number,CC 43 TBM Section,CCN 43 TBM Section,Net Amount,Capital and Revenue,Creditor Name
Brighton & Hove City Council,http://statistics.data.gov.uk/id/local-authority/00ML,Adult Social Care,BVASOC,ASC Learning Disabilities,ALD,Customer n Client Receipts,M,Fees n Charges,MB,01/02/2018,PAY516849,LDIS,Adults LD Community Care,-160,Revenue,Payment to Individual
Brighton & Hove City Council,http://statistics.data.gov.uk/id/local-authority/00ML,Adult Social Care,BVASOC,ASC Learning Disabilities,ALD,Third Party Payments,F,Other Establishments,FH,01/02/2018,PAY516849,LDIS,Adults LD Community Care,776.8,Revenue,Payment to Individual
Brighton & Hove City Council,http://statistics.data.gov.uk/id/local-authority/00ML,Central Support and Overheads,BVACEN,Support Services (SSC),PPT,Supplies and Services,E,Miscellaneous Expenses,EM,01/02/2018,PAY516855,BIPR,Bulk Insurance Premia,440,Revenue,Payment to Individual
Brighton & Hove City Council,http://statistics.data.gov.uk/id/local-authority/00ML,Planning and Development,BVAPLA,Planning Policy,PLP,Customer n Client Receipts,M,Fees n Charges,MB,01/02/2018,PAY516857,DEVP,Development Planning,344,Revenue,Payment to Individual
Brighton & Hove City Council,http://statistics.data.gov.uk/id/local-authority/00ML,Non-BHC Organisations,BVANON,Trusts,TRT,Supplies and Services,E,Grants n Subscriptions,EK,01/02/2018,PAY516892,NBHC,Non Council,343.41,Revenue,Lancing Carpet Planners/Kemp Town Flooring Company
Brighton & Hove City Council,http://statistics.data.gov.uk/id/local-authority/00ML,Non-BHC Organisations,BVANON,Trusts,TRT,Supplies and Services,E,Grants n Subscriptions,EK,01/02/2018,PAY516893,NBHC,Non Council,363.95,Revenue,Lancing Carpet Planners/Kemp Town Flooring Company
Brighton & Hove City Council,http://statistics.data.gov.uk/id/local-authority/00ML,Environment & Regulatory Serv,BVAERS,Cem Crem and Mortuary Services,CCM,Supplies and Services,E,Services,EF,02/02/2018,PAY01032521,BERE,Bereavement,411.67,Revenue,Dignity Funerals Ltd
Brighton & Hove City Council,http://statistics.data.gov.uk/id/local-authority/00ML,Children`s & Education Serv,BVAEDU,Management Services (DEC),MGT,Supplies and Services,E,Services,EF,02/02/2018,PAY01032523,SOCK,Social Work,888.5,Revenue,Gary Taylor Associates Ltd
Brighton & Hove City Council,http://statistics.data.gov.uk/id/local-authority/00ML,Central Support and Overheads,BVACEN,Support Services (SSC),PPT,Supplies and Services,E,Services,EF,02/02/2018,PAY01032524,LEGS,Legal Services,500,Revenue,Payment to Individual
Brighton & Hove City Council,http://statistics.data.gov.uk/id/local-authority/00ML,Public Health,BVAPHE,Public Health,PHE,Third Party Payments,F,Other Establishments,FH,02/02/2018,PAY01032525,PHCM,PH Commissioning,5276.17,Revenue,North Laine Medical Centre
Brighton & Hove City Council,http://statistics.data.gov.uk/id/local-authority/00ML,Adult Social Care,BVASOC,ASC Physical Support,PHY,Customer n Client Receipts,M,Fees n Charges,MB,02/02/2018,PAY01032527,PHYS,Physical Support,-148,Revenue,Payment to Individual
Brighton & Hove City Council,http://statistics.data.gov.uk/id/local-authority/00ML,Adult Social Care,BVASOC,ASC Physical Support,PHY,Third Party Payments,F,Other Establishments,FH,02/02/2018,PAY01032527,PHYS,Physical Support,872.6,Revenue,Payment to Individual
Brighton & Hove City Council,http://statistics.data.gov.uk/id/local-authority/00ML,Adult Social Care,BVASOC,ASC Learning Disabilities,ALD,Third Party Payments,F,Other Establishments,FH,02/02/2018,PAY01032528,LDIS,Adults LD Community Care,999.2,Revenue,Payment to Individual
Brighton & Hove City Council,http://statistics.data.gov.uk/id/local-authority/00ML,Adult Social Care,BVASOC,ASC Learning Disabilities,ALD,Third Party Payments,F,Other Establishments,FH,02/02/2018,PAY01032530,LDIS,Adults LD Community Care,797,Revenue,Payment to Individual
Brighton & Hove City Council,http://statistics.data.gov.uk/id/local-authority/00ML,Public Health,BVAPHE,Public Health,PHE,Third Party Payments,F,Other Establishments,FH,02/02/2018,PAY01032532,PHCM,PH Commissioning,250,Revenue,Albion Street Surgery
Brighton & Hove City Council,http://statistics.data.gov.uk/id/local-authority/00ML,Adult Social Care,BVASOC,ASC Learning Disabilities,ALD,Third Party Payments,F,Other Establishments,FH,02/02/2018,PAY01032533,LDIS,Adults LD Community Care,336.6,Revenue,Payment to Individual
Brighton & Hove City Council,http://statistics.data.gov.uk/id/local-authority/00ML,Adult Social Care,BVASOC,ASC Physical Support,PHY,Customer n Client Receipts,M,Fees n Charges,MB,02/02/2018,PAY01032534,PHYS,Physical Support,-68,Revenue,Payment to Individual
Brighton & Hove City Council,http://statistics.data.gov.uk/id/local-authority/00ML,Adult Social Care,BVASOC,ASC Physical Support,PHY,Third Party Payments,F,Other Establishments,FH,02/02/2018,PAY01032534,PHYS,Physical Support,355.4,Revenue,Payment to Individual
Brighton & Hove City Council,http://statistics.data.gov.uk/id/local-authority/00ML,Housing General Fund,BVAHOG,Homelessness,HML,Premises Related,C,Rents Payable,CC,02/02/2018,PAY01032535,TAAS,Temp Accom and Allocations,1100,Revenue,Edmonds Letting
Brighton & Hove City Council,http://statistics.data.gov.uk/id/local-authority/00ML,Housing General Fund,BVAHOG,Homelessness,HML,Premises Related,C,Rents Payable,CC,02/02/2018,PAY01032536,TAAS,Temp Accom and Allocations,1100,Revenue,Payment to Individual
Brighton & Hove City Council,http://statistics.data.gov.uk/id/local-authority/00ML,Housing General Fund,BVAHOG,Homelessness,HML,Third Party Payments,F,Other Establishments,FH,02/02/2018,PAY01032537,TAAS,Temp Accom and Allocations,475,Revenue,Advance Glass
Brighton & Hove City Council,http://statistics.data.gov.uk/id/local-authority/00ML,Adult Social Care,BVASOC,ASC Physical Support,PHY,Third Party Payments,F,Other Establishments,FH,02/02/2018,PAY01032538,PHYS,Physical Support,480.6,Revenue,Payment to Individual
Brighton & Hove City Council,http://statistics.data.gov.uk/id/local-authority/00ML,Housing General Fund,BVAHOG,Homelessness,HML,Third Party Payments,F,Other Establishments,FH,02/02/2018,PAY01032539,TAAS,Temp Accom and Allocations,700,Revenue,Fox & Sons
Brighton & Hove City Council,http://statistics.data.gov.uk/id/local-authority/00ML,Children`s & Education Serv,BVAEDU,Child Srvcs Adoption,FAA,Third Party Payments,F,Other Establishments,FH,02/02/2018,PAY01032541,CHIC,Fostering and Adoption,126.3,Revenue,Payment to Individual
Brighton & Hove City Council,http://statistics.data.gov.uk/id/local-authority/00ML,Children`s & Education Serv,BVAEDU,Child Srvcs - Fostering,FLF,Third Party Payments,F,Other Establishments,FH,02/02/2018,PAY01032541,CHIC,Fostering and Adoption,1269,Revenue,Payment to Individual
Brighton & Hove City Council,http://statistics.data.gov.uk/id/local-authority/00ML,Children`s & Education Serv,BVAEDU,Child Srvcs - Fostering,FLF,Third Party Payments,F,Other Establishments,FH,02/02/2018,PAY01032542,CHIC,Fostering and Adoption,768,Revenue,Payment to Individual
Brighton & Hove City Council,http://statistics.data.gov.uk/id/local-authority/00ML,Children`s & Education Serv,BVAEDU,Child Srvcs - Fostering,FLF,Third Party Payments,F,Other Establishments,FH,02/02/2018,PAY01032544,CHIC,Fostering and Adoption,1228,Revenue,Payment to Individual
Brighton & Hove City Council,http://statistics.data.gov.uk/id/local-authority/00ML,Children`s & Education Serv,BVAEDU,Child Srvcs - Fostering,FLF,Third Party Payments,F,Other Establishments,FH,02/02/2018,PAY01032545,CHIC,Fostering and Adoption,414,Revenue,Payment to Individual
Brighton & Hove City Council,http://statistics.data.gov.uk/id/local-authority/00ML,Central Support and Overheads,BVACEN,Support Services (SSC),PPT,Indirect Employees,B,Training,BM,02/02/2018,PAY01032547,LEGS,Legal Services,215,Revenue,LLG Enterprises Limited t/a LLG Legal Training
Brighton & Hove City Council,http://statistics.data.gov.uk/id/local-authority/00ML,Children`s & Education Serv,BVAEDU,Child Srvcs - Other Fam Supp,FFX,Transfer Payments,G,Other Transfer Payments,GD,02/02/2018,PAY01032548,FAMP,Families\Prevention,591.5,Revenue,Coole Bevis LLP
Brighton & Hove City Council,http://statistics.data.gov.uk/id/local-authority/00ML,Public Health,BVAPHE,Public Health,PHE,Third Party Payments,F,Other Establishments,FH,02/02/2018,PAY01032549,PHCM,PH Commissioning,4917.47,Revenue,The Avenue Surgery
Brighton & Hove City Council,http://statistics.data.gov.uk/id/local-authority/00ML,Children`s & Education Serv,BVAEDU,Ed Ed Other Other,ENF,Premises Related,C,Repair Maint n Alterations,CA,02/02/2018,PAY01032550,PROP,Property and Design,1732.65,Revenue,TSS Facilities Ltd
Brighton & Hove City Council,http://statistics.data.gov.uk/id/local-authority/00ML,Non I&E,BVANON,CAP Education Services,4ED,New Construction n Conversion,PB,New Construction n Conversion,PBL5,02/02/2018,PAY01032550,OEDS,Other Education Support,30914.38,Capital,TSS Facilities Ltd
Brighton & Hove City Council,http://statistics.data.gov.uk/id/local-authority/00ML,Children`s & Education Serv,BVAEDU,Ed Ed Other Other,ENF,Premises Related,C,Cleaning n Domestic Supps,CH,02/02/2018,PAY01032551,SCOR,School Organisation,5067.65,Revenue,Capital Hygiene/Capital Cleaning
Brighton & Hove City Council,http://statistics.data.gov.uk/id/local-authority/00ML,Adult Social Care,BVASOC,ASC Physical Support,PHY,Customer n Client Receipts,M,Fees n Charges,MB,02/02/2018,PAY01032552,PHYS,Physical Support,-68,Revenue,Payment to Individual
Brighton & Hove City Council,http://statistics.data.gov.uk/id/local-authority/00ML,Adult Social Care,BVASOC,ASC Physical Support,PHY,Third Party Payments,F,Other Establishments,FH,02/02/2018,PAY01032552,PHYS,Physical Support,1217.2,Revenue,Payment to Individual
Brighton & Hove City Council,http://statistics.data.gov.uk/id/local-authority/00ML,Adult Social Care,BVASOC,ASC Learning Disabilities,ALD,Supplies and Services,E,Catering,EB,02/02/2018,PAY01032553,LDAS,Adults LD Accomodation Service,432.24,Revenue,Petty Cash
Brighton & Hove City Council,http://statistics.data.gov.uk/id/local-authority/00ML,Planning and Development,BVAPLA,Building Control,BLD,Indirect Employees,B,Training,BM,02/02/2018,PAY01032554,DEVP,Development Planning,975,Revenue,The Association of Building Engineers
Brighton & Hove City Council,http://statistics.data.gov.uk/id/local-authority/00ML,Planning and Development,BVAPLA,Building Control,BLD,Transport Related,D,Public Transport,DD,02/02/2018,PAY01032554,DEVP,Development Planning,8.33,Revenue,The Association of Building Engineers
Brighton & Hove City Council,http://statistics.data.gov.uk/id/local-authority/00ML,Highways and Transportation,BVAHRT,Parking Services,PRK,Supplies and Services,E,Equip't Furniture n Materials,EA,02/02/2018,PAY01032555,PARK,Parking Services,16390,Revenue,NSL Ltd
Brighton & Hove City Council,http://statistics.data.gov.uk/id/local-authority/00ML,Non I&E,BVANON,Cap - Housing Services - HRA,4HR,New Construction n Conversion,PB,New Construction n Conversion,PBL5,02/02/2018,PAY01032555,HREG,Head of Regeneration,63.02,Capital,NSL Ltd
Brighton & Hove City Council,http://statistics.data.gov.uk/id/local-authority/00ML,Children`s & Education Serv,BVAEDU,Child Srvcs Leaving Care,FAL,Transfer Payments,G,Other Transfer Payments,GD,02/02/2018,PAY01032557,CARL,Care Leavers,2786,Revenue,King`s College London
Brighton & Hove City Council,http://statistics.data.gov.uk/id/local-authority/00ML,Environment & Regulatory Serv,BVAERS,Environmental Health,EVH,Supplies and Services,E,Services,EF,02/02/2018,PAY01032558,PUPO,Public Protection,998.68,Revenue,Portsdown Office Ltd
Brighton & Hove City Council,http://statistics.data.gov.uk/id/local-authority/00ML,Public Health,BVAPHE,Public Health,PHE,Third Party Payments,F,Other Establishments,FH,02/02/2018,PAY01032559,PHCM,PH Commissioning,10914.84,Revenue,University of Sussex Health Centre
Brighton & Hove City Council,http://statistics.data.gov.uk/id/local-authority/00ML,Housing General Fund,BVAHOG,Homelessness,HML,Indirect Employees,B,Training,BM,02/02/2018,PAY01032560,HOPT,Housing Options,1190,Revenue,Norman Mark Training
Brighton & Hove City Council,http://statistics.data.gov.uk/id/local-authority/00ML,Adult Social Care,BVASOC,ASC Learning Disabilities,ALD,Third Party Payments,F,Other Establishments,FH,02/02/2018,PAY01032561,LDIS,Adults LD Community Care,847.4,Revenue,Payment to Individual
Brighton & Hove City Council,http://statistics.data.gov.uk/id/local-authority/00ML,Cultural and Related Serv,BVACUL,Tourism,TRM,Supplies and Services,E,Miscellaneous Expenses,EM,02/02/2018,PAY01032562,TOMA,Tourism and Marketing,250,Revenue,Tourism South East
Brighton & Hove City Council,http://statistics.data.gov.uk/id/local-authority/00ML,Public Health,BVAPHE,Public Health,PHE,Third Party Payments,F,Other Establishments,FH,02/02/2018,PAY01032563,PHCM,PH Commissioning,29171.62,Revenue,Brighton Health and Wellbeing Centre
Brighton & Hove City Council,http://statistics.data.gov.uk/id/local-authority/00ML,Adult Social Care,BVASOC,ASC Learning Disabilities,ALD,Customer n Client Receipts,M,Fees n Charges,MB,02/02/2018,PAY01032564,LDIS,Adults LD Community Care,-7878.2,Revenue,Southdown Housing Association
Brighton & Hove City Council,http://statistics.data.gov.uk/id/local-authority/00ML,Adult Social Care,BVASOC,ASC Learning Disabilities,ALD,Third Party Payments,F,Other Establishments,FH,02/02/2018,PAY01032564,LDIS,Adults LD Community Care,233602.6,Revenue,Southdown Housing Association
Brighton & Hove City Council,http://statistics.data.gov.uk/id/local-authority/00ML,Adult Social Care,BVASOC,ASC Memory Cognition Support,MEM,Customer n Client Receipts,M,Fees n Charges,MB,02/02/2018,PAY01032565,COGN,Memory Cognition Support,-9314.47,Revenue,Macleod Pinsent Care Ltd
Brighton & Hove City Council,http://statistics.data.gov.uk/id/local-authority/00ML,Adult Social Care,BVASOC,ASC Memory Cognition Support,MEM,Third Party Payments,F,Other Establishments,FH,02/02/2018,PAY01032565,COGN,Memory Cognition Support,15961.42,Revenue,Macleod Pinsent Care Ltd
Brighton & Hove City Council,http://statistics.data.gov.uk/id/local-authority/00ML,Children`s & Education Serv,BVAEDU,Management Services (DEC),MGT,Supplies and Services,E,Communications n Computing,EH,02/02/2018,PAY01032567,SOCK,Social Work,186.45,Revenue,Courier Express Ltd
Brighton & Hove City Council,http://statistics.data.gov.uk/id/local-authority/00ML,Cultural and Related Serv,BVACUL,Tourism,TRM,Supplies and Services,E,Communications n Computing,EH,02/02/2018,PAY01032567,TOMA,Tourism and Marketing,79.45,Revenue,Courier Express Ltd
Brighton & Hove City Council,http://statistics.data.gov.uk/id/local-authority/00ML,Housing Revenue Account,BVAHOU,Hsing Management - HRA,HGM,Supplies and Services,E,Equip't Furniture n Materials,EA,02/02/2018,PAY01032568,HTEN,Tenancy Services,627.26,Revenue,The Police and Crime Commissioner for Sussex
Brighton & Hove City Council,http://statistics.data.gov.uk/id/local-authority/00ML,Adult Social Care,BVASOC,ASC Physical Support,PHY,Customer n Client Receipts,M,Fees n Charges,MB,02/02/2018,PAY01032569,PHYS,Physical Support,-724,Revenue,Payment to Individual
Brighton & Hove City Council,http://statistics.data.gov.uk/id/local-authority/00ML,Adult Social Care,BVASOC,ASC Physical Support,PHY,Third Party Payments,F,Other Establishments,FH,02/02/2018,PAY01032569,PHYS,Physical Support,5282.8,Revenue,Payment to Individual
Brighton & Hove City Council,http://statistics.data.gov.uk/id/local-authority/00ML,Environment & Regulatory Serv,BVAERS,Management Services (DEC),MGT,Transport Related,D,Direct Transport Costs,DA,02/02/2018,PAY01032570,CICL,City Clean,308.65,Revenue,BTR Brakes (Sussex) Ltd
Brighton & Hove City Council,http://statistics.data.gov.uk/id/local-authority/00ML,Children`s & Education Serv,BVAEDU,Ed EY Central,EAE,Supplies and Services,E,Miscellaneous Expenses,EM,02/02/2018,PAY01032571,EYRS,Early Years,1006.9,Revenue,Early Education
Brighton & Hove City Council,http://statistics.data.gov.uk/id/local-authority/00ML,Cultural and Related Serv,BVACUL,Recreation and Sport,REC,Supplies and Services,E,Services,EF,02/02/2018,PAY01032572,SPLE,Sport and Leisure,1925,Revenue,Keep Britain Tidy
Brighton & Hove City Council,http://statistics.data.gov.uk/id/local-authority/00ML,Cultural and Related Serv,BVACUL,Culture and Heritage,CHG,Supplies and Services,E,Services,EF,02/02/2018,PAY01032573,RPMU,Royal Pavilion and Museums,500,Revenue,James Pike Photography Ltd
Brighton & Hove City Council,http://statistics.data.gov.uk/id/local-authority/00ML,Adult Social Care,BVASOC,ASC Physical Support,PHY,Customer n Client Receipts,M,Fees n Charges,MB,02/02/2018,PAY01032575,PHYS,Physical Support,193.8,Revenue,Oaklodge Nursing Home
Brighton & Hove City Council,http://statistics.data.gov.uk/id/local-authority/00ML,Adult Social Care,BVASOC,ASC Physical Support,PHY,Third Party Payments,F,Other Establishments,FH,02/02/2018,PAY01032575,PHYS,Physical Support,1062,Revenue,Oaklodge Nursing Home
Brighton & Hove City Council,http://statistics.data.gov.uk/id/local-authority/00ML,Central Support and Overheads,BVACEN,Support Services (SSC),PPT,Supplies and Services,E,Communications n Computing,EH,02/02/2018,PAY01032576,ICTA,ICT,11105.69,Revenue,Virgin Media Business Ltd
Brighton & Hove City Council,http://statistics.data.gov.uk/id/local-authority/00ML,Housing General Fund,BVAHOG,Homelessness,HML,Premises Related,C,Rents Payable,CC,02/02/2018,PAY01032578,TAAS,Temp Accom and Allocations,900,Revenue,Payment to Individual
Brighton & Hove City Council,http://statistics.data.gov.uk/id/local-authority/00ML,Children`s & Education Serv,BVAEDU,Child Srvcs Asylum Seekers,FAY,Supplies and Services,E,Equip't Furniture n Materials,EA,02/02/2018,PAY01032579,AVFM,Agency Placements\VFM,10,Revenue,The Imprest Holder
Brighton & Hove City Council,http://statistics.data.gov.uk/id/local-authority/00ML,Children`s & Education Serv,BVAEDU,Child Srvcs Asylum Seekers,FAY,Transfer Payments,G,Other Transfer Payments,GD,02/02/2018,PAY01032579,AVFM,Agency Placements\VFM,656.39,Revenue,The Imprest Holder
Brighton & Hove City Council,http://statistics.data.gov.uk/id/local-authority/00ML,Children`s & Education Serv,BVAEDU,Child Srvcs Com and Scl Work,FCW,Supplies and Services,E,Miscellaneous Expenses,EM,02/02/2018,PAY01032579,SOCK,Social Work,86.63,Revenue,The Imprest Holder
Brighton & Hove City Council,http://statistics.data.gov.uk/id/local-authority/00ML,Children`s & Education Serv,BVAEDU,Child Srvcs - Fostering,FLF,Third Party Payments,F,Other Establishments,FH,02/02/2018,PAY01032579,CHIC,Fostering and Adoption,154.5,Revenue,The Imprest Holder
Brighton & Hove City Council,http://statistics.data.gov.uk/id/local-authority/00ML,Children`s & Education Serv,BVAEDU,Child Srvcs Leaving Care,FAL,Supplies and Services,E,Equip't Furniture n Materials,EA,02/02/2018,PAY01032579,CARL,Care Leavers,238.92,Revenue,The Imprest Holder
Brighton & Hove City Council,http://statistics.data.gov.uk/id/local-authority/00ML,Children`s & Education Serv,BVAEDU,Child Srvcs Leaving Care,FAL,Transfer Payments,G,Other Transfer Payments,GD,02/02/2018,PAY01032579,CARL,Care Leavers,4680.74,Revenue,The Imprest Holder
Brighton & Hove City Council,http://statistics.data.gov.uk/id/local-authority/00ML,Children`s & Education Serv,BVAEDU,Child Srvcs - Other Fam Supp,FFX,Direct Employees,A,Salaries,AA,02/02/2018,PAY01032579,FAMP,Families\Prevention,233.94,Revenue,The Imprest Holder
Brighton & Hove City Council,http://statistics.data.gov.uk/id/local-authority/00ML,Children`s & Education Serv,BVAEDU,Child Srvcs - Other Fam Supp,FFX,Transfer Payments,G,Other Transfer Payments,GD,02/02/2018,PAY01032579,FAMP,Families\Prevention,910.79,Revenue,The Imprest Holder
Brighton & Hove City Council,http://statistics.data.gov.uk/id/local-authority/00ML,Children`s & Education Serv,BVAEDU,Child Srvcs - Othr LAC Svcs,FLX,Transfer Payments,G,Other Transfer Payments,GD,02/02/2018,PAY01032579,AVFM,Agency Placements\VFM,174,Revenue,The Imprest Holder
Brighton & Hove City Council,http://statistics.data.gov.uk/id/local-authority/00ML,Environment & Regulatory Serv,BVAERS,Management Services (DEC),MGT,Transport Related,D,Direct Transport Costs,DA,02/02/2018,PAY01032580,CICL,City Clean,2329.72,Revenue,Rossetts (UK) Ltd t/a Rossetts Commercials
Brighton & Hove City Council,http://statistics.data.gov.uk/id/local-authority/00ML,Adult Social Care,BVASOC,ASC Physical Support,PHY,Customer n Client Receipts,M,Fees n Charges,MB,02/02/2018,PAY01032581,PHYS,Physical Support,111,Revenue,Sanctuary Carr-Gomm
Brighton & Hove City Council,http://statistics.data.gov.uk/id/local-authority/00ML,Adult Social Care,BVASOC,ASC Physical Support,PHY,Third Party Payments,F,Other Establishments,FH,02/02/2018,PAY01032581,PHYS,Physical Support,1175.73,Revenue,Sanctuary Carr-Gomm
Brighton & Hove City Council,http://statistics.data.gov.uk/id/local-authority/00ML,Adult Social Care,BVASOC,ASC Physical Support,PHY,Customer n Client Receipts,M,Fees n Charges,MB,02/02/2018,PAY01032583,PHYS,Physical Support,-84,Revenue,Money Advice Plus
Brighton & Hove City Council,http://statistics.data.gov.uk/id/local-authority/00ML,Adult Social Care,BVASOC,ASC Physical Support,PHY,Third Party Payments,F,Other Establishments,FH,02/02/2018,PAY01032583,PHYS,Physical Support,4212,Revenue,Money Advice Plus
Brighton & Hove City Council,http://statistics.data.gov.uk/id/local-authority/00ML,Adult Social Care,BVASOC,Assistive Equipment & Tech,AET,Supplies and Services,E,Communications n Computing,EH,02/02/2018,PAY01032584,ASIT,Assessment and SIT,57.46,Revenue,Royal Mail Group Ltd
Brighton & Hove City Council,http://statistics.data.gov.uk/id/local-authority/00ML,Central Support and Overheads,BVACEN,Holding Accounts,PPH,Supplies and Services,E,Communications n Computing,EH,02/02/2018,PAY01032584,PROP,Property and Design,8342.21,Revenue,Royal Mail Group Ltd
Brighton & Hove City Council,http://statistics.data.gov.uk/id/local-authority/00ML,Children`s & Education Serv,BVAEDU,Child Srvcs Leaving Care,FAL,Transfer Payments,G,Other Transfer Payments,GD,02/02/2018,PAY01032585,CARL,Care Leavers,5356.77,Revenue,Barnardo`s
Brighton & Hove City Council,http://statistics.data.gov.uk/id/local-authority/00ML,Adult Social Care,BVASOC,ASC Physical Support,PHY,Customer n Client Receipts,M,Fees n Charges,MB,02/02/2018,PAY01032587,PHYS,Physical Support,-208,Revenue,Payment to Individual
Brighton & Hove City Council,http://statistics.data.gov.uk/id/local-authority/00ML,Adult Social Care,BVASOC,ASC Physical Support,PHY,Third Party Payments,F,Other Establishments,FH,02/02/2018,PAY01032587,PHYS,Physical Support,800.4,Revenue,Payment to Individual
Brighton & Hove City Council,http://statistics.data.gov.uk/id/local-authority/00ML,Housing General Fund,BVAHOG,Homelessness,HML,Premises Related,C,Rents Payable,CC,02/02/2018,PAY01032588,TAAS,Temp Accom and Allocations,2425,Revenue,Payment to Individual
Brighton & Hove City Council,http://statistics.data.gov.uk/id/local-authority/00ML,Adult Social Care,BVASOC,ASC Physical Support,PHY,Third Party Payments,F,Other Establishments,FH,02/02/2018,PAY01032589,PHYS,Physical Support,2441.4,Revenue,Payment to Individual
Brighton & Hove City Council,http://statistics.data.gov.uk/id/local-authority/00ML,Central Support and Overheads,BVACEN,Support Services (SSC),PPT,Indirect Employees,B,Training,BM,02/02/2018,PAY01032590,ORGD,Organisational Development,750,Revenue,In-Trac Training & Consultancy Ltd
Brighton & Hove City Council,http://statistics.data.gov.uk/id/local-authority/00ML,Adult Social Care,BVASOC,ASC Learning Disabilities,ALD,Transport Related,D,Public Transport,DD,02/02/2018,PAY01032592,LDIS,Adults LD Community Care,426,Revenue,Payment to Individual
Brighton & Hove City Council,http://statistics.data.gov.uk/id/local-authority/00ML,Adult Social Care,BVASOC,ASC Physical Support,PHY,Customer n Client Receipts,M,Fees n Charges,MB,02/02/2018,PAY01032593,PHYS,Physical Support,-164,Revenue,Payment to Individual
Brighton & Hove City Council,http://statistics.data.gov.uk/id/local-authority/00ML,Adult Social Care,BVASOC,ASC Physical Support,PHY,Third Party Payments,F,Other Establishments,FH,02/02/2018,PAY01032593,PHYS,Physical Support,1224,Revenue,Payment to Individual
Brighton & Hove City Council,http://statistics.data.gov.uk/id/local-authority/00ML,Adult Social Care,BVASOC,ASC Physical Support,PHY,Third Party Payments,F,Other Establishments,FH,02/02/2018,PAY01032594,PHYS,Physical Support,726.6,Revenue,Payment to Individual
Brighton & Hove City Council,http://statistics.data.gov.uk/id/local-authority/00ML,Adult Social Care,BVASOC,ASC Physical Support,PHY,Third Party Payments,F,Other Establishments,FH,02/02/2018,PAY01032595,PHYS,Physical Support,3066.2,Revenue,Payment to Individual
Brighton & Hove City Council,http://statistics.data.gov.uk/id/local-authority/00ML,Public Health,BVAPHE,Public Health,PHE,Supplies and Services,E,Miscellaneous Expenses,EM,02/02/2018,PAY01032596,PHCM,PH Commissioning,360,Revenue,Brighton & Hove LGBT Switchboard
Brighton & Hove City Council,http://statistics.data.gov.uk/id/local-authority/00ML,Housing Revenue Account,BVAHOU,Hsing Management - HRA,HGM,Premises Related,C,Repair Maint n Alterations,CA,02/02/2018,PAY01032597,HTEN,Tenancy Services,840,Revenue,Greenacre Recycling Ltd
Brighton & Hove City Council,http://statistics.data.gov.uk/id/local-authority/00ML,Children`s & Education Serv,BVAEDU,Child Srvcs - Fostering,FLF,Third Party Payments,F,Other Establishments,FH,02/02/2018,PAY01032598,CHIC,Fostering and Adoption,672,Revenue,YMCA Downslink Group
Brighton & Hove City Council,http://statistics.data.gov.uk/id/local-authority/00ML,Children`s & Education Serv,BVAEDU,Child Srvcs Leaving Care,FAL,Transfer Payments,G,Other Transfer Payments,GD,02/02/2018,PAY01032598,CARL,Care Leavers,2015.75,Revenue,YMCA Downslink Group
Brighton & Hove City Council,http://statistics.data.gov.uk/id/local-authority/00ML,Children`s & Education Serv,BVAEDU,Child Srvcs - Othr LAC Svcs,FLX,Transfer Payments,G,Other Transfer Payments,GD,02/02/2018,PAY01032598,AVFM,Agency Placements\VFM,2764.46,Revenue,YMCA Downslink Group
Brighton & Hove City Council,http://statistics.data.gov.uk/id/local-authority/00ML,Environment & Regulatory Serv,BVAERS,Management Services (DEC),MGT,Transport Related,D,Direct Transport Costs,DA,02/02/2018,PAY01032600,CICL,City Clean,356.4,Revenue,Barnes DAF
Brighton & Hove City Council,http://statistics.data.gov.uk/id/local-authority/00ML,Adult Social Care,BVASOC,ASC Physical Support,PHY,Customer n Client Receipts,M,Fees n Charges,MB,02/02/2018,PAY01032602,PHYS,Physical Support,-124,Revenue,Payment to Individual
Brighton & Hove City Council,http://statistics.data.gov.uk/id/local-authority/00ML,Adult Social Care,BVASOC,ASC Physical Support,PHY,Third Party Payments,F,Other Establishments,FH,02/02/2018,PAY01032602,PHYS,Physical Support,3829,Revenue,Payment to Individual
Brighton & Hove City Council,http://statistics.data.gov.uk/id/local-authority/00ML,Adult Social Care,BVASOC,ASC Learning Disabilities,ALD,Customer n Client Receipts,M,Fees n Charges,MB,02/02/2018,PAY01032603,LDIS,Adults LD Community Care,-212,Revenue,Payment to Individual
Brighton & Hove City Council,http://statistics.data.gov.uk/id/local-authority/00ML,Adult Social Care,BVASOC,ASC Learning Disabilities,ALD,Third Party Payments,F,Other Establishments,FH,02/02/2018,PAY01032603,LDIS,Adults LD Community Care,2315.2,Revenue,Payment to Individual
Brighton & Hove City Council,http://statistics.data.gov.uk/id/local-authority/00ML,Cultural and Related Serv,BVACUL,Recreation and Sport,REC,Third Party Payments,F,Independent Units of Council,FA,02/02/2018,PAY01032604,SPLE,Sport and Leisure,1352.23,Revenue,Wealden Leisure Limited T/A Freedom Leisure
Brighton & Hove City Council,http://statistics.data.gov.uk/id/local-authority/00ML,Adult Social Care,BVASOC,ASC Physical Support,PHY,Third Party Payments,F,Other Establishments,FH,02/02/2018,PAY01032605,PHYS,Physical Support,5882.6,Revenue,Payment to Individual
Brighton & Hove City Council,http://statistics.data.gov.uk/id/local-authority/00ML,Adult Social Care,BVASOC,ASC Physical Support,PHY,Third Party Payments,F,Other Establishments,FH,02/02/2018,PAY01032607,PHYS,Physical Support,5946.2,Revenue,Payment to Individual
Brighton & Hove City Council,http://statistics.data.gov.uk/id/local-authority/00ML,Housing General Fund,BVAHOG,Homelessness,HML,Third Party Payments,F,Other Establishments,FH,02/02/2018,PAY01032608,TAAS,Temp Accom and Allocations,700,Revenue,Payment to Individual
Brighton & Hove City Council,http://statistics.data.gov.uk/id/local-authority/00ML,Adult Social Care,BVASOC,ASC Learning Disabilities,ALD,Third Party Payments,F,Other Establishments,FH,02/02/2018,PAY01032609,LDIS,Adults LD Community Care,86.48,Revenue,Prime Care Community Services Ltd
Brighton & Hove City Council,http://statistics.data.gov.uk/id/local-authority/00ML,Adult Social Care,BVASOC,ASC Memory Cognition Support,MEM,Third Party Payments,F,Other Establishments,FH,02/02/2018,PAY01032609,COGN,Memory Cognition Support,328.98,Revenue,Prime Care Community Services Ltd
Brighton & Hove City Council,http://statistics.data.gov.uk/id/local-authority/00ML,Adult Social Care,BVASOC,ASC Mental Health Support,MHP,Third Party Payments,F,Other Establishments,FH,02/02/2018,PAY01032609,MENH,Mental Health Support,272.6,Revenue,Prime Care Community Services Ltd
Brighton & Hove City Council,http://statistics.data.gov.uk/id/local-authority/00ML,Adult Social Care,BVASOC,ASC Physical Support,PHY,Third Party Payments,F,Other Establishments,FH,02/02/2018,PAY01032609,PHYS,Physical Support,7912.57,Revenue,Prime Care Community Services Ltd
Brighton & Hove City Council,http://statistics.data.gov.uk/id/local-authority/00ML,Adult Social Care,BVASOC,ASC Substance Misuse,ADM,Third Party Payments,F,Other Establishments,FH,02/02/2018,PAY01032609,SUBM,Substance Misuse Support,40.91,Revenue,Prime Care Community Services Ltd
Brighton & Hove City Council,http://statistics.data.gov.uk/id/local-authority/00ML,Adult Social Care,BVASOC,ASC Learning Disabilities,ALD,Customer n Client Receipts,M,Fees n Charges,MB,02/02/2018,PAY01032610,LDIS,Adults LD Community Care,-12,Revenue,Payment to Individual
Brighton & Hove City Council,http://statistics.data.gov.uk/id/local-authority/00ML,Adult Social Care,BVASOC,ASC Learning Disabilities,ALD,Third Party Payments,F,Other Establishments,FH,02/02/2018,PAY01032610,LDIS,Adults LD Community Care,1764.6,Revenue,Payment to Individual
Brighton & Hove City Council,http://statistics.data.gov.uk/id/local-authority/00ML,Housing General Fund,BVAHOG,Homelessness,HML,Premises Related,C,Rents Payable,CC,02/02/2018,PAY01032611,TAAS,Temp Accom and Allocations,1050,Revenue,KEM Property Services Ltd
Brighton & Hove City Council,http://statistics.data.gov.uk/id/local-authority/00ML,Public Health,BVAPHE,Public Health,PHE,Third Party Payments,F,Other Establishments,FH,02/02/2018,PAY01032612,PHCM,PH Commissioning,5852.55,Revenue,Portslade Health Centre
Brighton & Hove City Council,http://statistics.data.gov.uk/id/local-authority/00ML,Public Health,BVAPHE,Public Health,PHE,Third Party Payments,F,Other Establishments,FH,02/02/2018,PAY01032613,PHCM,PH Commissioning,1393.63,Revenue,Allied Medical Practice
Brighton & Hove City Council,http://statistics.data.gov.uk/id/local-authority/00ML,Housing General Fund,BVAHOG,Homelessness,HML,Premises Related,C,Rents Payable,CC,02/02/2018,PAY01032614,TAAS,Temp Accom and Allocations,14260,Revenue,W P Properties Ltd
Brighton & Hove City Council,http://statistics.data.gov.uk/id/local-authority/00ML,Housing General Fund,BVAHOG,Homelessness,HML,Premises Related,C,Rents Payable,CC,02/02/2018,PAY01032615,TAAS,Temp Accom and Allocations,1385,Revenue,Payment to Individual
Brighton & Hove City Council,http://statistics.data.gov.uk/id/local-authority/00ML,Housing General Fund,BVAHOG,Homelessness,HML,Supplies and Services,E,Equip't Furniture n Materials,EA,02/02/2018,PAY01032616,ASSA,Hostel Accommodation,225.99,Revenue,Pennywise Hardware
Brighton & Hove City Council,http://statistics.data.gov.uk/id/local-authority/00ML,Adult Social Care,BVASOC,ASC Learning Disabilities,ALD,Customer n Client Receipts,M,Fees n Charges,MB,02/02/2018,PAY01032617,LDIS,Adults LD Community Care,-220,Revenue,Payment to Individual
Brighton & Hove City Council,http://statistics.data.gov.uk/id/local-authority/00ML,Adult Social Care,BVASOC,ASC Learning Disabilities,ALD,Third Party Payments,F,Other Establishments,FH,02/02/2018,PAY01032617,LDIS,Adults LD Community Care,2302,Revenue,Payment to Individual
Brighton & Hove City Council,http://statistics.data.gov.uk/id/local-authority/00ML,Adult Social Care,BVASOC,ASC Physical Support,PHY,Third Party Payments,F,Other Establishments,FH,02/02/2018,PAY01032618,PHYS,Physical Support,4261.2,Revenue,Payment to Individual
Brighton & Hove City Council,http://statistics.data.gov.uk/id/local-authority/00ML,Adult Social Care,BVASOC,ASC Physical Support,PHY,Third Party Payments,F,Other Establishments,FH,02/02/2018,PAY01032619,PHYS,Physical Support,3359.4,Revenue,Payment to Individual
Brighton & Hove City Council,http://statistics.data.gov.uk/id/local-authority/00ML,Adult Social Care,BVASOC,ASC Learning Disabilities,ALD,Third Party Payments,F,Other Establishments,FH,02/02/2018,PAY01032620,LDIS,Adults LD Community Care,3414.2,Revenue,Payment to Individual
Brighton & Hove City Council,http://statistics.data.gov.uk/id/local-authority/00ML,Housing General Fund,BVAHOG,Homelessness,HML,Premises Related,C,Rents Payable,CC,02/02/2018,PAY01032621,TAAS,Temp Accom and Allocations,900,Revenue,Payment to Individual
Brighton & Hove City Council,http://statistics.data.gov.uk/id/local-authority/00ML,Housing General Fund,BVAHOG,Homelessness,HML,Premises Related,C,Rents Payable,CC,02/02/2018,PAY01032622,TAAS,Temp Accom and Allocations,825,Revenue,Payment to Individual
Brighton & Hove City Council,http://statistics.data.gov.uk/id/local-authority/00ML,Children`s & Education Serv,BVAEDU,Ed Secondary Schools,EJJ,Premises Related,C,Energy Costs,CB,02/02/2018,PAY01032624,SCHL,Schools,1648.09,Revenue,Npower Ltd
Brighton & Hove City Council,http://statistics.data.gov.uk/id/local-authority/00ML,Environment & Regulatory Serv,BVAERS,Management Services (DEC),MGT,Transport Related,D,Direct Transport Costs,DA,02/02/2018,PAY01032625,CICL,City Clean,617.46,Revenue,Hendy Group Ltd
Brighton & Hove City Council,http://statistics.data.gov.uk/id/local-authority/00ML,Non-BHC Organisations,BVANON,Trusts,TRT,Supplies and Services,E,Miscellaneous Expenses,EM,02/02/2018,PAY01032625,NBHC,Non Council,1995,Revenue,Hendy Group Ltd
Brighton & Hove City Council,http://statistics.data.gov.uk/id/local-authority/00ML,Public Health,BVAPHE,Public Health,PHE,Third Party Payments,F,Other Establishments,FH,02/02/2018,PAY01032626,PHCM,PH Commissioning,10202.25,Revenue,The Stanford Medical Centre
Brighton & Hove City Council,http://statistics.data.gov.uk/id/local-authority/00ML,Adult Social Care,BVASOC,ASC Physical Support,PHY,Customer n Client Receipts,M,Fees n Charges,MB,02/02/2018,PAY01032627,PHYS,Physical Support,-84,Revenue,Payment to Individual
Brighton & Hove City Council,http://statistics.data.gov.uk/id/local-authority/00ML,Adult Social Care,BVASOC,ASC Physical Support,PHY,Third Party Payments,F,Other Establishments,FH,02/02/2018,PAY01032627,PHYS,Physical Support,671.4,Revenue,Payment to Individual
Brighton & Hove City Council,http://statistics.data.gov.uk/id/local-authority/00ML,Adult Social Care,BVASOC,ASC Learning Disabilities,ALD,Customer n Client Receipts,M,Fees n Charges,MB,02/02/2018,PAY01032628,LDIS,Adults LD Community Care,-1137,Revenue,Frances Taylor Foundation
Brighton & Hove City Council,http://statistics.data.gov.uk/id/local-authority/00ML,Adult Social Care,BVASOC,ASC Learning Disabilities,ALD,Third Party Payments,F,Other Establishments,FH,02/02/2018,PAY01032628,LDIS,Adults LD Community Care,13715.11,Revenue,Frances Taylor Foundation
Brighton & Hove City Council,http://statistics.data.gov.uk/id/local-authority/00ML,Adult Social Care,BVASOC,ASC Physical Support,PHY,Third Party Payments,F,Other Establishments,FH,02/02/2018,PAY01032628,PHYS,Physical Support,70.12,Revenue,Frances Taylor Foundation
Brighton & Hove City Council,http://statistics.data.gov.uk/id/local-authority/00ML,Public Health,BVAPHE,Public Health,PHE,Third Party Payments,F,Other Establishments,FH,02/02/2018,PAY01032629,PHCM,PH Commissioning,531.25,Revenue,Ardingly Court Surgery
Brighton & Hove City Council,http://statistics.data.gov.uk/id/local-authority/00ML,Adult Social Care,BVASOC,ASC Learning Disabilities,ALD,Third Party Payments,F,Other Establishments,FH,02/02/2018,PAY01032631,LDIS,Adults LD Community Care,639.4,Revenue,Payment to Individual
Brighton & Hove City Council,http://statistics.data.gov.uk/id/local-authority/00ML,Public Health,BVAPHE,Public Health,PHE,Third Party Payments,F,Other Establishments,FH,02/02/2018,PAY01032632,PHCM,PH Commissioning,6220.42,Revenue,The Pavilion Surgery
Brighton & Hove City Council,http://statistics.data.gov.uk/id/local-authority/00ML,Children`s & Education Serv,BVAEDU,Ed Ed Other Other,ENF,Premises Related,C,Repair Maint n Alterations,CA,02/02/2018,PAY01032633,PROP,Property and Design,12464.3,Revenue,SMS (Southern) Ltd
Brighton & Hove City Council,http://statistics.data.gov.uk/id/local-authority/00ML,Adult Social Care,BVASOC,ASC Physical Support,PHY,Third Party Payments,F,Other Establishments,FH,02/02/2018,PAY01032634,PHYS,Physical Support,432,Revenue,Payment to Individual
Brighton & Hove City Council,http://statistics.data.gov.uk/id/local-authority/00ML,Adult Social Care,BVASOC,ASC Physical Support,PHY,Third Party Payments,F,Other Establishments,FH,02/02/2018,PAY01032635,PHYS,Physical Support,2135,Revenue,Payment to Individual
Brighton & Hove City Council,http://statistics.data.gov.uk/id/local-authority/00ML,Adult Social Care,BVASOC,ASC Physical Support,PHY,Customer n Client Receipts,M,Fees n Charges,MB,02/02/2018,PAY01032636,PHYS,Physical Support,-36,Revenue,Payment to Individual
Brighton & Hove City Council,http://statistics.data.gov.uk/id/local-authority/00ML,Adult Social Care,BVASOC,ASC Physical Support,PHY,Third Party Payments,F,Other Establishments,FH,02/02/2018,PAY01032636,PHYS,Physical Support,2353.4,Revenue,Payment to Individual
Brighton & Hove City Council,http://statistics.data.gov.uk/id/local-authority/00ML,Housing General Fund,BVAHOG,Homelessness,HML,Premises Related,C,Rents Payable,CC,02/02/2018,PAY01032637,TAAS,Temp Accom and Allocations,1100,Revenue,Avon Estates (London) Ltd
Brighton & Hove City Council,http://statistics.data.gov.uk/id/local-authority/00ML,Housing General Fund,BVAHOG,Homelessness,HML,Premises Related,C,Rents Payable,CC,02/02/2018,PAY01032638,TAAS,Temp Accom and Allocations,950,Revenue,Payment to Individual
Brighton & Hove City Council,http://statistics.data.gov.uk/id/local-authority/00ML,Adult Social Care,BVASOC,ASC Physical Support,PHY,Third Party Payments,F,Other Establishments,FH,02/02/2018,PAY01032639,PHYS,Physical Support,5997.6,Revenue,Payment to Individual
Brighton & Hove City Council,http://statistics.data.gov.uk/id/local-authority/00ML,Adult Social Care,BVASOC,ASC Physical Support,PHY,Third Party Payments,F,Other Establishments,FH,02/02/2018,PAY01032640,PHYS,Physical Support,4736.36,Revenue,Payment to Individual
Brighton & Hove City Council,http://statistics.data.gov.uk/id/local-authority/00ML,Adult Social Care,BVASOC,ASC Physical Support,PHY,Third Party Payments,F,Other Establishments,FH,02/02/2018,PAY01032641,PHYS,Physical Support,1292,Revenue,Payment to Individual
Brighton & Hove City Council,http://statistics.data.gov.uk/id/local-authority/00ML,Adult Social Care,BVASOC,ASC Physical Support,PHY,Customer n Client Receipts,M,Fees n Charges,MB,02/02/2018,PAY01032645,PHYS,Physical Support,-264,Revenue,Payment to Individual
Brighton & Hove City Council,http://statistics.data.gov.uk/id/local-authority/00ML,Adult Social Care,BVASOC,ASC Physical Support,PHY,Third Party Payments,F,Other Establishments,FH,02/02/2018,PAY01032645,PHYS,Physical Support,1033.4,Revenue,Payment to Individual
Brighton & Hove City Council,http://statistics.data.gov.uk/id/local-authority/00ML,Adult Social Care,BVASOC,ASC Learning Disabilities,ALD,Customer n Client Receipts,M,Fees n Charges,MB,02/02/2018,PAY01032646,LDIS,Adults LD Community Care,-184,Revenue,Payment to Individual
Brighton & Hove City Council,http://statistics.data.gov.uk/id/local-authority/00ML,Adult Social Care,BVASOC,ASC Learning Disabilities,ALD,Third Party Payments,F,Other Establishments,FH,02/02/2018,PAY01032646,LDIS,Adults LD Community Care,2507.4,Revenue,Payment to Individual
Brighton & Hove City Council,http://statistics.data.gov.uk/id/local-authority/00ML,Adult Social Care,BVASOC,ASC Physical Support,PHY,Customer n Client Receipts,M,Fees n Charges,MB,02/02/2018,PAY01032647,PHYS,Physical Support,-888,Revenue,The Disabilities Trust
Brighton & Hove City Council,http://statistics.data.gov.uk/id/local-authority/00ML,Adult Social Care,BVASOC,ASC Physical Support,PHY,Third Party Payments,F,Other Establishments,FH,02/02/2018,PAY01032647,PHYS,Physical Support,13383,Revenue,The Disabilities Trust
Brighton & Hove City Council,http://statistics.data.gov.uk/id/local-authority/00ML,Adult Social Care,BVASOC,ASC Physical Support,PHY,Customer n Client Receipts,M,Fees n Charges,MB,02/02/2018,PAY01032648,PHYS,Physical Support,-792,Revenue,Agincare UK Ltd
Brighton & Hove City Council,http://statistics.data.gov.uk/id/local-authority/00ML,Adult Social Care,BVASOC,ASC Physical Support,PHY,Third Party Payments,F,Other Establishments,FH,02/02/2018,PAY01032648,PHYS,Physical Support,1659,Revenue,Agincare UK Ltd
Brighton & Hove City Council,http://statistics.data.gov.uk/id/local-authority/00ML,Adult Social Care,BVASOC,ASC Physical Support,PHY,Customer n Client Receipts,M,Fees n Charges,MB,02/02/2018,PAY01032649,PHYS,Physical Support,-20,Revenue,Payment to Individual
Brighton & Hove City Council,http://statistics.data.gov.uk/id/local-authority/00ML,Adult Social Care,BVASOC,ASC Physical Support,PHY,Third Party Payments,F,Other Establishments,FH,02/02/2018,PAY01032649,PHYS,Physical Support,305,Revenue,Payment to Individual
Brighton & Hove City Council,http://statistics.data.gov.uk/id/local-authority/00ML,Adult Social Care,BVASOC,ASC Physical Support,PHY,Third Party Payments,F,Other Establishments,FH,02/02/2018,PAY01032650,PHYS,Physical Support,4984,Revenue,Payment to Individual
Brighton & Hove City Council,http://statistics.data.gov.uk/id/local-authority/00ML,Adult Social Care,BVASOC,ASC Learning Disabilities,ALD,Premises Related,C,Cleaning n Domestic Supps,CH,02/02/2018,PAY01032651,LDAS,Adults LD Accomodation Service,161.62,Revenue,The Imprest Holder
Brighton & Hove City Council,http://statistics.data.gov.uk/id/local-authority/00ML,Adult Social Care,BVASOC,ASC Learning Disabilities,ALD,Supplies and Services,E,Catering,EB,02/02/2018,PAY01032651,LDAS,Adults LD Accomodation Service,1362.35,Revenue,The Imprest Holder
Brighton & Hove City Council,http://statistics.data.gov.uk/id/local-authority/00ML,Adult Social Care,BVASOC,ASC Learning Disabilities,ALD,Supplies and Services,E,Equip't Furniture n Materials,EA,02/02/2018,PAY01032651,LDAS,Adults LD Accomodation Service,478.69,Revenue,The Imprest Holder
Brighton & Hove City Council,http://statistics.data.gov.uk/id/local-authority/00ML,Adult Social Care,BVASOC,ASC Learning Disabilities,ALD,Supplies and Services,E,Print Stat & Gen Office Exps,ED,02/02/2018,PAY01032651,LDAS,Adults LD Accomodation Service,127.1,Revenue,The Imprest Holder
Brighton & Hove City Council,http://statistics.data.gov.uk/id/local-authority/00ML,Adult Social Care,BVASOC,ASC Learning Disabilities,ALD,Third Party Payments,F,Other Establishments,FH,02/02/2018,PAY01032651,LDAS,Adults LD Accomodation Service,85.73,Revenue,The Imprest Holder
Brighton & Hove City Council,http://statistics.data.gov.uk/id/local-authority/00ML,Adult Social Care,BVASOC,ASC Learning Disabilities,ALD,Transport Related,D,Direct Transport Costs,DA,02/02/2018,PAY01032651,LDAS,Adults LD Accomodation Service,239.96,Revenue,The Imprest Holder
Brighton & Hove City Council,http://statistics.data.gov.uk/id/local-authority/00ML,Adult Social Care,BVASOC,ASC Learning Disabilities,ALD,Transport Related,D,Public Transport,DD,02/02/2018,PAY01032651,LDAS,Adults LD Accomodation Service,40.34,Revenue,The Imprest Holder
Brighton & Hove City Council,http://statistics.data.gov.uk/id/local-authority/00ML,Adult Social Care,BVASOC,ASC Physical Support,PHY,Customer n Client Receipts,M,Fees n Charges,MB,02/02/2018,PAY01032652,PHYS,Physical Support,-288,Revenue,Payment to Individual
Brighton & Hove City Council,http://statistics.data.gov.uk/id/local-authority/00ML,Adult Social Care,BVASOC,ASC Physical Support,PHY,Third Party Payments,F,Other Establishments,FH,02/02/2018,PAY01032652,PHYS,Physical Support,1486.8,Revenue,Payment to Individual
Brighton & Hove City Council,http://statistics.data.gov.uk/id/local-authority/00ML,Adult Social Care,BVASOC,ASC Learning Disabilities,ALD,Third Party Payments,F,Other Establishments,FH,02/02/2018,PAY01032654,LDIS,Adults LD Community Care,2245.5,Revenue,Scope
Brighton & Hove City Council,http://statistics.data.gov.uk/id/local-authority/00ML,Adult Social Care,BVASOC,ASC Learning Disabilities,ALD,Customer n Client Receipts,M,Fees n Charges,MB,02/02/2018,PAY01032655,LDIS,Adults LD Community Care,-144,Revenue,Payment to Individual
Brighton & Hove City Council,http://statistics.data.gov.uk/id/local-authority/00ML,Adult Social Care,BVASOC,ASC Learning Disabilities,ALD,Third Party Payments,F,Other Establishments,FH,02/02/2018,PAY01032655,LDIS,Adults LD Community Care,2790,Revenue,Payment to Individual
Brighton & Hove City Council,http://statistics.data.gov.uk/id/local-authority/00ML,Cultural and Related Serv,BVACUL,Recreation and Sport,REC,Premises Related,C,Repair Maint n Alterations,CA,02/02/2018,PAY01032656,SPLE,Sport and Leisure,477.21,Revenue,Medisave (UK) Ltd
Brighton & Hove City Council,http://statistics.data.gov.uk/id/local-authority/00ML,Housing General Fund,BVAHOG,Homelessness,HML,Premises Related,C,Rents Payable,CC,02/02/2018,PAY01032657,TAAS,Temp Accom and Allocations,2300,Revenue,Payment to Individual
Brighton & Hove City Council,http://statistics.data.gov.uk/id/local-authority/00ML,Housing General Fund,BVAHOG,Homelessness,HML,Premises Related,C,Repair Maint n Alterations,CA,02/02/2018,PAY01032658,SSHS,Seaside Homes (BHSCH),40478.34,Revenue,Mears Limited
Brighton & Hove City Council,http://statistics.data.gov.uk/id/local-authority/00ML,Housing General Fund,BVAHOG,Homelessness,HML,Premises Related,C,Repair Maint n Alterations,CA,02/02/2018,PAY01032658,TAAS,Temp Accom and Allocations,27278.72,Revenue,Mears Limited
Brighton & Hove City Council,http://statistics.data.gov.uk/id/local-authority/00ML,Housing General Fund,BVAHOG,Homelessness,HML,Premises Related,C,Repair Maint n Alterations,CA,02/02/2018,PAY01032658,TRAV,Travellers,506.64,Revenue,Mears Limited
Brighton & Hove City Council,http://statistics.data.gov.uk/id/local-authority/00ML,Housing Revenue Account,BVAHOU,Hsing Management - HRA,HGM,Premises Related,C,Cleaning n Domestic Supps,CH,02/02/2018,PAY01032658,HPAI,Property & Investment,1010.06,Revenue,Mears Limited
Brighton & Hove City Council,http://statistics.data.gov.uk/id/local-authority/00ML,Housing Revenue Account,BVAHOU,Hsing Management - HRA,HGM,Premises Related,C,Repair Maint n Alterations,CA,02/02/2018,PAY01032658,HPAI,Property & Investment,681861.36,Revenue,Mears Limited
Brighton & Hove City Council,http://statistics.data.gov.uk/id/local-authority/00ML,Housing Revenue Account,BVAHOU,Hsing Management - HRA,HGM,Supplies and Services,E,Services,EF,02/02/2018,PAY01032658,HPAI,Property & Investment,1091.54,Revenue,Mears Limited
Brighton & Hove City Council,http://statistics.data.gov.uk/id/local-authority/00ML,Non I&E,BVANON,CAP Housing Services GF,4HG,Capital Grants,PF,Capital Grants,PFL5,02/02/2018,PAY01032658,PSHG,Private Sector Housing,56.16,Capital,Mears Limited
Brighton & Hove City Council,http://statistics.data.gov.uk/id/local-authority/00ML,Non I&E,BVANON,CAP Housing Services GF,4HG,New Construction n Conversion,PB,New Construction n Conversion,PBL5,02/02/2018,PAY01032658,SSHS,Seaside Homes (BHSCH),392.17,Capital,Mears Limited
Brighton & Hove City Council,http://statistics.data.gov.uk/id/local-authority/00ML,Non I&E,BVANON,Cap - Housing Services - HRA,4HR,New Construction n Conversion,PB,New Construction n Conversion,PBL5,02/02/2018,PAY01032658,HPAI,Property & Investment,714126.68,Capital,Mears Limited
Brighton & Hove City Council,http://statistics.data.gov.uk/id/local-authority/00ML,Adult Social Care,BVASOC,ASC Learning Disabilities,ALD,Third Party Payments,F,Other Establishments,FH,02/02/2018,PAY01032659,LDIS,Adults LD Community Care,559.6,Revenue,Payment to Individual
Brighton & Hove City Council,http://statistics.data.gov.uk/id/local-authority/00ML,Adult Social Care,BVASOC,S Svcs - Learning Disability,LDY,Premises Related,C,Rents Payable,CC,02/02/2018,PAY01032660,43SUSP,Suspended Codes,1000,Revenue,Payment to Individual
Brighton & Hove City Council,http://statistics.data.gov.uk/id/local-authority/00ML,Adult Social Care,BVASOC,ASC Learning Disabilities,ALD,Customer n Client Receipts,M,Fees n Charges,MB,02/02/2018,PAY01032661,LDIS,Adults LD Community Care,-49.6,Revenue,Payment to Individual
Brighton & Hove City Council,http://statistics.data.gov.uk/id/local-authority/00ML,Adult Social Care,BVASOC,ASC Learning Disabilities,ALD,Third Party Payments,F,Other Establishments,FH,02/02/2018,PAY01032661,LDIS,Adults LD Community Care,2710.44,Revenue,Payment to Individual
Brighton & Hove City Council,http://statistics.data.gov.uk/id/local-authority/00ML,Adult Social Care,BVASOC,ASC Physical Support,PHY,Customer n Client Receipts,M,Fees n Charges,MB,02/02/2018,PAY01032662,PHYS,Physical Support,-64,Revenue,Payment to Individual
Brighton & Hove City Council,http://statistics.data.gov.uk/id/local-authority/00ML,Adult Social Care,BVASOC,ASC Physical Support,PHY,Third Party Payments,F,Other Establishments,FH,02/02/2018,PAY01032662,PHYS,Physical Support,1622.2,Revenue,Payment to Individual
Brighton & Hove City Council,http://statistics.data.gov.uk/id/local-authority/00ML,Non I&E,BVANON,CAP Mgmnt and Suppt Services,4PT,Plant Machinery n Equipment,PE2,Plant Machinery n Equipment,PE2L5,02/02/2018,PAY01032663,ICTA,ICT,2850,Capital,IDOX Software Ltd
Brighton & Hove City Council,http://statistics.data.gov.uk/id/local-authority/00ML,Adult Social Care,BVASOC,ASC Physical Support,PHY,Third Party Payments,F,Other Establishments,FH,02/02/2018,PAY01032664,PHYS,Physical Support,517,Revenue,Payment to Individual
Brighton & Hove City Council,http://statistics.data.gov.uk/id/local-authority/00ML,Non I&E,BVANON,CAP Housing Services GF,4HG,Capital Grants,PF,Capital Grants,PFL5,02/02/2018,PAY01032665,PSHG,Private Sector Housing,4245.35,Capital,T Brown Group Ltd
Brighton & Hove City Council,http://statistics.data.gov.uk/id/local-authority/00ML,Non I&E,BVANON,Cap - Housing Services - HRA,4HR,New Construction n Conversion,PB,New Construction n Conversion,PBL5,02/02/2018,PAY01032665,HPAI,Property & Investment,6368.99,Capital,T Brown Group Ltd
Brighton & Hove City Council,http://statistics.data.gov.uk/id/local-authority/00ML,Adult Social Care,BVASOC,ASC Physical Support,PHY,Customer n Client Receipts,M,Fees n Charges,MB,02/02/2018,PAY01032669,PHYS,Physical Support,-156,Revenue,Payment to Individual
Brighton & Hove City Council,http://statistics.data.gov.uk/id/local-authority/00ML,Adult Social Care,BVASOC,ASC Physical Support,PHY,Third Party Payments,F,Other Establishments,FH,02/02/2018,PAY01032669,PHYS,Physical Support,1142.2,Revenue,Payment to Individual
Brighton & Hove City Council,http://statistics.data.gov.uk/id/local-authority/00ML,Environment & Regulatory Serv,BVAERS,Management Services (DEC),MGT,Transport Related,D,Direct Transport Costs,DA,02/02/2018,PAY01032670,CICL,City Clean,484.4,Revenue,Pirtek (Crawley)
Brighton & Hove City Council,http://statistics.data.gov.uk/id/local-authority/00ML,Housing Revenue Account,BVAHOU,Hsing Management - HRA,HGM,Premises Related,C,Energy Costs,CB,02/02/2018,PAY01032671,HTEN,Tenancy Services,1448.94,Revenue,British Gas Business
Brighton & Hove City Council,http://statistics.data.gov.uk/id/local-authority/00ML,Housing General Fund,BVAHOG,Homelessness,HML,Premises Related,C,Rents Payable,CC,02/02/2018,PAY01032676,TAAS,Temp Accom and Allocations,43213.32,Revenue,The Baron Homes Corporation Ltd
Brighton & Hove City Council,http://statistics.data.gov.uk/id/local-authority/00ML,Housing General Fund,BVAHOG,Homelessness,HML,Supplies and Services,E,Services,EF,02/02/2018,PAY01032676,TAAS,Temp Accom and Allocations,16946.4,Revenue,The Baron Homes Corporation Ltd
Brighton & Hove City Council,http://statistics.data.gov.uk/id/local-authority/00ML,Adult Social Care,BVASOC,ASC Memory Cognition Support,MEM,Supplies and Services,E,Catering,EB,02/02/2018,PAY01032677,RCOP,Resource Centres Older People,39.17,Revenue,BFS Group Ltd t/a Bidvest Foodservice
Brighton & Hove City Council,http://statistics.data.gov.uk/id/local-authority/00ML,Adult Social Care,BVASOC,ASC Physical Support,PHY,Supplies and Services,E,Catering,EB,02/02/2018,PAY01032677,RCOP,Resource Centres Older People,134.36,Revenue,BFS Group Ltd t/a Bidvest Foodservice
Brighton & Hove City Council,http://statistics.data.gov.uk/id/local-authority/00ML,Housing General Fund,BVAHOG,Homelessness,HML,Supplies and Services,E,Catering,EB,02/02/2018,PAY01032677,ASSA,Hostel Accommodation,365.28,Revenue,BFS Group Ltd t/a Bidvest Foodservice
Brighton & Hove City Council,http://statistics.data.gov.uk/id/local-authority/00ML,Public Health,BVAPHE,Public Health,PHE,Third Party Payments,F,Health Authorities,FC,02/02/2018,PAY01032678,PHCM,PH Commissioning,17806,Revenue,Brighton & Sussex University Hospitals NHS Trust
Brighton & Hove City Council,http://statistics.data.gov.uk/id/local-authority/00ML,Children`s & Education Serv,BVAEDU,Ed Ed Other LA Attrib Sch,ELA,Transport Related,D,Other Transport Costs,DG,02/02/2018,PAY01032680,SCOR,School Organisation,6255.7,Revenue,"Community Transport (Brighton, Hove & Area) Ltd"
Brighton & Hove City Council,http://statistics.data.gov.uk/id/local-authority/00ML,Cultural and Related Serv,BVACUL,Open Spaces,PEN,Premises Related,C,Repair Maint n Alterations,CA,02/02/2018,PAY01032681,CIPK,City Parks,14083,Revenue,Connick Tree Care Brighton Ltd
Brighton & Hove City Council,http://statistics.data.gov.uk/id/local-authority/00ML,Public Health,BVAPHE,Public Health,PHE,Third Party Payments,F,Other Establishments,FH,02/02/2018,PAY01032683,PHCM,PH Commissioning,6642.49,Revenue,Regency Surgery
Brighton & Hove City Council,http://statistics.data.gov.uk/id/local-authority/00ML,Public Health,BVAPHE,Public Health,PHE,Third Party Payments,F,Other Establishments,FH,02/02/2018,PAY01032684,PHCM,PH Commissioning,2233.89,Revenue,Woodingdean Surgery
Brighton & Hove City Council,http://statistics.data.gov.uk/id/local-authority/00ML,Public Health,BVAPHE,Public Health,PHE,Third Party Payments,F,Other Establishments,FH,02/02/2018,PAY01032685,PHCM,PH Commissioning,4390.4,Revenue,Montpelier Surgery
Brighton & Hove City Council,http://statistics.data.gov.uk/id/local-authority/00ML,Public Health,BVAPHE,Public Health,PHE,Third Party Payments,F,Other Establishments,FH,02/02/2018,PAY01032686,PHCM,PH Commissioning,8691.26,Revenue,Park Crescent Health Centre
Brighton & Hove City Council,http://statistics.data.gov.uk/id/local-authority/00ML,Public Health,BVAPHE,Public Health,PHE,Third Party Payments,F,Other Establishments,FH,02/02/2018,PAY01032688,PHCM,PH Commissioning,2126.04,Revenue,Links Road Surgery
Brighton & Hove City Council,http://statistics.data.gov.uk/id/local-authority/00ML,Public Health,BVAPHE,Public Health,PHE,Third Party Payments,F,Other Establishments,FH,02/02/2018,PAY01032689,PHCM,PH Commissioning,4684.45,Revenue,Beaconsfield Medical Practice
Brighton & Hove City Council,http://statistics.data.gov.uk/id/local-authority/00ML,Environment & Regulatory Serv,BVAERS,Waste Management,WMT,Supplies and Services,E,Equip't Furniture n Materials,EA,02/02/2018,PAY01032690,CICL,City Clean,6387.5,Revenue,Egbert H Taylor & Company Ltd
Brighton & Hove City Council,http://statistics.data.gov.uk/id/local-authority/00ML,Children`s & Education Serv,BVAEDU,Child Srvcs Leaving Care,FAL,Third Party Payments,F,Other Establishments,FH,02/02/2018,PAY01032691,CARL,Care Leavers,92,Revenue,Payment to Individual
Brighton & Hove City Council,http://statistics.data.gov.uk/id/local-authority/00ML,Children`s & Education Serv,BVAEDU,Child Srvcs Leaving Care,FAL,Transfer Payments,G,Other Transfer Payments,GD,02/02/2018,PAY01032691,CARL,Care Leavers,191,Revenue,Payment to Individual
Brighton & Hove City Council,http://statistics.data.gov.uk/id/local-authority/00ML,Children`s & Education Serv,BVAEDU,Child Srvcs - Fostering,FLF,Third Party Payments,F,Other Establishments,FH,02/02/2018,PAY01032692,CHIC,Fostering and Adoption,346,Revenue,Payment to Individual
Brighton & Hove City Council,http://statistics.data.gov.uk/id/local-authority/00ML,Children`s & Education Serv,BVAEDU,Child Srvcs - Fostering,FLF,Third Party Payments,F,Other Establishments,FH,02/02/2018,PAY01032693,CHIC,Fostering and Adoption,422,Revenue,Payment to Individual
Brighton & Hove City Council,http://statistics.data.gov.uk/id/local-authority/00ML,Children`s & Education Serv,BVAEDU,Child Srvcs Leaving Care,FAL,Third Party Payments,F,Other Establishments,FH,02/02/2018,PAY01032693,CARL,Care Leavers,92,Revenue,Payment to Individual
Brighton & Hove City Council,http://statistics.data.gov.uk/id/local-authority/00ML,Children`s & Education Serv,BVAEDU,Child Srvcs Leaving Care,FAL,Transfer Payments,G,Other Transfer Payments,GD,02/02/2018,PAY01032693,CARL,Care Leavers,191,Revenue,Payment to Individual
Brighton & Hove City Council,http://statistics.data.gov.uk/id/local-authority/00ML,Children`s & Education Serv,BVAEDU,Child Srvcs - Fostering,FLF,Third Party Payments,F,Other Establishments,FH,02/02/2018,PAY01032694,CHIC,Fostering and Adoption,241.14,Revenue,Payment to Individual
Brighton & Hove City Council,http://statistics.data.gov.uk/id/local-authority/00ML,Children`s & Education Serv,BVAEDU,Child Srvcs Leaving Care,FAL,Third Party Payments,F,Other Establishments,FH,02/02/2018,PAY01032694,CARL,Care Leavers,65,Revenue,Payment to Individual
Brighton & Hove City Council,http://statistics.data.gov.uk/id/local-authority/00ML,Children`s & Education Serv,BVAEDU,Child Srvcs Leaving Care,FAL,Transfer Payments,G,Other Transfer Payments,GD,02/02/2018,PAY01032694,CARL,Care Leavers,191,Revenue,Payment to Individual
Brighton & Hove City Council,http://statistics.data.gov.uk/id/local-authority/00ML,Adult Social Care,BVASOC,ASC Learning Disabilities,ALD,Customer n Client Receipts,M,Fees n Charges,MB,02/02/2018,PAY01032695,LDIS,Adults LD Community Care,-90,Revenue,Payment to Individual
Brighton & Hove City Council,http://statistics.data.gov.uk/id/local-authority/00ML,Adult Social Care,BVASOC,ASC Learning Disabilities,ALD,Third Party Payments,F,Other Establishments,FH,02/02/2018,PAY01032695,LDIS,Adults LD Community Care,1065.58,Revenue,Payment to Individual
Brighton & Hove City Council,http://statistics.data.gov.uk/id/local-authority/00ML,Children`s & Education Serv,BVAEDU,Child Srvcs - Fostering,FLF,Third Party Payments,F,Other Establishments,FH,02/02/2018,PAY01032696,CHIC,Fostering and Adoption,422,Revenue,Payment to Individual
Brighton & Hove City Council,http://statistics.data.gov.uk/id/local-authority/00ML,Children`s & Education Serv,BVAEDU,Child Srvcs - Fostering,FLF,Third Party Payments,F,Other Establishments,FH,02/02/2018,PAY01032697,CHIC,Fostering and Adoption,806,Revenue,Payment to Individual
Brighton & Hove City Council,http://statistics.data.gov.uk/id/local-authority/00ML,Children`s & Education Serv,BVAEDU,Child Srvcs Leaving Care,FAL,Third Party Payments,F,Other Establishments,FH,02/02/2018,PAY01032698,CARL,Care Leavers,65,Revenue,Payment to Individual
Brighton & Hove City Council,http://statistics.data.gov.uk/id/local-authority/00ML,Children`s & Education Serv,BVAEDU,Child Srvcs Leaving Care,FAL,Transfer Payments,G,Other Transfer Payments,GD,02/02/2018,PAY01032698,CARL,Care Leavers,259,Revenue,Payment to Individual
Brighton & Hove City Council,http://statistics.data.gov.uk/id/local-authority/00ML,Children`s & Education Serv,BVAEDU,Child Srvcs - Othr LAC Svcs,FLX,Third Party Payments,F,Other Establishments,FH,02/02/2018,PAY01032698,AVFM,Agency Placements\VFM,92,Revenue,Payment to Individual
Brighton & Hove City Council,http://statistics.data.gov.uk/id/local-authority/00ML,Children`s & Education Serv,BVAEDU,Child Srvcs - Othr LAC Svcs,FLX,Transfer Payments,G,Other Transfer Payments,GD,02/02/2018,PAY01032698,AVFM,Agency Placements\VFM,338,Revenue,Payment to Individual
Brighton & Hove City Council,http://statistics.data.gov.uk/id/local-authority/00ML,Children`s & Education Serv,BVAEDU,Child Srvcs Adoption,FAA,Third Party Payments,F,Other Establishments,FH,02/02/2018,PAY01032699,CHIC,Fostering and Adoption,809.6,Revenue,Payment to Individual
Brighton & Hove City Council,http://statistics.data.gov.uk/id/local-authority/00ML,Children`s & Education Serv,BVAEDU,Child Srvcs - Fostering,FLF,Third Party Payments,F,Other Establishments,FH,02/02/2018,PAY01032700,CHIC,Fostering and Adoption,401.3,Revenue,Payment to Individual
Brighton & Hove City Council,http://statistics.data.gov.uk/id/local-authority/00ML,Children`s & Education Serv,BVAEDU,Child Srvcs - Fostering,FLF,Third Party Payments,F,Other Establishments,FH,02/02/2018,PAY01032701,CHIC,Fostering and Adoption,346,Revenue,Payment to Individual
Brighton & Hove City Council,http://statistics.data.gov.uk/id/local-authority/00ML,Children`s & Education Serv,BVAEDU,Child Srvcs Leaving Care,FAL,Third Party Payments,F,Other Establishments,FH,02/02/2018,PAY01032702,CARL,Care Leavers,130,Revenue,Payment to Individual
Brighton & Hove City Council,http://statistics.data.gov.uk/id/local-authority/00ML,Children`s & Education Serv,BVAEDU,Child Srvcs Leaving Care,FAL,Transfer Payments,G,Other Transfer Payments,GD,02/02/2018,PAY01032702,CARL,Care Leavers,450,Revenue,Payment to Individual
Brighton & Hove City Council,http://statistics.data.gov.uk/id/local-authority/00ML,Children`s & Education Serv,BVAEDU,Child Srvcs Leaving Care,FAL,Third Party Payments,F,Other Establishments,FH,02/02/2018,PAY01032703,CARL,Care Leavers,130,Revenue,Payment to Individual
Brighton & Hove City Council,http://statistics.data.gov.uk/id/local-authority/00ML,Children`s & Education Serv,BVAEDU,Child Srvcs Leaving Care,FAL,Transfer Payments,G,Other Transfer Payments,GD,02/02/2018,PAY01032703,CARL,Care Leavers,450,Revenue,Payment to Individual
Brighton & Hove City Council,http://statistics.data.gov.uk/id/local-authority/00ML,Children`s & Education Serv,BVAEDU,Child Srvcs - Fostering,FLF,Third Party Payments,F,Other Establishments,FH,02/02/2018,PAY01032705,CHIC,Fostering and Adoption,692,Revenue,Payment to Individual
Brighton & Hove City Council,http://statistics.data.gov.uk/id/local-authority/00ML,Children`s & Education Serv,BVAEDU,Child Srvcs - Fostering,FLF,Third Party Payments,F,Other Establishments,FH,02/02/2018,PAY01032707,CHIC,Fostering and Adoption,452,Revenue,Payment to Individual
Brighton & Hove City Council,http://statistics.data.gov.uk/id/local-authority/00ML,Children`s & Education Serv,BVAEDU,Child Srvcs - Fostering,FLF,Third Party Payments,F,Other Establishments,FH,02/02/2018,PAY01032708,CHIC,Fostering and Adoption,847,Revenue,Payment to Individual
Brighton & Hove City Council,http://statistics.data.gov.uk/id/local-authority/00ML,Children`s & Education Serv,BVAEDU,Child Srvcs Leaving Care,FAL,Third Party Payments,F,Other Establishments,FH,02/02/2018,PAY01032708,CARL,Care Leavers,65,Revenue,Payment to Individual
Brighton & Hove City Council,http://statistics.data.gov.uk/id/local-authority/00ML,Children`s & Education Serv,BVAEDU,Child Srvcs Leaving Care,FAL,Transfer Payments,G,Other Transfer Payments,GD,02/02/2018,PAY01032708,CARL,Care Leavers,191,Revenue,Payment to Individual
Brighton & Hove City Council,http://statistics.data.gov.uk/id/local-authority/00ML,Children`s & Education Serv,BVAEDU,Child Srvcs - Fostering,FLF,Third Party Payments,F,Other Establishments,FH,02/02/2018,PAY01032710,CHIC,Fostering and Adoption,692,Revenue,Payment to Individual
Brighton & Hove City Council,http://statistics.data.gov.uk/id/local-authority/00ML,Children`s & Education Serv,BVAEDU,Child Srvcs Leaving Care,FAL,Third Party Payments,F,Other Establishments,FH,02/02/2018,PAY01032712,CARL,Care Leavers,92,Revenue,Payment to Individual
Brighton & Hove City Council,http://statistics.data.gov.uk/id/local-authority/00ML,Children`s & Education Serv,BVAEDU,Child Srvcs Leaving Care,FAL,Transfer Payments,G,Other Transfer Payments,GD,02/02/2018,PAY01032712,CARL,Care Leavers,191,Revenue,Payment to Individual
Brighton & Hove City Council,http://statistics.data.gov.uk/id/local-authority/00ML,Children`s & Education Serv,BVAEDU,Child Srvcs Leaving Care,FAL,Transfer Payments,G,Other Transfer Payments,GD,02/02/2018,PAY01032714,CARL,Care Leavers,259,Revenue,Payment to Individual
Brighton & Hove City Council,http://statistics.data.gov.uk/id/local-authority/00ML,Children`s & Education Serv,BVAEDU,Child Srvcs - Fostering,FLF,Third Party Payments,F,Other Establishments,FH,02/02/2018,PAY01032721,CHIC,Fostering and Adoption,452,Revenue,Payment to Individual
Brighton & Hove City Council,http://statistics.data.gov.uk/id/local-authority/00ML,Children`s & Education Serv,BVAEDU,Child Srvcs Adoption,FAA,Third Party Payments,F,Other Establishments,FH,02/02/2018,PAY01032723,CHIC,Fostering and Adoption,253.2,Revenue,Payment to Individual
Brighton & Hove City Council,http://statistics.data.gov.uk/id/local-authority/00ML,Children`s & Education Serv,BVAEDU,Child Srvcs - Fostering,FLF,Third Party Payments,F,Other Establishments,FH,02/02/2018,PAY01032725,CHIC,Fostering and Adoption,463,Revenue,Payment to Individual
Brighton & Hove City Council,http://statistics.data.gov.uk/id/local-authority/00ML,Children`s & Education Serv,BVAEDU,Child Srvcs - Fostering,FLF,Third Party Payments,F,Other Establishments,FH,02/02/2018,PAY01032726,CHIC,Fostering and Adoption,659,Revenue,Payment to Individual
Brighton & Hove City Council,http://statistics.data.gov.uk/id/local-authority/00ML,Children`s & Education Serv,BVAEDU,Child Srvcs - Fostering,FLF,Third Party Payments,F,Other Establishments,FH,02/02/2018,PAY01032727,CHIC,Fostering and Adoption,1038,Revenue,Payment to Individual
Brighton & Hove City Council,http://statistics.data.gov.uk/id/local-authority/00ML,Children`s & Education Serv,BVAEDU,Child Srvcs - Fostering,FLF,Third Party Payments,F,Other Establishments,FH,02/02/2018,PAY01032728,CHIC,Fostering and Adoption,452,Revenue,Payment to Individual
Brighton & Hove City Council,http://statistics.data.gov.uk/id/local-authority/00ML,Children`s & Education Serv,BVAEDU,Child Srvcs - Fostering,FLF,Third Party Payments,F,Other Establishments,FH,02/02/2018,PAY01032730,CHIC,Fostering and Adoption,422,Revenue,Payment to Individual
Brighton & Hove City Council,http://statistics.data.gov.uk/id/local-authority/00ML,Children`s & Education Serv,BVAEDU,Child Srvcs Leaving Care,FAL,Third Party Payments,F,Other Establishments,FH,02/02/2018,PAY01032732,CARL,Care Leavers,92,Revenue,Payment to Individual
Brighton & Hove City Council,http://statistics.data.gov.uk/id/local-authority/00ML,Children`s & Education Serv,BVAEDU,Child Srvcs Leaving Care,FAL,Transfer Payments,G,Other Transfer Payments,GD,02/02/2018,PAY01032732,CARL,Care Leavers,191,Revenue,Payment to Individual
Brighton & Hove City Council,http://statistics.data.gov.uk/id/local-authority/00ML,Children`s & Education Serv,BVAEDU,Child Srvcs - Fostering,FLF,Third Party Payments,F,Other Establishments,FH,02/02/2018,PAY01032736,CHIC,Fostering and Adoption,258.3,Revenue,Payment to Individual
Brighton & Hove City Council,http://statistics.data.gov.uk/id/local-authority/00ML,Children`s & Education Serv,BVAEDU,Child Srvcs - Fostering,FLF,Third Party Payments,F,Other Establishments,FH,02/02/2018,PAY01032737,CHIC,Fostering and Adoption,601,Revenue,Payment to Individual
Brighton & Hove City Council,http://statistics.data.gov.uk/id/local-authority/00ML,Children`s & Education Serv,BVAEDU,Child Srvcs Leaving Care,FAL,Third Party Payments,F,Other Establishments,FH,02/02/2018,PAY01032737,CARL,Care Leavers,92,Revenue,Payment to Individual
Brighton & Hove City Council,http://statistics.data.gov.uk/id/local-authority/00ML,Children`s & Education Serv,BVAEDU,Child Srvcs Leaving Care,FAL,Transfer Payments,G,Other Transfer Payments,GD,02/02/2018,PAY01032737,CARL,Care Leavers,191,Revenue,Payment to Individual
Brighton & Hove City Council,http://statistics.data.gov.uk/id/local-authority/00ML,Children`s & Education Serv,BVAEDU,Child Srvcs - Fostering,FLF,Third Party Payments,F,Other Establishments,FH,02/02/2018,PAY01032740,CHIC,Fostering and Adoption,768,Revenue,Payment to Individual
Brighton & Hove City Council,http://statistics.data.gov.uk/id/local-authority/00ML,Children`s & Education Serv,BVAEDU,Child Srvcs Adoption,FAA,Third Party Payments,F,Other Establishments,FH,02/02/2018,PAY01032741,CHIC,Fostering and Adoption,601.07,Revenue,Payment to Individual
Brighton & Hove City Council,http://statistics.data.gov.uk/id/local-authority/00ML,Children`s & Education Serv,BVAEDU,Child Srvcs - Fostering,FLF,Third Party Payments,F,Other Establishments,FH,02/02/2018,PAY01032744,CHIC,Fostering and Adoption,422,Revenue,Payment to Individual
Brighton & Hove City Council,http://statistics.data.gov.uk/id/local-authority/00ML,Children`s & Education Serv,BVAEDU,Child Srvcs - Fostering,FLF,Third Party Payments,F,Other Establishments,FH,02/02/2018,PAY01032745,CHIC,Fostering and Adoption,768,Revenue,Payment to Individual
Brighton & Hove City Council,http://statistics.data.gov.uk/id/local-authority/00ML,Children`s & Education Serv,BVAEDU,Child Srvcs Leaving Care,FAL,Third Party Payments,F,Other Establishments,FH,02/02/2018,PAY01032747,CARL,Care Leavers,92,Revenue,Payment to Individual
Brighton & Hove City Council,http://statistics.data.gov.uk/id/local-authority/00ML,Children`s & Education Serv,BVAEDU,Child Srvcs Leaving Care,FAL,Transfer Payments,G,Other Transfer Payments,GD,02/02/2018,PAY01032747,CARL,Care Leavers,191,Revenue,Payment to Individual
Brighton & Hove City Council,http://statistics.data.gov.uk/id/local-authority/00ML,Children`s & Education Serv,BVAEDU,Child Srvcs - Fostering,FLF,Third Party Payments,F,Other Establishments,FH,02/02/2018,PAY01032751,CHIC,Fostering and Adoption,1465,Revenue,Payment to Individual
Brighton & Hove City Council,http://statistics.data.gov.uk/id/local-authority/00ML,Children`s & Education Serv,BVAEDU,Child Srvcs Adoption,FAA,Third Party Payments,F,Other Establishments,FH,02/02/2018,PAY01032752,CHIC,Fostering and Adoption,130.3,Revenue,Payment to Individual
Brighton & Hove City Council,http://statistics.data.gov.uk/id/local-authority/00ML,Children`s & Education Serv,BVAEDU,Child Srvcs - Fostering,FLF,Third Party Payments,F,Other Establishments,FH,02/02/2018,PAY01032752,CHIC,Fostering and Adoption,768,Revenue,Payment to Individual
Brighton & Hove City Council,http://statistics.data.gov.uk/id/local-authority/00ML,Children`s & Education Serv,BVAEDU,Child Srvcs - Fostering,FLF,Third Party Payments,F,Other Establishments,FH,02/02/2018,PAY01032753,CHIC,Fostering and Adoption,904,Revenue,Payment to Individual
Brighton & Hove City Council,http://statistics.data.gov.uk/id/local-authority/00ML,Children`s & Education Serv,BVAEDU,Child Srvcs - Fostering,FLF,Third Party Payments,F,Other Establishments,FH,02/02/2018,PAY01032754,CHIC,Fostering and Adoption,964.57,Revenue,Payment to Individual
Brighton & Hove City Council,http://statistics.data.gov.uk/id/local-authority/00ML,Children`s & Education Serv,BVAEDU,Child Srvcs - Fostering,FLF,Third Party Payments,F,Other Establishments,FH,02/02/2018,PAY01032761,CHIC,Fostering and Adoption,692,Revenue,Payment to Individual
Brighton & Hove City Council,http://statistics.data.gov.uk/id/local-authority/00ML,Children`s & Education Serv,BVAEDU,Child Srvcs - Fostering,FLF,Third Party Payments,F,Other Establishments,FH,02/02/2018,PAY01032762,CHIC,Fostering and Adoption,572,Revenue,Payment to Individual
Brighton & Hove City Council,http://statistics.data.gov.uk/id/local-authority/00ML,Children`s & Education Serv,BVAEDU,Child Srvcs - Fostering,FLF,Third Party Payments,F,Other Establishments,FH,02/02/2018,PAY01032765,CHIC,Fostering and Adoption,384,Revenue,Payment to Individual
Brighton & Hove City Council,http://statistics.data.gov.uk/id/local-authority/00ML,Children`s & Education Serv,BVAEDU,Child Srvcs Adoption,FAA,Third Party Payments,F,Other Establishments,FH,02/02/2018,PAY01032767,CHIC,Fostering and Adoption,355.16,Revenue,Payment to Individual
Brighton & Hove City Council,http://statistics.data.gov.uk/id/local-authority/00ML,Central Support and Overheads,BVACEN,Support Services (SSC),PPT,Supplies and Services,E,Services,EF,02/02/2018,PAY01032772,POLY,Policy,560,Revenue,Hemming Group Ltd (Subscriptions)
Brighton & Hove City Council,http://statistics.data.gov.uk/id/local-authority/00ML,Housing Revenue Account,BVAHOU,Hsing Management - HRA,HGM,Supplies and Services,E,Grants n Subscriptions,EK,02/02/2018,PAY01032773,HPAI,Property & Investment,820,Revenue,HQN Limited
Brighton & Hove City Council,http://statistics.data.gov.uk/id/local-authority/00ML,Non I&E,BVANON,CAP Housing Services GF,4HG,Capital Grants,PF,Capital Grants,PFL5,02/02/2018,PAY01032774,PSHG,Private Sector Housing,3693,Capital,J G & J R Langridge Ltd
Brighton & Hove City Council,http://statistics.data.gov.uk/id/local-authority/00ML,Non I&E,BVANON,Cap - Housing Services - HRA,4HR,New Construction n Conversion,PB,New Construction n Conversion,PBL5,02/02/2018,PAY01032774,HPAI,Property & Investment,3640,Capital,J G & J R Langridge Ltd
Brighton & Hove City Council,http://statistics.data.gov.uk/id/local-authority/00ML,Adult Social Care,BVASOC,ASC Learning Disabilities,ALD,Supplies and Services,E,Equip't Furniture n Materials,EA,02/02/2018,PAY01032775,LDSE,Adults LD Day Services,4.1,Revenue,Kent County Council Commercial Services
Brighton & Hove City Council,http://statistics.data.gov.uk/id/local-authority/00ML,Central Support and Overheads,BVACEN,Holding Accounts,PPH,Transport Related,D,Direct Transport Costs,DA,02/02/2018,PAY01032775,CICL,City Clean,33120.83,Revenue,Kent County Council Commercial Services
Brighton & Hove City Council,http://statistics.data.gov.uk/id/local-authority/00ML,Children`s & Education Serv,BVAEDU,Ed EY Central,EAE,Supplies and Services,E,Equip't Furniture n Materials,EA,02/02/2018,PAY01032775,EYRS,Early Years,22.35,Revenue,Kent County Council Commercial Services
Brighton & Hove City Council,http://statistics.data.gov.uk/id/local-authority/00ML,Cultural and Related Serv,BVACUL,Open Spaces,PEN,Supplies and Services,E,Equip't Furniture n Materials,EA,02/02/2018,PAY01032779,CIPK,City Parks,1413,Revenue,Rigby Taylor Ltd
Brighton & Hove City Council,http://statistics.data.gov.uk/id/local-authority/00ML,Housing General Fund,BVAHOG,Homelessness,HML,Supplies and Services,E,Equip't Furniture n Materials,EA,02/02/2018,PAY01032780,ASSA,Hostel Accommodation,2295,Revenue,Securitel Service Ltd
Brighton & Hove City Council,http://statistics.data.gov.uk/id/local-authority/00ML,Children`s & Education Serv,BVAEDU,Ed Secondary Schools,EJJ,Premises Related,C,Energy Costs,CB,02/02/2018,PAY01032781,SCHL,Schools,8033.65,Revenue,Certas Energy UK Ltd
Brighton & Hove City Council,http://statistics.data.gov.uk/id/local-authority/00ML,Housing General Fund,BVAHOG,Homelessness,HML,Premises Related,C,Repair Maint n Alterations,CA,02/02/2018,PAY01032782,ASSA,Hostel Accommodation,285.5,Revenue,Thomas Door & Window Controls Ltd
Brighton & Hove City Council,http://statistics.data.gov.uk/id/local-authority/00ML,Children`s & Education Serv,BVAEDU,Support Services (SSC),PPT,Transport Related,D,Public Transport,DD,02/02/2018,PAY01032783,SCOR,School Organisation,5655.6,Revenue,Southern Taxis (Brighton) Ltd t/a B&H City Cabs
Brighton & Hove City Council,http://statistics.data.gov.uk/id/local-authority/00ML,Adult Social Care,BVASOC,ASC Learning Disabilities,ALD,Premises Related,C,Cleaning n Domestic Supps,CH,02/02/2018,PAY01032788,LDSE,Adults LD Day Services,76.93,Revenue,Wightman & Parrish Ltd
Brighton & Hove City Council,http://statistics.data.gov.uk/id/local-authority/00ML,Adult Social Care,BVASOC,ASC Learning Disabilities,ALD,Supplies and Services,E,Equip't Furniture n Materials,EA,02/02/2018,PAY01032788,LDSU,Supported Employment,33,Revenue,Wightman & Parrish Ltd
Brighton & Hove City Council,http://statistics.data.gov.uk/id/local-authority/00ML,Adult Social Care,BVASOC,ASC Memory Cognition Support,MEM,Premises Related,C,Cleaning n Domestic Supps,CH,02/02/2018,PAY01032788,RCOP,Resource Centres Older People,78.19,Revenue,Wightman & Parrish Ltd
Brighton & Hove City Council,http://statistics.data.gov.uk/id/local-authority/00ML,Adult Social Care,BVASOC,ASC Memory Cognition Support,MEM,Supplies and Services,E,Clothing Uniforms n Laundry,EC,02/02/2018,PAY01032788,RCOP,Resource Centres Older People,19.64,Revenue,Wightman & Parrish Ltd
Brighton & Hove City Council,http://statistics.data.gov.uk/id/local-authority/00ML,Adult Social Care,BVASOC,ASC Memory Cognition Support,MEM,Supplies and Services,E,Equip't Furniture n Materials,EA,02/02/2018,PAY01032788,RCOP,Resource Centres Older People,60.78,Revenue,Wightman & Parrish Ltd
Brighton & Hove City Council,http://statistics.data.gov.uk/id/local-authority/00ML,Children`s & Education Serv,BVAEDU,Ed EY Central,EAE,Premises Related,C,Cleaning n Domestic Supps,CH,02/02/2018,PAY01032788,EYRS,Early Years,397.97,Revenue,Wightman & Parrish Ltd
Brighton & Hove City Council,http://statistics.data.gov.uk/id/local-authority/00ML,Cultural and Related Serv,BVACUL,Culture and Heritage,CHG,Supplies and Services,E,Equip't Furniture n Materials,EA,02/02/2018,PAY01032788,RPMU,Royal Pavilion and Museums,13.35,Revenue,Wightman & Parrish Ltd
Brighton & Hove City Council,http://statistics.data.gov.uk/id/local-authority/00ML,Cultural and Related Serv,BVACUL,Open Spaces,PEN,Supplies and Services,E,Equip't Furniture n Materials,EA,02/02/2018,PAY01032788,CIPK,City Parks,55.92,Revenue,Wightman & Parrish Ltd
Brighton & Hove City Council,http://statistics.data.gov.uk/id/local-authority/00ML,Housing General Fund,BVAHOG,Homelessness,HML,Premises Related,C,Cleaning n Domestic Supps,CH,02/02/2018,PAY01032788,ASSA,Hostel Accommodation,862.91,Revenue,Wightman & Parrish Ltd
Brighton & Hove City Council,http://statistics.data.gov.uk/id/local-authority/00ML,Children`s & Education Serv,BVAEDU,Ed Ed Other Other,ENF,Third Party Payments,F,Private Contractors,FJ,02/02/2018,PAY01032789,PROP,Property and Design,380,Revenue,Allweather Roofing & Construction Ltd.
Brighton & Hove City Council,http://statistics.data.gov.uk/id/local-authority/00ML,Adult Social Care,BVASOC,ASC Memory Cognition Support,MEM,Customer n Client Receipts,M,Fees n Charges,MB,02/02/2018,PAY01032790,COGN,Memory Cognition Support,397.15,Revenue,Grosvenor Lodge
Brighton & Hove City Council,http://statistics.data.gov.uk/id/local-authority/00ML,Adult Social Care,BVASOC,ASC Learning Disabilities,ALD,Customer n Client Receipts,M,Fees n Charges,MB,02/02/2018,PAY01032792,LDIS,Adults LD Community Care,-402.6,Revenue,SeeAbility
Brighton & Hove City Council,http://statistics.data.gov.uk/id/local-authority/00ML,Adult Social Care,BVASOC,ASC Learning Disabilities,ALD,Third Party Payments,F,Other Establishments,FH,02/02/2018,PAY01032792,LDIS,Adults LD Community Care,4720,Revenue,SeeAbility
Brighton & Hove City Council,http://statistics.data.gov.uk/id/local-authority/00ML,Children`s & Education Serv,BVAEDU,Ed Special Ed,EKE,Third Party Payments,F,Other Agencies,FL,02/02/2018,PAY01032793,SENS,Special Educational Needs,14815,Revenue,Hamilton Lodge School
Brighton & Hove City Council,http://statistics.data.gov.uk/id/local-authority/00ML,Adult Social Care,BVASOC,ASC Learning Disabilities,ALD,Third Party Payments,F,Other Establishments,FH,02/02/2018,PAY01032794,LDIS,Adults LD Community Care,157.77,Revenue,"East Sussex, Brighton & Hove Crossroads Ltd"
Brighton & Hove City Council,http://statistics.data.gov.uk/id/local-authority/00ML,Adult Social Care,BVASOC,Support to Carer,CAR,Other Grants Reimbs n Conts,L,Contributions,LC,02/02/2018,PAY01032794,CONT,Contracts,-130,Revenue,"East Sussex, Brighton & Hove Crossroads Ltd"
Brighton & Hove City Council,http://statistics.data.gov.uk/id/local-authority/00ML,Adult Social Care,BVASOC,Support to Carer,CAR,Third Party Payments,F,Other Establishments,FH,02/02/2018,PAY01032794,CONT,Contracts,4469.63,Revenue,"East Sussex, Brighton & Hove Crossroads Ltd"
Brighton & Hove City Council,http://statistics.data.gov.uk/id/local-authority/00ML,Adult Social Care,BVASOC,ASC Memory Cognition Support,MEM,Third Party Payments,F,Other Establishments,FH,02/02/2018,PAY01032795,COGN,Memory Cognition Support,162.48,Revenue,Hallifax Care Ltd
Brighton & Hove City Council,http://statistics.data.gov.uk/id/local-authority/00ML,Adult Social Care,BVASOC,ASC Mental Health Support,MHP,Third Party Payments,F,Other Establishments,FH,02/02/2018,PAY01032795,MENH,Mental Health Support,226.47,Revenue,Hallifax Care Ltd
Brighton & Hove City Council,http://statistics.data.gov.uk/id/local-authority/00ML,Adult Social Care,BVASOC,ASC Physical Support,PHY,Third Party Payments,F,Other Establishments,FH,02/02/2018,PAY01032795,PHYS,Physical Support,14239.86,Revenue,Hallifax Care Ltd
Brighton & Hove City Council,http://statistics.data.gov.uk/id/local-authority/00ML,Adult Social Care,BVASOC,Social Care Activities,ACM,Supplies and Services,E,Equip't Furniture n Materials,EA,02/02/2018,PAY01032796,ASIT,Assessment and SIT,445.43,Revenue,Optima Low Vision Services Ltd
Brighton & Hove City Council,http://statistics.data.gov.uk/id/local-authority/00ML,Public Health,BVAPHE,Public Health,PHE,Third Party Payments,F,Other Establishments,FH,02/02/2018,PAY01032797,PHCM,PH Commissioning,846.25,Revenue,The Broadway Surgery
Brighton & Hove City Council,http://statistics.data.gov.uk/id/local-authority/00ML,Adult Social Care,BVASOC,ASC Physical Support,PHY,Third Party Payments,F,Other Establishments,FH,02/02/2018,PAY01032798,PHYS,Physical Support,1443,Revenue,Payment to Individual
Brighton & Hove City Council,http://statistics.data.gov.uk/id/local-authority/00ML,Non I&E,BVANON,CAP Education Services,4ED,New Construction n Conversion,PB,New Construction n Conversion,PBL5,02/02/2018,PAY01032801,OEDS,Other Education Support,6100.23,Capital,Electrical Services & Projects Ltd
Brighton & Hove City Council,http://statistics.data.gov.uk/id/local-authority/00ML,Non I&E,BVANON,CAP Transport,4TR,New Construction n Conversion,PB,New Construction n Conversion,PBL5,02/02/2018,PAY01032803,TPRS,Transport Projects and Eng,1792.35,Capital,Edburton Contractors Ltd
Brighton & Hove City Council,http://statistics.data.gov.uk/id/local-authority/00ML,Children`s & Education Serv,BVAEDU,Ed Ed Other Other,ENF,Premises Related,C,Repair Maint n Alterations,CA,02/02/2018,PAY01032804,SCOR,School Organisation,1165,Revenue,P H Buxton & Sons Ltd
Brighton & Hove City Council,http://statistics.data.gov.uk/id/local-authority/00ML,Non I&E,BVANON,CAP Transport,4TR,New Construction n Conversion,PB,New Construction n Conversion,PBL5,02/02/2018,PAY01032805,TPRS,Transport Projects and Eng,20000,Capital,C J Thorne & Co Ltd
Brighton & Hove City Council,http://statistics.data.gov.uk/id/local-authority/00ML,Adult Social Care,BVASOC,ASC Learning Disabilities,ALD,Customer n Client Receipts,M,Fees n Charges,MB,02/02/2018,PAY01032806,LDIS,Adults LD Community Care,-200,Revenue,Mencap H & S Region 4
Brighton & Hove City Council,http://statistics.data.gov.uk/id/local-authority/00ML,Adult Social Care,BVASOC,ASC Learning Disabilities,ALD,Third Party Payments,F,Other Establishments,FH,02/02/2018,PAY01032806,LDIS,Adults LD Community Care,1302.16,Revenue,Mencap H & S Region 4
Brighton & Hove City Council,http://statistics.data.gov.uk/id/local-authority/00ML,Housing General Fund,BVAHOG,Homelessness,HML,Supplies and Services,E,Miscellaneous Expenses,EM,02/02/2018,PAY01032807,TAAS,Temp Accom and Allocations,540,Revenue,Edward Baden Ltd
Brighton & Hove City Council,http://statistics.data.gov.uk/id/local-authority/00ML,Children`s & Education Serv,BVAEDU,Ed Ed Other Other,ENF,Premises Related,C,Repair Maint n Alterations,CA,02/02/2018,PAY01032808,SCOR,School Organisation,4591.88,Revenue,Catercraft Supplies Ltd
Brighton & Hove City Council,http://statistics.data.gov.uk/id/local-authority/00ML,Children`s & Education Serv,BVAEDU,Ed Ed Other Other,ENF,Supplies and Services,E,Equip't Furniture n Materials,EA,02/02/2018,PAY01032808,SCOR,School Organisation,996,Revenue,Catercraft Supplies Ltd
Brighton & Hove City Council,http://statistics.data.gov.uk/id/local-authority/00ML,Adult Social Care,BVASOC,Social Care Activities,ACM,Transport Related,D,Public Transport,DD,02/02/2018,PAY01032809,ASIT,Assessment and SIT,382,Revenue,Brighton & Hove Bus and Coach Co Ltd
Brighton & Hove City Council,http://statistics.data.gov.uk/id/local-authority/00ML,Children`s & Education Serv,BVAEDU,Child Srvcs Leaving Care,FAL,Transfer Payments,G,Other Transfer Payments,GD,02/02/2018,PAY01032809,CARL,Care Leavers,1645.4,Revenue,Brighton & Hove Bus and Coach Co Ltd
Brighton & Hove City Council,http://statistics.data.gov.uk/id/local-authority/00ML,Children`s & Education Serv,BVAEDU,Child Srvcs - Othr LAC Svcs,FLX,Transfer Payments,G,Other Transfer Payments,GD,02/02/2018,PAY01032809,AVFM,Agency Placements\VFM,1645.4,Revenue,Brighton & Hove Bus and Coach Co Ltd
Brighton & Hove City Council,http://statistics.data.gov.uk/id/local-authority/00ML,Highways and Transportation,BVAHRT,Public Transport,PTR,Third Party Payments,F,Private Contractors,FJ,02/02/2018,PAY01032809,TPRS,Transport Projects and Eng,6233.33,Revenue,Brighton & Hove Bus and Coach Co Ltd
Brighton & Hove City Council,http://statistics.data.gov.uk/id/local-authority/00ML,Adult Social Care,BVASOC,ASC Learning Disabilities,ALD,Third Party Payments,F,Other Establishments,FH,02/02/2018,PAY01032810,LDIS,Adults LD Community Care,2032.52,Revenue,Payment to Individual
Brighton & Hove City Council,http://statistics.data.gov.uk/id/local-authority/00ML,Children`s & Education Serv,BVAEDU,Child Srvcs - Fostering,FLF,Third Party Payments,F,Other Establishments,FH,02/02/2018,PAY01032811,CHIC,Fostering and Adoption,970.57,Revenue,Payment to Individual
Brighton & Hove City Council,http://statistics.data.gov.uk/id/local-authority/00ML,Children`s & Education Serv,BVAEDU,Child Srvcs Leaving Care,FAL,Third Party Payments,F,Other Establishments,FH,02/02/2018,PAY01032811,CARL,Care Leavers,92,Revenue,Payment to Individual
Brighton & Hove City Council,http://statistics.data.gov.uk/id/local-authority/00ML,Children`s & Education Serv,BVAEDU,Child Srvcs Leaving Care,FAL,Transfer Payments,G,Other Transfer Payments,GD,02/02/2018,PAY01032811,CARL,Care Leavers,191,Revenue,Payment to Individual
Brighton & Hove City Council,http://statistics.data.gov.uk/id/local-authority/00ML,Environment & Regulatory Serv,BVAERS,Management Services (DEC),MGT,Direct Employees,A,Salaries,AA,02/02/2018,PAY01032812,CICL,City Clean,9780,Revenue,Penna PLC (Recruitment Solutions)
Brighton & Hove City Council,http://statistics.data.gov.uk/id/local-authority/00ML,Adult Social Care,BVASOC,ASC Physical Support,PHY,Third Party Payments,F,Other Establishments,FH,02/02/2018,PAY01032813,PHYS,Physical Support,1850.8,Revenue,Payment to Individual
Brighton & Hove City Council,http://statistics.data.gov.uk/id/local-authority/00ML,Adult Social Care,BVASOC,ASC Physical Support,PHY,Third Party Payments,F,Other Establishments,FH,02/02/2018,PAY01032814,PHYS,Physical Support,880.4,Revenue,Payment to Individual
Brighton & Hove City Council,http://statistics.data.gov.uk/id/local-authority/00ML,Adult Social Care,BVASOC,ASC Physical Support,PHY,Third Party Payments,F,Other Establishments,FH,02/02/2018,PAY01032815,PHYS,Physical Support,276.8,Revenue,Payment to Individual
Brighton & Hove City Council,http://statistics.data.gov.uk/id/local-authority/00ML,Public Health,BVAPHE,Public Health,PHE,Supplies and Services,E,Grants n Subscriptions,EK,02/02/2018,PAY01032816,PHCM,PH Commissioning,2539,Revenue,City Gate Community Projects (FareShare Sussex)
Brighton & Hove City Council,http://statistics.data.gov.uk/id/local-authority/00ML,Housing General Fund,BVAHOG,Homelessness,HML,Premises Related,C,Rents Payable,CC,02/02/2018,PAY01032817,TAAS,Temp Accom and Allocations,975,Revenue,Payment to Individual
Brighton & Hove City Council,http://statistics.data.gov.uk/id/local-authority/00ML,Children`s & Education Serv,BVAEDU,Child Srvcs - Fostering,FLF,Third Party Payments,F,Other Establishments,FH,02/02/2018,PAY01032819,CHIC,Fostering and Adoption,678,Revenue,Payment to Individual
Brighton & Hove City Council,http://statistics.data.gov.uk/id/local-authority/00ML,Children`s & Education Serv,BVAEDU,Child Srvcs - Fostering,FLF,Third Party Payments,F,Other Establishments,FH,02/02/2018,PAY01032820,CHIC,Fostering and Adoption,768,Revenue,Payment to Individual
Brighton & Hove City Council,http://statistics.data.gov.uk/id/local-authority/00ML,Adult Social Care,BVASOC,ASC Physical Support,PHY,Customer n Client Receipts,M,Fees n Charges,MB,02/02/2018,PAY01032821,PHYS,Physical Support,-104,Revenue,Payment to Individual
Brighton & Hove City Council,http://statistics.data.gov.uk/id/local-authority/00ML,Adult Social Care,BVASOC,ASC Physical Support,PHY,Third Party Payments,F,Other Establishments,FH,02/02/2018,PAY01032821,PHYS,Physical Support,683,Revenue,Payment to Individual
Brighton & Hove City Council,http://statistics.data.gov.uk/id/local-authority/00ML,Adult Social Care,BVASOC,ASC Learning Disabilities,ALD,Third Party Payments,F,Other Establishments,FH,02/02/2018,PAY01032822,LDIS,Adults LD Community Care,2132,Revenue,Payment to Individual
Brighton & Hove City Council,http://statistics.data.gov.uk/id/local-authority/00ML,Adult Social Care,BVASOC,ASC Sensory Support,AHV,Customer n Client Receipts,M,Fees n Charges,MB,02/02/2018,PAY01032824,SORY,Sensory Support,-140,Revenue,Payment to Individual
Brighton & Hove City Council,http://statistics.data.gov.uk/id/local-authority/00ML,Adult Social Care,BVASOC,ASC Sensory Support,AHV,Third Party Payments,F,Other Establishments,FH,02/02/2018,PAY01032824,SORY,Sensory Support,1424.6,Revenue,Payment to Individual
Brighton & Hove City Council,http://statistics.data.gov.uk/id/local-authority/00ML,Adult Social Care,BVASOC,ASC Physical Support,PHY,Customer n Client Receipts,M,Fees n Charges,MB,02/02/2018,PAY01032827,PHYS,Physical Support,-296,Revenue,Payment to Individual
Brighton & Hove City Council,http://statistics.data.gov.uk/id/local-authority/00ML,Adult Social Care,BVASOC,ASC Physical Support,PHY,Third Party Payments,F,Other Establishments,FH,02/02/2018,PAY01032827,PHYS,Physical Support,3583.2,Revenue,Payment to Individual
Brighton & Hove City Council,http://statistics.data.gov.uk/id/local-authority/00ML,Housing General Fund,BVAHOG,Homelessness,HML,Premises Related,C,Rents Payable,CC,02/02/2018,PAY01032829,TAAS,Temp Accom and Allocations,1200,Revenue,Payment to Individual
Brighton & Hove City Council,http://statistics.data.gov.uk/id/local-authority/00ML,Non I&E,BVANON,CAP Housing Services GF,4HG,Capital Grants,PF,Capital Grants,PFL5,02/02/2018,PAY01032830,PSHG,Private Sector Housing,1544,Capital,Wealden Services Limited
Brighton & Hove City Council,http://statistics.data.gov.uk/id/local-authority/00ML,Non I&E,BVANON,Cap - Housing Services - HRA,4HR,New Construction n Conversion,PB,New Construction n Conversion,PBL5,02/02/2018,PAY01032830,HPAI,Property & Investment,4855,Capital,Wealden Services Limited
Brighton & Hove City Council,http://statistics.data.gov.uk/id/local-authority/00ML,Children`s & Education Serv,BVAEDU,Child Srvcs - Fostering,FLF,Third Party Payments,F,Other Establishments,FH,02/02/2018,PAY01032831,CHIC,Fostering and Adoption,923,Revenue,Payment to Individual
Brighton & Hove City Council,http://statistics.data.gov.uk/id/local-authority/00ML,Children`s & Education Serv,BVAEDU,Child Srvcs - Fostering,FLF,Third Party Payments,F,Other Establishments,FH,02/02/2018,PAY01032832,CHIC,Fostering and Adoption,580,Revenue,Payment to Individual
Brighton & Hove City Council,http://statistics.data.gov.uk/id/local-authority/00ML,Adult Social Care,BVASOC,Social Care Activities,ACM,Indirect Employees,B,Misc Employee Costs,BP,02/02/2018,PAY01032834,ASIT,Assessment and SIT,456,Revenue,O`Flinn Pharmacy
Brighton & Hove City Council,http://statistics.data.gov.uk/id/local-authority/00ML,Housing General Fund,BVAHOG,Private Sector Hsing Renewal,PHR,Indirect Employees,B,Misc Employee Costs,BP,02/02/2018,PAY01032834,PSHG,Private Sector Housing,12,Revenue,O`Flinn Pharmacy
Brighton & Hove City Council,http://statistics.data.gov.uk/id/local-authority/00ML,Public Health,BVAPHE,Public Health,PHE,Third Party Payments,F,Other Establishments,FH,02/02/2018,PAY01032834,PHCM,PH Commissioning,2050.44,Revenue,O`Flinn Pharmacy
Brighton & Hove City Council,http://statistics.data.gov.uk/id/local-authority/00ML,Adult Social Care,BVASOC,ASC Memory Cognition Support,MEM,Customer n Client Receipts,M,Fees n Charges,MB,02/02/2018,PAY01032835,COGN,Memory Cognition Support,-468,Revenue,Payment to Individual
Brighton & Hove City Council,http://statistics.data.gov.uk/id/local-authority/00ML,Adult Social Care,BVASOC,ASC Memory Cognition Support,MEM,Third Party Payments,F,Other Establishments,FH,02/02/2018,PAY01032835,COGN,Memory Cognition Support,3640,Revenue,Payment to Individual
Brighton & Hove City Council,http://statistics.data.gov.uk/id/local-authority/00ML,Children`s & Education Serv,BVAEDU,Child Srvcs - Fostering,FLF,Third Party Payments,F,Other Establishments,FH,02/02/2018,PAY01032836,CHIC,Fostering and Adoption,806,Revenue,Payment to Individual
Brighton & Hove City Council,http://statistics.data.gov.uk/id/local-authority/00ML,Children`s & Education Serv,BVAEDU,Child Srvcs Leaving Care,FAL,Third Party Payments,F,Other Establishments,FH,02/02/2018,PAY01032836,CARL,Care Leavers,92,Revenue,Payment to Individual
Brighton & Hove City Council,http://statistics.data.gov.uk/id/local-authority/00ML,Children`s & Education Serv,BVAEDU,Child Srvcs Leaving Care,FAL,Transfer Payments,G,Other Transfer Payments,GD,02/02/2018,PAY01032836,CARL,Care Leavers,191,Revenue,Payment to Individual
Brighton & Hove City Council,http://statistics.data.gov.uk/id/local-authority/00ML,Adult Social Care,BVASOC,ASC Physical Support,PHY,Third Party Payments,F,Other Establishments,FH,02/02/2018,PAY01032837,PHYS,Physical Support,306.4,Revenue,Payment to Individual
Brighton & Hove City Council,http://statistics.data.gov.uk/id/local-authority/00ML,Housing General Fund,BVAHOG,Homelessness,HML,Premises Related,C,Rents Payable,CC,02/02/2018,PAY01032838,TAAS,Temp Accom and Allocations,1100,Revenue,CWP Residential LLP
Brighton & Hove City Council,http://statistics.data.gov.uk/id/local-authority/00ML,Housing General Fund,BVAHOG,Homelessness,HML,Premises Related,C,Rents Payable,CC,02/02/2018,PAY01032840,TAAS,Temp Accom and Allocations,885,Revenue,Sareen Properties & Co
Brighton & Hove City Council,http://statistics.data.gov.uk/id/local-authority/00ML,Housing General Fund,BVAHOG,Homelessness,HML,Premises Related,C,Rents Payable,CC,02/02/2018,PAY01032841,TAAS,Temp Accom and Allocations,925,Revenue,Payment to Individual
Brighton & Hove City Council,http://statistics.data.gov.uk/id/local-authority/00ML,Housing General Fund,BVAHOG,Homelessness,HML,Premises Related,C,Repair Maint n Alterations,CA,02/02/2018,PAY01032842,ASSA,Hostel Accommodation,1270,Revenue,JMC Property Services
Brighton & Hove City Council,http://statistics.data.gov.uk/id/local-authority/00ML,Adult Social Care,BVASOC,ASC Physical Support,PHY,Customer n Client Receipts,M,Fees n Charges,MB,02/02/2018,PAY01032844,PHYS,Physical Support,-216,Revenue,Payment to Individual
Brighton & Hove City Council,http://statistics.data.gov.uk/id/local-authority/00ML,Adult Social Care,BVASOC,ASC Physical Support,PHY,Third Party Payments,F,Other Establishments,FH,02/02/2018,PAY01032844,PHYS,Physical Support,1033.6,Revenue,Payment to Individual
Brighton & Hove City Council,http://statistics.data.gov.uk/id/local-authority/00ML,Children`s & Education Serv,BVAEDU,Child Srvcs - Fostering,FLF,Third Party Payments,F,Other Establishments,FH,02/02/2018,PAY01032847,CHIC,Fostering and Adoption,992,Revenue,Payment to Individual
Brighton & Hove City Council,http://statistics.data.gov.uk/id/local-authority/00ML,Adult Social Care,BVASOC,ASC Learning Disabilities,ALD,Indirect Employees,B,Misc Employee Costs,BP,02/02/2018,PAY01032849,LDAS,Adults LD Accomodation Service,12,Revenue,Waremoss Ltd T/A Kamsons Pharmacy
Brighton & Hove City Council,http://statistics.data.gov.uk/id/local-authority/00ML,Adult Social Care,BVASOC,ASC Learning Disabilities,ALD,Indirect Employees,B,Misc Employee Costs,BP,02/02/2018,PAY01032849,LDSE,Adults LD Day Services,48,Revenue,Waremoss Ltd T/A Kamsons Pharmacy
Brighton & Hove City Council,http://statistics.data.gov.uk/id/local-authority/00ML,Adult Social Care,BVASOC,Social Care Activities,ACM,Indirect Employees,B,Misc Employee Costs,BP,02/02/2018,PAY01032849,ASIT,Assessment and SIT,360,Revenue,Waremoss Ltd T/A Kamsons Pharmacy
Brighton & Hove City Council,http://statistics.data.gov.uk/id/local-authority/00ML,Children`s & Education Serv,BVAEDU,Ed EY Central,EAE,Indirect Employees,B,Misc Employee Costs,BP,02/02/2018,PAY01032849,EYRS,Early Years,60,Revenue,Waremoss Ltd T/A Kamsons Pharmacy
Brighton & Hove City Council,http://statistics.data.gov.uk/id/local-authority/00ML,Housing General Fund,BVAHOG,Private Sector Hsing Renewal,PHR,Indirect Employees,B,Misc Employee Costs,BP,02/02/2018,PAY01032849,PSHG,Private Sector Housing,24,Revenue,Waremoss Ltd T/A Kamsons Pharmacy
Brighton & Hove City Council,http://statistics.data.gov.uk/id/local-authority/00ML,Public Health,BVAPHE,Public Health,PHE,Third Party Payments,F,Other Establishments,FH,02/02/2018,PAY01032849,PHCM,PH Commissioning,4807.6,Revenue,Waremoss Ltd T/A Kamsons Pharmacy
Brighton & Hove City Council,http://statistics.data.gov.uk/id/local-authority/00ML,Children`s & Education Serv,BVAEDU,Child Srvcs - Fostering,FLF,Third Party Payments,F,Other Establishments,FH,02/02/2018,PAY01032851,CHIC,Fostering and Adoption,501,Revenue,Payment to Individual
Brighton & Hove City Council,http://statistics.data.gov.uk/id/local-authority/00ML,Children`s & Education Serv,BVAEDU,Child Srvcs - Fostering,FLF,Third Party Payments,F,Other Establishments,FH,02/02/2018,PAY01032852,CHIC,Fostering and Adoption,346,Revenue,Payment to Individual
Brighton & Hove City Council,http://statistics.data.gov.uk/id/local-authority/00ML,Adult Social Care,BVASOC,ASC Learning Disabilities,ALD,Third Party Payments,F,Other Establishments,FH,02/02/2018,PAY01032853,LDIS,Adults LD Community Care,665,Revenue,Payment to Individual
Brighton & Hove City Council,http://statistics.data.gov.uk/id/local-authority/00ML,Public Health,BVAPHE,Public Health,PHE,Third Party Payments,F,Other Establishments,FH,02/02/2018,PAY01032855,PHCM,PH Commissioning,5679.81,Revenue,Preston Park Surgery
Brighton & Hove City Council,http://statistics.data.gov.uk/id/local-authority/00ML,Adult Social Care,BVASOC,ASC Physical Support,PHY,Customer n Client Receipts,M,Fees n Charges,MB,02/02/2018,PAY01032857,PHYS,Physical Support,-52,Revenue,Payment to Individual
Brighton & Hove City Council,http://statistics.data.gov.uk/id/local-authority/00ML,Adult Social Care,BVASOC,ASC Physical Support,PHY,Third Party Payments,F,Other Establishments,FH,02/02/2018,PAY01032857,PHYS,Physical Support,696.6,Revenue,Payment to Individual
Brighton & Hove City Council,http://statistics.data.gov.uk/id/local-authority/00ML,Housing General Fund,BVAHOG,Homelessness,HML,Premises Related,C,Rents Payable,CC,02/02/2018,PAY01032858,TAAS,Temp Accom and Allocations,950,Revenue,Payment to Individual
Brighton & Hove City Council,http://statistics.data.gov.uk/id/local-authority/00ML,Children`s & Education Serv,BVAEDU,Child Srvcs - Fostering,FLF,Third Party Payments,F,Other Establishments,FH,02/02/2018,PAY01032859,CHIC,Fostering and Adoption,768,Revenue,Payment to Individual
Brighton & Hove City Council,http://statistics.data.gov.uk/id/local-authority/00ML,Housing General Fund,BVAHOG,Homelessness,HML,Premises Related,C,Rents Payable,CC,02/02/2018,PAY01032860,TAAS,Temp Accom and Allocations,615,Revenue,NewCoast Ltd
Brighton & Hove City Council,http://statistics.data.gov.uk/id/local-authority/00ML,Adult Social Care,BVASOC,ASC Physical Support,PHY,Third Party Payments,F,Other Establishments,FH,02/02/2018,PAY01032861,PHYS,Physical Support,2164.04,Revenue,Payment to Individual
Brighton & Hove City Council,http://statistics.data.gov.uk/id/local-authority/00ML,Children`s & Education Serv,BVAEDU,Child Srvcs Adoption,FAA,Third Party Payments,F,Other Establishments,FH,02/02/2018,PAY01032862,CHIC,Fostering and Adoption,369.73,Revenue,Payment to Individual
Brighton & Hove City Council,http://statistics.data.gov.uk/id/local-authority/00ML,Children`s & Education Serv,BVAEDU,Ed EY Central,EAE,Supplies and Services,E,Miscellaneous Expenses,EM,02/02/2018,PAY01032863,EYRS,Early Years,525,Revenue,National Day Nurseries Association
Brighton & Hove City Council,http://statistics.data.gov.uk/id/local-authority/00ML,Adult Social Care,BVASOC,ASC Learning Disabilities,ALD,Third Party Payments,F,Other Establishments,FH,02/02/2018,PAY01032866,LDIS,Adults LD Community Care,7836,Revenue,Payment to Individual
Brighton & Hove City Council,http://statistics.data.gov.uk/id/local-authority/00ML,Adult Social Care,BVASOC,ASC Learning Disabilities,ALD,Third Party Payments,F,Other Establishments,FH,02/02/2018,PAY01032867,LDIS,Adults LD Community Care,620.8,Revenue,Payment to Individual
Brighton & Hove City Council,http://statistics.data.gov.uk/id/local-authority/00ML,Adult Social Care,BVASOC,ASC Sensory Support,AHV,Third Party Payments,F,Other Establishments,FH,02/02/2018,PAY01032868,SORY,Sensory Support,298,Revenue,Payment to Individual
Brighton & Hove City Council,http://statistics.data.gov.uk/id/local-authority/00ML,Adult Social Care,BVASOC,ASC Learning Disabilities,ALD,Customer n Client Receipts,M,Fees n Charges,MB,02/02/2018,PAY01032869,LDIS,Adults LD Community Care,-59.2,Revenue,Payment to Individual
Brighton & Hove City Council,http://statistics.data.gov.uk/id/local-authority/00ML,Adult Social Care,BVASOC,ASC Learning Disabilities,ALD,Third Party Payments,F,Other Establishments,FH,02/02/2018,PAY01032869,LDIS,Adults LD Community Care,1853,Revenue,Payment to Individual
Brighton & Hove City Council,http://statistics.data.gov.uk/id/local-authority/00ML,Adult Social Care,BVASOC,ASC Learning Disabilities,ALD,Customer n Client Receipts,M,Fees n Charges,MB,02/02/2018,PAY01032870,LDIS,Adults LD Community Care,-112,Revenue,Payment to Individual
Brighton & Hove City Council,http://statistics.data.gov.uk/id/local-authority/00ML,Adult Social Care,BVASOC,ASC Learning Disabilities,ALD,Third Party Payments,F,Other Establishments,FH,02/02/2018,PAY01032870,LDIS,Adults LD Community Care,3517.8,Revenue,Payment to Individual
Brighton & Hove City Council,http://statistics.data.gov.uk/id/local-authority/00ML,Non I&E,BVANON,CAP Housing Services GF,4HG,Capital Grants,PF,Capital Grants,PFL5,02/02/2018,PAY01032871,PSHG,Private Sector Housing,2223,Capital,Handicare Accessibility Ltd
Brighton & Hove City Council,http://statistics.data.gov.uk/id/local-authority/00ML,Children`s & Education Serv,BVAEDU,Child Srvcs Adoption,FAA,Third Party Payments,F,Other Establishments,FH,02/02/2018,PAY01032872,CHIC,Fostering and Adoption,304.38,Revenue,Payment to Individual
Brighton & Hove City Council,http://statistics.data.gov.uk/id/local-authority/00ML,Children`s & Education Serv,BVAEDU,Child Srvcs - Fostering,FLF,Third Party Payments,F,Other Establishments,FH,02/02/2018,PAY01032872,CHIC,Fostering and Adoption,422,Revenue,Payment to Individual
Brighton & Hove City Council,http://statistics.data.gov.uk/id/local-authority/00ML,Housing General Fund,BVAHOG,Homelessness,HML,Premises Related,C,Rents Payable,CC,02/02/2018,PAY01032873,TAAS,Temp Accom and Allocations,725,Revenue,Payment to Individual
Brighton & Hove City Council,http://statistics.data.gov.uk/id/local-authority/00ML,Housing General Fund,BVAHOG,Hsing Benefits,HGB,Transfer Payments,G,Other Transfer Payments,GD,02/02/2018,PAY01032874,REVS,Revenues and Benefits,560,Revenue,The Now Charity Group Ltd
Brighton & Hove City Council,http://statistics.data.gov.uk/id/local-authority/00ML,Children`s & Education Serv,BVAEDU,Ed Mgmt and Support Services,EMG,Supplies and Services,E,Services,EF,02/02/2018,PAY01032876,SACH,Standards and Achievement,600,Revenue,JanisT Associates Limited
Brighton & Hove City Council,http://statistics.data.gov.uk/id/local-authority/00ML,Children`s & Education Serv,BVAEDU,Ed Mgmt and Support Services,EMG,Supplies and Services,E,Services,EF,02/02/2018,PAY01032876,SCHI,School Improvement,200,Revenue,JanisT Associates Limited
Brighton & Hove City Council,http://statistics.data.gov.uk/id/local-authority/00ML,Children`s & Education Serv,BVAEDU,Child Srvcs - Fostering,FLF,Third Party Payments,F,Other Establishments,FH,02/02/2018,PAY01032877,CHIC,Fostering and Adoption,338,Revenue,Payment to Individual
Brighton & Hove City Council,http://statistics.data.gov.uk/id/local-authority/00ML,Adult Social Care,BVASOC,ASC Learning Disabilities,ALD,Third Party Payments,F,Other Establishments,FH,02/02/2018,PAY01032878,LDIS,Adults LD Community Care,455.6,Revenue,Payment to Individual
Brighton & Hove City Council,http://statistics.data.gov.uk/id/local-authority/00ML,Adult Social Care,BVASOC,ASC Learning Disabilities,ALD,Third Party Payments,F,Other Establishments,FH,02/02/2018,PAY01032879,LDIS,Adults LD Community Care,251.8,Revenue,Payment to Individual
Brighton & Hove City Council,http://statistics.data.gov.uk/id/local-authority/00ML,Adult Social Care,BVASOC,ASC Physical Support,PHY,Third Party Payments,F,Other Establishments,FH,02/02/2018,PAY01032880,PHYS,Physical Support,858,Revenue,Payment to Individual
Brighton & Hove City Council,http://statistics.data.gov.uk/id/local-authority/00ML,Housing General Fund,BVAHOG,Homelessness,HML,Premises Related,C,Rents Payable,CC,02/02/2018,PAY01032881,TAAS,Temp Accom and Allocations,1250,Revenue,Eagle Estates Ltd
Brighton & Hove City Council,http://statistics.data.gov.uk/id/local-authority/00ML,Adult Social Care,BVASOC,ASC Physical Support,PHY,Customer n Client Receipts,M,Fees n Charges,MB,02/02/2018,PAY01032883,PHYS,Physical Support,-144,Revenue,Payment to Individual
Brighton & Hove City Council,http://statistics.data.gov.uk/id/local-authority/00ML,Adult Social Care,BVASOC,ASC Physical Support,PHY,Third Party Payments,F,Other Establishments,FH,02/02/2018,PAY01032883,PHYS,Physical Support,605.8,Revenue,Payment to Individual
Brighton & Hove City Council,http://statistics.data.gov.uk/id/local-authority/00ML,Children`s & Education Serv,BVAEDU,Child Srvcs Adoption,FAA,Third Party Payments,F,Other Establishments,FH,02/02/2018,PAY01032884,CHIC,Fostering and Adoption,809.6,Revenue,Payment to Individual
Brighton & Hove City Council,http://statistics.data.gov.uk/id/local-authority/00ML,Housing General Fund,BVAHOG,Homelessness,HML,Premises Related,C,Rents Payable,CC,02/02/2018,PAY01032889,TAAS,Temp Accom and Allocations,850,Revenue,Geneva Investments  Ltd
Brighton & Hove City Council,http://statistics.data.gov.uk/id/local-authority/00ML,Adult Social Care,BVASOC,ASC Physical Support,PHY,Customer n Client Receipts,M,Fees n Charges,MB,02/02/2018,PAY01032890,PHYS,Physical Support,-108,Revenue,Payment to Individual
Brighton & Hove City Council,http://statistics.data.gov.uk/id/local-authority/00ML,Adult Social Care,BVASOC,ASC Physical Support,PHY,Third Party Payments,F,Other Establishments,FH,02/02/2018,PAY01032890,PHYS,Physical Support,432.2,Revenue,Payment to Individual
Brighton & Hove City Council,http://statistics.data.gov.uk/id/local-authority/00ML,Housing General Fund,BVAHOG,Homelessness,HML,Premises Related,C,Rents Payable,CC,02/02/2018,PAY01032891,TAAS,Temp Accom and Allocations,875,Revenue,Payment to Individual
Brighton & Hove City Council,http://statistics.data.gov.uk/id/local-authority/00ML,Children`s & Education Serv,BVAEDU,Child Srvcs - Fostering,FLF,Third Party Payments,F,Other Establishments,FH,02/02/2018,PAY01032892,CHIC,Fostering and Adoption,222,Revenue,Payment to Individual
Brighton & Hove City Council,http://statistics.data.gov.uk/id/local-authority/00ML,Children`s & Education Serv,BVAEDU,Child Srvcs Leaving Care,FAL,Third Party Payments,F,Other Establishments,FH,02/02/2018,PAY01032892,CARL,Care Leavers,92,Revenue,Payment to Individual
Brighton & Hove City Council,http://statistics.data.gov.uk/id/local-authority/00ML,Children`s & Education Serv,BVAEDU,Child Srvcs Leaving Care,FAL,Transfer Payments,G,Other Transfer Payments,GD,02/02/2018,PAY01032892,CARL,Care Leavers,191,Revenue,Payment to Individual
Brighton & Hove City Council,http://statistics.data.gov.uk/id/local-authority/00ML,Adult Social Care,BVASOC,ASC Sensory Support,AHV,Third Party Payments,F,Other Establishments,FH,02/02/2018,PAY01032893,SORY,Sensory Support,678,Revenue,Payment to Individual
Brighton & Hove City Council,http://statistics.data.gov.uk/id/local-authority/00ML,Adult Social Care,BVASOC,ASC Learning Disabilities,ALD,Customer n Client Receipts,M,Fees n Charges,MB,02/02/2018,PAY01032894,LDIS,Adults LD Community Care,-28,Revenue,Payment to Individual
Brighton & Hove City Council,http://statistics.data.gov.uk/id/local-authority/00ML,Adult Social Care,BVASOC,ASC Learning Disabilities,ALD,Third Party Payments,F,Other Establishments,FH,02/02/2018,PAY01032894,LDIS,Adults LD Community Care,476,Revenue,Payment to Individual
Brighton & Hove City Council,http://statistics.data.gov.uk/id/local-authority/00ML,Adult Social Care,BVASOC,ASC Physical Support,PHY,Third Party Payments,F,Other Establishments,FH,02/02/2018,PAY01032895,PHYS,Physical Support,973.6,Revenue,Payment to Individual
Brighton & Hove City Council,http://statistics.data.gov.uk/id/local-authority/00ML,Children`s & Education Serv,BVAEDU,Child Srvcs - Fostering,FLF,Third Party Payments,F,Other Establishments,FH,02/02/2018,PAY01032896,CHIC,Fostering and Adoption,640,Revenue,Payment to Individual
Brighton & Hove City Council,http://statistics.data.gov.uk/id/local-authority/00ML,Adult Social Care,BVASOC,ASC Learning Disabilities,ALD,Third Party Payments,F,Other Establishments,FH,02/02/2018,PAY01032897,LDIS,Adults LD Community Care,1777.8,Revenue,Payment to Individual
Brighton & Hove City Council,http://statistics.data.gov.uk/id/local-authority/00ML,Adult Social Care,BVASOC,ASC Mental Health Support,MHP,Third Party Payments,F,Other Establishments,FH,02/02/2018,PAY01032898,MENH,Mental Health Support,21260.55,Revenue,Fieldings Rest Home
Brighton & Hove City Council,http://statistics.data.gov.uk/id/local-authority/00ML,Adult Social Care,BVASOC,ASC Physical Support,PHY,Third Party Payments,F,Other Establishments,FH,02/02/2018,PAY01032899,PHYS,Physical Support,1388.2,Revenue,Payment to Individual
Brighton & Hove City Council,http://statistics.data.gov.uk/id/local-authority/00ML,Adult Social Care,BVASOC,ASC Learning Disabilities,ALD,Customer n Client Receipts,M,Fees n Charges,MB,02/02/2018,PAY01032900,LDIS,Adults LD Community Care,-42.68,Revenue,Payment to Individual
Brighton & Hove City Council,http://statistics.data.gov.uk/id/local-authority/00ML,Adult Social Care,BVASOC,ASC Learning Disabilities,ALD,Third Party Payments,F,Other Establishments,FH,02/02/2018,PAY01032900,LDIS,Adults LD Community Care,966.2,Revenue,Payment to Individual
Brighton & Hove City Council,http://statistics.data.gov.uk/id/local-authority/00ML,Housing General Fund,BVAHOG,Homelessness,HML,Premises Related,C,Rents Payable,CC,02/02/2018,PAY01032901,TAAS,Temp Accom and Allocations,1050,Revenue,Payment to Individual
Brighton & Hove City Council,http://statistics.data.gov.uk/id/local-authority/00ML,Cultural and Related Serv,BVACUL,Culture and Heritage,CHG,Supplies and Services,E,Clothing Uniforms n Laundry,EC,02/02/2018,PAY01032903,RPMU,Royal Pavilion and Museums,23.33,Revenue,The Imprest Holder
Brighton & Hove City Council,http://statistics.data.gov.uk/id/local-authority/00ML,Cultural and Related Serv,BVACUL,Culture and Heritage,CHG,Supplies and Services,E,Equip't Furniture n Materials,EA,02/02/2018,PAY01032903,RPMU,Royal Pavilion and Museums,153.02,Revenue,The Imprest Holder
Brighton & Hove City Council,http://statistics.data.gov.uk/id/local-authority/00ML,Cultural and Related Serv,BVACUL,Culture and Heritage,CHG,Supplies and Services,E,Expenses,EJ,02/02/2018,PAY01032903,RPMU,Royal Pavilion and Museums,61.73,Revenue,The Imprest Holder
Brighton & Hove City Council,http://statistics.data.gov.uk/id/local-authority/00ML,Cultural and Related Serv,BVACUL,Culture and Heritage,CHG,Supplies and Services,E,Miscellaneous Expenses,EM,02/02/2018,PAY01032903,RPMU,Royal Pavilion and Museums,185.36,Revenue,The Imprest Holder
Brighton & Hove City Council,http://statistics.data.gov.uk/id/local-authority/00ML,Cultural and Related Serv,BVACUL,Culture and Heritage,CHG,Supplies and Services,E,Print Stat & Gen Office Exps,ED,02/02/2018,PAY01032903,RPMU,Royal Pavilion and Museums,11.49,Revenue,The Imprest Holder
Brighton & Hove City Council,http://statistics.data.gov.uk/id/local-authority/00ML,Cultural and Related Serv,BVACUL,Culture and Heritage,CHG,Supplies and Services,E,Services,EF,02/02/2018,PAY01032903,RPMU,Royal Pavilion and Museums,40,Revenue,The Imprest Holder
Brighton & Hove City Council,http://statistics.data.gov.uk/id/local-authority/00ML,Cultural and Related Serv,BVACUL,Culture and Heritage,CHG,Transport Related,D,Public Transport,DD,02/02/2018,PAY01032903,RPMU,Royal Pavilion and Museums,233.41,Revenue,The Imprest Holder
Brighton & Hove City Council,http://statistics.data.gov.uk/id/local-authority/00ML,Cultural and Related Serv,BVACUL,Management Services (DEC),MGT,Indirect Employees,B,Training,BM,02/02/2018,PAY01032903,RPMU,Royal Pavilion and Museums,75,Revenue,The Imprest Holder
Brighton & Hove City Council,http://statistics.data.gov.uk/id/local-authority/00ML,Cultural and Related Serv,BVACUL,Management Services (DEC),MGT,Transport Related,D,Public Transport,DD,02/02/2018,PAY01032903,RPMU,Royal Pavilion and Museums,34.9,Revenue,The Imprest Holder
Brighton & Hove City Council,http://statistics.data.gov.uk/id/local-authority/00ML,Non-BHC Organisations,BVANON,Non-Council,NNC,Supplies and Services,E,Equip't Furniture n Materials,EA,02/02/2018,PAY01032903,NBHC,Non Council,6.82,Revenue,The Imprest Holder
Brighton & Hove City Council,http://statistics.data.gov.uk/id/local-authority/00ML,Non-BHC Organisations,BVANON,Non-Council,NNC,Supplies and Services,E,Miscellaneous Expenses,EM,02/02/2018,PAY01032903,NBHC,Non Council,10.5,Revenue,The Imprest Holder
Brighton & Hove City Council,http://statistics.data.gov.uk/id/local-authority/00ML,Non-BHC Organisations,BVANON,Non-Council,NNC,Supplies and Services,E,Print Stat & Gen Office Exps,ED,02/02/2018,PAY01032903,NBHC,Non Council,5,Revenue,The Imprest Holder
Brighton & Hove City Council,http://statistics.data.gov.uk/id/local-authority/00ML,Housing General Fund,BVAHOG,Homelessness,HML,Premises Related,C,Rents Payable,CC,02/02/2018,PAY01032904,TAAS,Temp Accom and Allocations,870,Revenue,Payment to Individual
Brighton & Hove City Council,http://statistics.data.gov.uk/id/local-authority/00ML,Children`s & Education Serv,BVAEDU,Child Srvcs Leaving Care,FAL,Transfer Payments,G,Other Transfer Payments,GD,02/02/2018,PAY01032905,CARL,Care Leavers,346,Revenue,Payment to Individual
Brighton & Hove City Council,http://statistics.data.gov.uk/id/local-authority/00ML,Adult Social Care,BVASOC,ASC Learning Disabilities,ALD,Third Party Payments,F,Other Establishments,FH,02/02/2018,PAY01032906,LDIS,Adults LD Community Care,2472.8,Revenue,Payment to Individual
Brighton & Hove City Council,http://statistics.data.gov.uk/id/local-authority/00ML,Children`s & Education Serv,BVAEDU,Child Srvcs - Yth Offender Tm,FYY,Supplies and Services,E,Services,EF,02/02/2018,PAY01032907,ASER,Adolescent Service,3000,Revenue,Restorative Justice Council 
Brighton & Hove City Council,http://statistics.data.gov.uk/id/local-authority/00ML,Adult Social Care,BVASOC,ASC Physical Support,PHY,Customer n Client Receipts,M,Fees n Charges,MB,02/02/2018,PAY01032908,PHYS,Physical Support,-32,Revenue,Payment to Individual
Brighton & Hove City Council,http://statistics.data.gov.uk/id/local-authority/00ML,Adult Social Care,BVASOC,ASC Physical Support,PHY,Third Party Payments,F,Other Establishments,FH,02/02/2018,PAY01032908,PHYS,Physical Support,3704.8,Revenue,Payment to Individual
Brighton & Hove City Council,http://statistics.data.gov.uk/id/local-authority/00ML,Adult Social Care,BVASOC,ASC Physical Support,PHY,Customer n Client Receipts,M,Fees n Charges,MB,02/02/2018,PAY01032909,PHYS,Physical Support,-164,Revenue,Payment to Individual
Brighton & Hove City Council,http://statistics.data.gov.uk/id/local-authority/00ML,Adult Social Care,BVASOC,ASC Physical Support,PHY,Third Party Payments,F,Other Establishments,FH,02/02/2018,PAY01032909,PHYS,Physical Support,797.4,Revenue,Payment to Individual
Brighton & Hove City Council,http://statistics.data.gov.uk/id/local-authority/00ML,Adult Social Care,BVASOC,ASC Learning Disabilities,ALD,Third Party Payments,F,Other Establishments,FH,02/02/2018,PAY01032910,LDIS,Adults LD Community Care,814.4,Revenue,Payment to Individual
Brighton & Hove City Council,http://statistics.data.gov.uk/id/local-authority/00ML,Adult Social Care,BVASOC,ASC Physical Support,PHY,Third Party Payments,F,Other Establishments,FH,02/02/2018,PAY01032911,PHYS,Physical Support,3026.4,Revenue,Payment to Individual
Brighton & Hove City Council,http://statistics.data.gov.uk/id/local-authority/00ML,Adult Social Care,BVASOC,ASC Physical Support,PHY,Third Party Payments,F,Other Establishments,FH,02/02/2018,PAY01032912,PHYS,Physical Support,4941.8,Revenue,Payment to Individual
Brighton & Hove City Council,http://statistics.data.gov.uk/id/local-authority/00ML,Housing General Fund,BVAHOG,Homelessness,HML,Premises Related,C,Rents Payable,CC,02/02/2018,PAY01032913,TAAS,Temp Accom and Allocations,660,Revenue,Payment to Individual
Brighton & Hove City Council,http://statistics.data.gov.uk/id/local-authority/00ML,Adult Social Care,BVASOC,ASC Physical Support,PHY,Third Party Payments,F,Other Establishments,FH,02/02/2018,PAY01032915,PHYS,Physical Support,1030.2,Revenue,Payment to Individual
Brighton & Hove City Council,http://statistics.data.gov.uk/id/local-authority/00ML,Adult Social Care,BVASOC,ASC Physical Support,PHY,Third Party Payments,F,Other Establishments,FH,02/02/2018,PAY01032916,PHYS,Physical Support,553.6,Revenue,Payment to Individual
Brighton & Hove City Council,http://statistics.data.gov.uk/id/local-authority/00ML,Adult Social Care,BVASOC,ASC Physical Support,PHY,Customer n Client Receipts,M,Fees n Charges,MB,02/02/2018,PAY01032917,PHYS,Physical Support,-88,Revenue,Payment to Individual
Brighton & Hove City Council,http://statistics.data.gov.uk/id/local-authority/00ML,Adult Social Care,BVASOC,ASC Physical Support,PHY,Third Party Payments,F,Other Establishments,FH,02/02/2018,PAY01032917,PHYS,Physical Support,2730.4,Revenue,Payment to Individual
Brighton & Hove City Council,http://statistics.data.gov.uk/id/local-authority/00ML,Adult Social Care,BVASOC,ASC Physical Support,PHY,Customer n Client Receipts,M,Fees n Charges,MB,02/02/2018,PAY01032918,PHYS,Physical Support,-244,Revenue,Payment to Individual
Brighton & Hove City Council,http://statistics.data.gov.uk/id/local-authority/00ML,Adult Social Care,BVASOC,ASC Physical Support,PHY,Third Party Payments,F,Other Establishments,FH,02/02/2018,PAY01032918,PHYS,Physical Support,1033.6,Revenue,Payment to Individual
Brighton & Hove City Council,http://statistics.data.gov.uk/id/local-authority/00ML,Adult Social Care,BVASOC,ASC Learning Disabilities,ALD,Third Party Payments,F,Other Establishments,FH,02/02/2018,PAY01032919,LDIS,Adults LD Community Care,318.36,Revenue,Payment to Individual
Brighton & Hove City Council,http://statistics.data.gov.uk/id/local-authority/00ML,Public Health,BVAPHE,Public Health,PHE,Third Party Payments,F,Other Establishments,FH,02/02/2018,PAY01032920,PHCM,PH Commissioning,3229.29,Revenue,Wish Park Surgery
Brighton & Hove City Council,http://statistics.data.gov.uk/id/local-authority/00ML,Housing General Fund,BVAHOG,Homelessness,HML,Premises Related,C,Rents Payable,CC,02/02/2018,PAY01032921,TAAS,Temp Accom and Allocations,925,Revenue,Payment to Individual
Brighton & Hove City Council,http://statistics.data.gov.uk/id/local-authority/00ML,Housing General Fund,BVAHOG,Homelessness,HML,Premises Related,C,Rents Payable,CC,02/02/2018,PAY01032922,TAAS,Temp Accom and Allocations,2750,Revenue,Pepita Investments Ltd
Brighton & Hove City Council,http://statistics.data.gov.uk/id/local-authority/00ML,Housing General Fund,BVAHOG,Homelessness,HML,Premises Related,C,Rents Payable,CC,02/02/2018,PAY01032923,TAAS,Temp Accom and Allocations,920,Revenue,Payment to Individual
Brighton & Hove City Council,http://statistics.data.gov.uk/id/local-authority/00ML,Housing General Fund,BVAHOG,Homelessness,HML,Premises Related,C,Rents Payable,CC,02/02/2018,PAY01032924,TAAS,Temp Accom and Allocations,725,Revenue,Payment to Individual
Brighton & Hove City Council,http://statistics.data.gov.uk/id/local-authority/00ML,Housing General Fund,BVAHOG,Homelessness,HML,Third Party Payments,F,Other Establishments,FH,02/02/2018,PAY01032925,TAAS,Temp Accom and Allocations,350,Revenue,Payment to Individual
Brighton & Hove City Council,http://statistics.data.gov.uk/id/local-authority/00ML,Adult Social Care,BVASOC,ASC Physical Support,PHY,Customer n Client Receipts,M,Fees n Charges,MB,02/02/2018,PAY01032926,PHYS,Physical Support,-212,Revenue,Payment to Individual
Brighton & Hove City Council,http://statistics.data.gov.uk/id/local-authority/00ML,Adult Social Care,BVASOC,ASC Physical Support,PHY,Third Party Payments,F,Other Establishments,FH,02/02/2018,PAY01032926,PHYS,Physical Support,2015.8,Revenue,Payment to Individual
Brighton & Hove City Council,http://statistics.data.gov.uk/id/local-authority/00ML,Housing General Fund,BVAHOG,Homelessness,HML,Premises Related,C,Rents Payable,CC,02/02/2018,PAY01032927,TAAS,Temp Accom and Allocations,975,Revenue,Payment to Individual
Brighton & Hove City Council,http://statistics.data.gov.uk/id/local-authority/00ML,Public Health,BVAPHE,Public Health,PHE,Third Party Payments,F,Health Authorities,FC,02/02/2018,PAY01032929,PHCM,PH Commissioning,507,Revenue,King`s College Hospital NYHS Trust
Brighton & Hove City Council,http://statistics.data.gov.uk/id/local-authority/00ML,Housing General Fund,BVAHOG,Homelessness,HML,Premises Related,C,Rents Payable,CC,02/02/2018,PAY01032930,TAAS,Temp Accom and Allocations,1025,Revenue,Payment to Individual
Brighton & Hove City Council,http://statistics.data.gov.uk/id/local-authority/00ML,Adult Social Care,BVASOC,ASC Physical Support,PHY,Third Party Payments,F,Other Establishments,FH,02/02/2018,PAY01032931,PHYS,Physical Support,611.4,Revenue,Payment to Individual
Brighton & Hove City Council,http://statistics.data.gov.uk/id/local-authority/00ML,Children`s & Education Serv,BVAEDU,Child Srvcs - Fostering,FLF,Third Party Payments,F,Other Establishments,FH,02/02/2018,PAY01032932,CHIC,Fostering and Adoption,384,Revenue,Payment to Individual
Brighton & Hove City Council,http://statistics.data.gov.uk/id/local-authority/00ML,Adult Social Care,BVASOC,ASC Learning Disabilities,ALD,Customer n Client Receipts,M,Fees n Charges,MB,02/02/2018,PAY01032933,LDIS,Adults LD Community Care,-59.2,Revenue,Payment to Individual
Brighton & Hove City Council,http://statistics.data.gov.uk/id/local-authority/00ML,Adult Social Care,BVASOC,ASC Learning Disabilities,ALD,Third Party Payments,F,Other Establishments,FH,02/02/2018,PAY01032933,LDIS,Adults LD Community Care,1084.4,Revenue,Payment to Individual
Brighton & Hove City Council,http://statistics.data.gov.uk/id/local-authority/00ML,Adult Social Care,BVASOC,ASC Learning Disabilities,ALD,Third Party Payments,F,Other Establishments,FH,02/02/2018,PAY01032935,LDIS,Adults LD Community Care,968,Revenue,Payment to Individual
Brighton & Hove City Council,http://statistics.data.gov.uk/id/local-authority/00ML,Adult Social Care,BVASOC,ASC Physical Support,PHY,Third Party Payments,F,Other Establishments,FH,02/02/2018,PAY01032936,PHYS,Physical Support,1433.4,Revenue,Payment to Individual
Brighton & Hove City Council,http://statistics.data.gov.uk/id/local-authority/00ML,Children`s & Education Serv,BVAEDU,Child Srvcs - Fostering,FLF,Third Party Payments,F,Other Establishments,FH,02/02/2018,PAY01032937,CHIC,Fostering and Adoption,452,Revenue,Payment to Individual
Brighton & Hove City Council,http://statistics.data.gov.uk/id/local-authority/00ML,Children`s & Education Serv,BVAEDU,Child Srvcs - Fostering,FLF,Third Party Payments,F,Other Establishments,FH,02/02/2018,PAY01032938,CHIC,Fostering and Adoption,320.57,Revenue,Payment to Individual
Brighton & Hove City Council,http://statistics.data.gov.uk/id/local-authority/00ML,Adult Social Care,BVASOC,ASC Physical Support,PHY,Customer n Client Receipts,M,Fees n Charges,MB,02/02/2018,PAY01032939,PHYS,Physical Support,-212,Revenue,Payment to Individual
Brighton & Hove City Council,http://statistics.data.gov.uk/id/local-authority/00ML,Adult Social Care,BVASOC,ASC Physical Support,PHY,Third Party Payments,F,Other Establishments,FH,02/02/2018,PAY01032939,PHYS,Physical Support,478.6,Revenue,Payment to Individual
Brighton & Hove City Council,http://statistics.data.gov.uk/id/local-authority/00ML,Adult Social Care,BVASOC,ASC Learning Disabilities,ALD,Third Party Payments,F,Other Establishments,FH,02/02/2018,PAY01032940,LDIS,Adults LD Community Care,2184.2,Revenue,Payment to Individual
Brighton & Hove City Council,http://statistics.data.gov.uk/id/local-authority/00ML,Adult Social Care,BVASOC,ASC Learning Disabilities,ALD,Third Party Payments,F,Other Establishments,FH,02/02/2018,PAY01032942,LDIS,Adults LD Community Care,371.8,Revenue,Payment to Individual
Brighton & Hove City Council,http://statistics.data.gov.uk/id/local-authority/00ML,Adult Social Care,BVASOC,ASC Physical Support,PHY,Customer n Client Receipts,M,Fees n Charges,MB,02/02/2018,PAY01032943,PHYS,Physical Support,-312,Revenue,Payment to Individual
Brighton & Hove City Council,http://statistics.data.gov.uk/id/local-authority/00ML,Adult Social Care,BVASOC,ASC Physical Support,PHY,Third Party Payments,F,Other Establishments,FH,02/02/2018,PAY01032943,PHYS,Physical Support,1377,Revenue,Payment to Individual
Brighton & Hove City Council,http://statistics.data.gov.uk/id/local-authority/00ML,Adult Social Care,BVASOC,ASC Physical Support,PHY,Customer n Client Receipts,M,Fees n Charges,MB,02/02/2018,PAY01032944,PHYS,Physical Support,-96,Revenue,Payment to Individual
Brighton & Hove City Council,http://statistics.data.gov.uk/id/local-authority/00ML,Adult Social Care,BVASOC,ASC Physical Support,PHY,Third Party Payments,F,Other Establishments,FH,02/02/2018,PAY01032944,PHYS,Physical Support,1372.2,Revenue,Payment to Individual
Brighton & Hove City Council,http://statistics.data.gov.uk/id/local-authority/00ML,Housing General Fund,BVAHOG,Homelessness,HML,Premises Related,C,Rents Payable,CC,02/02/2018,PAY01032945,TAAS,Temp Accom and Allocations,1000,Revenue,Payment to Individual
Brighton & Hove City Council,http://statistics.data.gov.uk/id/local-authority/00ML,Housing General Fund,BVAHOG,Homelessness,HML,Premises Related,C,Rents Payable,CC,02/02/2018,PAY01032946,TAAS,Temp Accom and Allocations,850,Revenue,Payment to Individual
Brighton & Hove City Council,http://statistics.data.gov.uk/id/local-authority/00ML,Housing General Fund,BVAHOG,Hsing Welfare,HGW,Indirect Employees,B,Training,BM,02/02/2018,PAY01032947,ASSA,Hostel Accommodation,1485,Revenue,Payment to Individual
Brighton & Hove City Council,http://statistics.data.gov.uk/id/local-authority/00ML,Housing General Fund,BVAHOG,Homelessness,HML,Premises Related,C,Rents Payable,CC,02/02/2018,PAY01032948,TAAS,Temp Accom and Allocations,967,Revenue,Payment to Individual
Brighton & Hove City Council,http://statistics.data.gov.uk/id/local-authority/00ML,Adult Social Care,BVASOC,ASC Learning Disabilities,ALD,Third Party Payments,F,Other Establishments,FH,02/02/2018,PAY01032949,LDIS,Adults LD Community Care,714.56,Revenue,Payment to Individual
Brighton & Hove City Council,http://statistics.data.gov.uk/id/local-authority/00ML,Adult Social Care,BVASOC,ASC Physical Support,PHY,Third Party Payments,F,Other Establishments,FH,02/02/2018,PAY01032951,PHYS,Physical Support,559.2,Revenue,Payment to Individual
Brighton & Hove City Council,http://statistics.data.gov.uk/id/local-authority/00ML,Adult Social Care,BVASOC,ASC Physical Support,PHY,Third Party Payments,F,Other Establishments,FH,02/02/2018,PAY01032952,PHYS,Physical Support,389.8,Revenue,Payment to Individual
Brighton & Hove City Council,http://statistics.data.gov.uk/id/local-authority/00ML,Adult Social Care,BVASOC,ASC Physical Support,PHY,Customer n Client Receipts,M,Fees n Charges,MB,02/02/2018,PAY01032953,PHYS,Physical Support,-64,Revenue,Payment to Individual
Brighton & Hove City Council,http://statistics.data.gov.uk/id/local-authority/00ML,Adult Social Care,BVASOC,ASC Physical Support,PHY,Third Party Payments,F,Other Establishments,FH,02/02/2018,PAY01032953,PHYS,Physical Support,698,Revenue,Payment to Individual
Brighton & Hove City Council,http://statistics.data.gov.uk/id/local-authority/00ML,Children`s & Education Serv,BVAEDU,Ed Ed Other Other,ENF,Premises Related,C,Repair Maint n Alterations,CA,02/02/2018,PAY01032954,PROP,Property and Design,1600,Revenue,Cavitytech Systems Ltd
Brighton & Hove City Council,http://statistics.data.gov.uk/id/local-authority/00ML,Adult Social Care,BVASOC,ASC Learning Disabilities,ALD,Third Party Payments,F,Other Establishments,FH,02/02/2018,PAY01032955,LDIS,Adults LD Community Care,1483.2,Revenue,Payment to Individual
Brighton & Hove City Council,http://statistics.data.gov.uk/id/local-authority/00ML,Adult Social Care,BVASOC,ASC Physical Support,PHY,Third Party Payments,F,Other Establishments,FH,02/02/2018,PAY01032956,PHYS,Physical Support,1127,Revenue,Payment to Individual
Brighton & Hove City Council,http://statistics.data.gov.uk/id/local-authority/00ML,Housing General Fund,BVAHOG,Homelessness,HML,Premises Related,C,Rents Payable,CC,02/02/2018,PAY01032957,TAAS,Temp Accom and Allocations,1000,Revenue,Payment to Individual
Brighton & Hove City Council,http://statistics.data.gov.uk/id/local-authority/00ML,Environment & Regulatory Serv,BVAERS,Environmental Health,EVH,Supplies and Services,E,Services,EF,02/02/2018,PAY01032958,PUPO,Public Protection,3361.26,Revenue,Wolstonbury Kennels & Cattery Ltd
Brighton & Hove City Council,http://statistics.data.gov.uk/id/local-authority/00ML,Adult Social Care,BVASOC,ASC Physical Support,PHY,Customer n Client Receipts,M,Fees n Charges,MB,02/02/2018,PAY01032959,PHYS,Physical Support,-168,Revenue,Payment to Individual
Brighton & Hove City Council,http://statistics.data.gov.uk/id/local-authority/00ML,Adult Social Care,BVASOC,ASC Physical Support,PHY,Third Party Payments,F,Other Establishments,FH,02/02/2018,PAY01032959,PHYS,Physical Support,821.8,Revenue,Payment to Individual
Brighton & Hove City Council,http://statistics.data.gov.uk/id/local-authority/00ML,Children`s & Education Serv,BVAEDU,Child Srvcs - Fostering,FLF,Third Party Payments,F,Other Establishments,FH,02/02/2018,PAY01032960,CHIC,Fostering and Adoption,414,Revenue,Payment to Individual
Brighton & Hove City Council,http://statistics.data.gov.uk/id/local-authority/00ML,Central Services to the Public,BVACEN,Support Services (SSC),PPT,Supplies and Services,E,Services,EF,02/02/2018,PAY01032961,REVS,Revenues and Benefits,310,Revenue,Collect Services Limited
Brighton & Hove City Council,http://statistics.data.gov.uk/id/local-authority/00ML,Adult Social Care,BVASOC,ASC Physical Support,PHY,Customer n Client Receipts,M,Fees n Charges,MB,02/02/2018,PAY01032962,PHYS,Physical Support,-152,Revenue,Payment to Individual
Brighton & Hove City Council,http://statistics.data.gov.uk/id/local-authority/00ML,Adult Social Care,BVASOC,ASC Physical Support,PHY,Third Party Payments,F,Other Establishments,FH,02/02/2018,PAY01032962,PHYS,Physical Support,1044.8,Revenue,Payment to Individual
Brighton & Hove City Council,http://statistics.data.gov.uk/id/local-authority/00ML,Adult Social Care,BVASOC,ASC Physical Support,PHY,Third Party Payments,F,Other Establishments,FH,02/02/2018,PAY01032963,PHYS,Physical Support,1586.4,Revenue,Payment to Individual
Brighton & Hove City Council,http://statistics.data.gov.uk/id/local-authority/00ML,Adult Social Care,BVASOC,ASC Physical Support,PHY,Customer n Client Receipts,M,Fees n Charges,MB,02/02/2018,PAY01032967,PHYS,Physical Support,-128,Revenue,Payment to Individual
Brighton & Hove City Council,http://statistics.data.gov.uk/id/local-authority/00ML,Adult Social Care,BVASOC,ASC Physical Support,PHY,Third Party Payments,F,Other Establishments,FH,02/02/2018,PAY01032967,PHYS,Physical Support,1174.6,Revenue,Payment to Individual
Brighton & Hove City Council,http://statistics.data.gov.uk/id/local-authority/00ML,Housing General Fund,BVAHOG,Homelessness,HML,Premises Related,C,Rents Payable,CC,02/02/2018,PAY01032968,TAAS,Temp Accom and Allocations,1000,Revenue,Payment to Individual
Brighton & Hove City Council,http://statistics.data.gov.uk/id/local-authority/00ML,Children`s & Education Serv,BVAEDU,Management Services (DEC),MGT,Supplies and Services,E,Services,EF,02/02/2018,PAY01032969,SOCK,Social Work,600,Revenue,Payment to Individual
Brighton & Hove City Council,http://statistics.data.gov.uk/id/local-authority/00ML,Adult Social Care,BVASOC,ASC Learning Disabilities,ALD,Third Party Payments,F,Other Establishments,FH,02/02/2018,PAY01032970,LDIS,Adults LD Community Care,1736.8,Revenue,Payment to Individual
Brighton & Hove City Council,http://statistics.data.gov.uk/id/local-authority/00ML,Housing General Fund,BVAHOG,Homelessness,HML,Premises Related,C,Rents Payable,CC,02/02/2018,PAY01032972,TAAS,Temp Accom and Allocations,875,Revenue,Payment to Individual
Brighton & Hove City Council,http://statistics.data.gov.uk/id/local-authority/00ML,Housing General Fund,BVAHOG,Homelessness,HML,Premises Related,C,Rents Payable,CC,02/02/2018,PAY01032974,TAAS,Temp Accom and Allocations,1950,Revenue,Payment to Individual
Brighton & Hove City Council,http://statistics.data.gov.uk/id/local-authority/00ML,Adult Social Care,BVASOC,ASC Sensory Support,AHV,Third Party Payments,F,Other Establishments,FH,02/02/2018,PAY01032975,SORY,Sensory Support,579.4,Revenue,Payment to Individual
Brighton & Hove City Council,http://statistics.data.gov.uk/id/local-authority/00ML,Children`s & Education Serv,BVAEDU,Child Srvcs - Fostering,FLF,Third Party Payments,F,Other Establishments,FH,02/02/2018,PAY01032976,CHIC,Fostering and Adoption,1119.43,Revenue,Payment to Individual
Brighton & Hove City Council,http://statistics.data.gov.uk/id/local-authority/00ML,Adult Social Care,BVASOC,ASC Physical Support,PHY,Customer n Client Receipts,M,Fees n Charges,MB,02/02/2018,PAY01032977,PHYS,Physical Support,-32,Revenue,Payment to Individual
Brighton & Hove City Council,http://statistics.data.gov.uk/id/local-authority/00ML,Adult Social Care,BVASOC,ASC Physical Support,PHY,Third Party Payments,F,Other Establishments,FH,02/02/2018,PAY01032977,PHYS,Physical Support,864,Revenue,Payment to Individual
Brighton & Hove City Council,http://statistics.data.gov.uk/id/local-authority/00ML,Adult Social Care,BVASOC,ASC Physical Support,PHY,Third Party Payments,F,Other Establishments,FH,02/02/2018,PAY01032978,PHYS,Physical Support,1220,Revenue,Payment to Individual
Brighton & Hove City Council,http://statistics.data.gov.uk/id/local-authority/00ML,Public Health,BVAPHE,Public Health,PHE,Third Party Payments,F,Other Establishments,FH,02/02/2018,PAY01032979,PHCM,PH Commissioning,13295.28,Revenue,St Peter`s Medical Centre
Brighton & Hove City Council,http://statistics.data.gov.uk/id/local-authority/00ML,Adult Social Care,BVASOC,ASC Physical Support,PHY,Third Party Payments,F,Other Establishments,FH,02/02/2018,PAY01032981,PHYS,Physical Support,744,Revenue,Payment to Individual
Brighton & Hove City Council,http://statistics.data.gov.uk/id/local-authority/00ML,Adult Social Care,BVASOC,ASC Physical Support,PHY,Third Party Payments,F,Other Establishments,FH,02/02/2018,PAY01032983,PHYS,Physical Support,394,Revenue,Payment to Individual
Brighton & Hove City Council,http://statistics.data.gov.uk/id/local-authority/00ML,Adult Social Care,BVASOC,ASC Physical Support,PHY,Third Party Payments,F,Other Establishments,FH,02/02/2018,PAY01032984,PHYS,Physical Support,1338,Revenue,Payment to Individual
Brighton & Hove City Council,http://statistics.data.gov.uk/id/local-authority/00ML,Adult Social Care,BVASOC,ASC Physical Support,PHY,Customer n Client Receipts,M,Fees n Charges,MB,02/02/2018,PAY01032985,PHYS,Physical Support,-59.2,Revenue,Payment to Individual
Brighton & Hove City Council,http://statistics.data.gov.uk/id/local-authority/00ML,Adult Social Care,BVASOC,ASC Physical Support,PHY,Third Party Payments,F,Other Establishments,FH,02/02/2018,PAY01032985,PHYS,Physical Support,2097,Revenue,Payment to Individual
Brighton & Hove City Council,http://statistics.data.gov.uk/id/local-authority/00ML,Adult Social Care,BVASOC,ASC Mental Health Support,MHP,Third Party Payments,F,Other Establishments,FH,02/02/2018,PAY01032986,MENH,Mental Health Support,782.24,Revenue,Payment to Individual
Brighton & Hove City Council,http://statistics.data.gov.uk/id/local-authority/00ML,Children`s & Education Serv,BVAEDU,Child Srvcs - Fostering,FLF,Third Party Payments,F,Other Establishments,FH,02/02/2018,PAY01032987,CHIC,Fostering and Adoption,376,Revenue,Payment to Individual
Brighton & Hove City Council,http://statistics.data.gov.uk/id/local-authority/00ML,Housing General Fund,BVAHOG,Homelessness,HML,Premises Related,C,Rents Payable,CC,02/02/2018,PAY01032988,TAAS,Temp Accom and Allocations,950,Revenue,Payment to Individual
Brighton & Hove City Council,http://statistics.data.gov.uk/id/local-authority/00ML,Housing General Fund,BVAHOG,Homelessness,HML,Premises Related,C,Rents Payable,CC,02/02/2018,PAY01032989,TAAS,Temp Accom and Allocations,850,Revenue,Payment to Individual
Brighton & Hove City Council,http://statistics.data.gov.uk/id/local-authority/00ML,Children`s & Education Serv,BVAEDU,Child Srvcs - Fostering,FLF,Third Party Payments,F,Other Establishments,FH,02/02/2018,PAY01032991,CHIC,Fostering and Adoption,844,Revenue,Payment to Individual
Brighton & Hove City Council,http://statistics.data.gov.uk/id/local-authority/00ML,Children`s & Education Serv,BVAEDU,Child Srvcs Leaving Care,FAL,Third Party Payments,F,Other Establishments,FH,02/02/2018,PAY01032991,CARL,Care Leavers,92,Revenue,Payment to Individual
Brighton & Hove City Council,http://statistics.data.gov.uk/id/local-authority/00ML,Children`s & Education Serv,BVAEDU,Child Srvcs Leaving Care,FAL,Transfer Payments,G,Other Transfer Payments,GD,02/02/2018,PAY01032991,CARL,Care Leavers,191,Revenue,Payment to Individual
Brighton & Hove City Council,http://statistics.data.gov.uk/id/local-authority/00ML,Adult Social Care,BVASOC,ASC Physical Support,PHY,Third Party Payments,F,Other Establishments,FH,02/02/2018,PAY01032992,PHYS,Physical Support,957.4,Revenue,Payment to Individual
Brighton & Hove City Council,http://statistics.data.gov.uk/id/local-authority/00ML,Adult Social Care,BVASOC,ASC Learning Disabilities,ALD,Third Party Payments,F,Other Establishments,FH,02/02/2018,PAY01032993,LDIS,Adults LD Community Care,2056.2,Revenue,Payment to Individual
Brighton & Hove City Council,http://statistics.data.gov.uk/id/local-authority/00ML,Adult Social Care,BVASOC,ASC Mental Health Support,MHP,Third Party Payments,F,Other Establishments,FH,02/02/2018,PAY01032994,MENH,Mental Health Support,4312,Revenue,Payment to Individual
Brighton & Hove City Council,http://statistics.data.gov.uk/id/local-authority/00ML,Adult Social Care,BVASOC,ASC Physical Support,PHY,Third Party Payments,F,Other Establishments,FH,02/02/2018,PAY01032995,PHYS,Physical Support,3644.6,Revenue,Payment to Individual
Brighton & Hove City Council,http://statistics.data.gov.uk/id/local-authority/00ML,Adult Social Care,BVASOC,ASC Learning Disabilities,ALD,Third Party Payments,F,Other Establishments,FH,02/02/2018,PAY01032999,LDIS,Adults LD Community Care,2255.12,Revenue,Payment to Individual
Brighton & Hove City Council,http://statistics.data.gov.uk/id/local-authority/00ML,Highways and Transportation,BVAHRT,Parking Services,PRK,Third Party Payments,F,Other Establishments,FH,02/02/2018,PAY01033000,PARK,Parking Services,525,Revenue,Euro Parking Collection Plc
Brighton & Hove City Council,http://statistics.data.gov.uk/id/local-authority/00ML,Children`s & Education Serv,BVAEDU,Child Srvcs - Fostering,FLF,Third Party Payments,F,Other Establishments,FH,02/02/2018,PAY01033001,CHIC,Fostering and Adoption,1002,Revenue,Payment to Individual
Brighton & Hove City Council,http://statistics.data.gov.uk/id/local-authority/00ML,Children`s & Education Serv,BVAEDU,Child Srvcs - Fostering,FLF,Third Party Payments,F,Other Establishments,FH,02/02/2018,PAY01033002,CHIC,Fostering and Adoption,346,Revenue,Payment to Individual
Brighton & Hove City Council,http://statistics.data.gov.uk/id/local-authority/00ML,Adult Social Care,BVASOC,ASC Physical Support,PHY,Customer n Client Receipts,M,Fees n Charges,MB,02/02/2018,PAY01033003,PHYS,Physical Support,-136,Revenue,Payment to Individual
Brighton & Hove City Council,http://statistics.data.gov.uk/id/local-authority/00ML,Adult Social Care,BVASOC,ASC Physical Support,PHY,Third Party Payments,F,Other Establishments,FH,02/02/2018,PAY01033003,PHYS,Physical Support,6877.2,Revenue,Payment to Individual
Brighton & Hove City Council,http://statistics.data.gov.uk/id/local-authority/00ML,Housing General Fund,BVAHOG,Homelessness,HML,Premises Related,C,Rents Payable,CC,02/02/2018,PAY01033007,TAAS,Temp Accom and Allocations,1150,Revenue,Payment to Individual
Brighton & Hove City Council,http://statistics.data.gov.uk/id/local-authority/00ML,Adult Social Care,BVASOC,ASC Physical Support,PHY,Customer n Client Receipts,M,Fees n Charges,MB,02/02/2018,PAY01033008,PHYS,Physical Support,-56,Revenue,Payment to Individual
Brighton & Hove City Council,http://statistics.data.gov.uk/id/local-authority/00ML,Adult Social Care,BVASOC,ASC Physical Support,PHY,Third Party Payments,F,Other Establishments,FH,02/02/2018,PAY01033008,PHYS,Physical Support,564.8,Revenue,Payment to Individual
Brighton & Hove City Council,http://statistics.data.gov.uk/id/local-authority/00ML,Children`s & Education Serv,BVAEDU,Child Srvcs - Fostering,FLF,Third Party Payments,F,Other Establishments,FH,02/02/2018,PAY01033009,CHIC,Fostering and Adoption,376,Revenue,Payment to Individual
Brighton & Hove City Council,http://statistics.data.gov.uk/id/local-authority/00ML,Housing General Fund,BVAHOG,Homelessness,HML,Premises Related,C,Rents Payable,CC,02/02/2018,PAY01033010,TAAS,Temp Accom and Allocations,800,Revenue,Payment to Individual
Brighton & Hove City Council,http://statistics.data.gov.uk/id/local-authority/00ML,Adult Social Care,BVASOC,ASC Physical Support,PHY,Customer n Client Receipts,M,Fees n Charges,MB,02/02/2018,PAY01033011,PHYS,Physical Support,-52,Revenue,Payment to Individual
Brighton & Hove City Council,http://statistics.data.gov.uk/id/local-authority/00ML,Adult Social Care,BVASOC,ASC Physical Support,PHY,Third Party Payments,F,Other Establishments,FH,02/02/2018,PAY01033011,PHYS,Physical Support,868.6,Revenue,Payment to Individual
Brighton & Hove City Council,http://statistics.data.gov.uk/id/local-authority/00ML,Adult Social Care,BVASOC,ASC Learning Disabilities,ALD,Third Party Payments,F,Other Establishments,FH,02/02/2018,PAY01033012,LDIS,Adults LD Community Care,4.88,Revenue,Care Outlook
Brighton & Hove City Council,http://statistics.data.gov.uk/id/local-authority/00ML,Adult Social Care,BVASOC,ASC Memory Cognition Support,MEM,Third Party Payments,F,Other Establishments,FH,02/02/2018,PAY01033012,COGN,Memory Cognition Support,723.62,Revenue,Care Outlook
Brighton & Hove City Council,http://statistics.data.gov.uk/id/local-authority/00ML,Adult Social Care,BVASOC,ASC Mental Health Support,MHP,Third Party Payments,F,Other Establishments,FH,02/02/2018,PAY01033012,MENH,Mental Health Support,468.54,Revenue,Care Outlook
Brighton & Hove City Council,http://statistics.data.gov.uk/id/local-authority/00ML,Adult Social Care,BVASOC,ASC Physical Support,PHY,Third Party Payments,F,Other Establishments,FH,02/02/2018,PAY01033012,PHYS,Physical Support,6189.28,Revenue,Care Outlook
Brighton & Hove City Council,http://statistics.data.gov.uk/id/local-authority/00ML,Adult Social Care,BVASOC,ASC Memory Cognition Support,MEM,Customer n Client Receipts,M,Fees n Charges,MB,02/02/2018,PAY01033015,COGN,Memory Cognition Support,-244,Revenue,Payment to Individual
Brighton & Hove City Council,http://statistics.data.gov.uk/id/local-authority/00ML,Adult Social Care,BVASOC,ASC Memory Cognition Support,MEM,Third Party Payments,F,Other Establishments,FH,02/02/2018,PAY01033015,COGN,Memory Cognition Support,2819.4,Revenue,Payment to Individual
Brighton & Hove City Council,http://statistics.data.gov.uk/id/local-authority/00ML,Adult Social Care,BVASOC,ASC Learning Disabilities,ALD,Third Party Payments,F,Other Establishments,FH,02/02/2018,PAY01033016,LDIS,Adults LD Community Care,1183.4,Revenue,Payment to Individual
Brighton & Hove City Council,http://statistics.data.gov.uk/id/local-authority/00ML,Adult Social Care,BVASOC,ASC Physical Support,PHY,Third Party Payments,F,Other Establishments,FH,02/02/2018,PAY01033018,PHYS,Physical Support,727,Revenue,Payment to Individual
Brighton & Hove City Council,http://statistics.data.gov.uk/id/local-authority/00ML,Housing General Fund,BVAHOG,Homelessness,HML,Premises Related,C,Rents Payable,CC,02/02/2018,PAY01033019,TAAS,Temp Accom and Allocations,1300,Revenue,Payment to Individual
Brighton & Hove City Council,http://statistics.data.gov.uk/id/local-authority/00ML,Housing General Fund,BVAHOG,Homelessness,HML,Premises Related,C,Rents Payable,CC,02/02/2018,PAY01033020,TAAS,Temp Accom and Allocations,2740,Revenue,L B Longley Investments Limited
Brighton & Hove City Council,http://statistics.data.gov.uk/id/local-authority/00ML,Adult Social Care,BVASOC,ASC Learning Disabilities,ALD,Customer n Client Receipts,M,Fees n Charges,MB,02/02/2018,PAY01033021,LDIS,Adults LD Community Care,-212,Revenue,Payment to Individual
Brighton & Hove City Council,http://statistics.data.gov.uk/id/local-authority/00ML,Adult Social Care,BVASOC,ASC Learning Disabilities,ALD,Third Party Payments,F,Other Establishments,FH,02/02/2018,PAY01033021,LDIS,Adults LD Community Care,842.2,Revenue,Payment to Individual
Brighton & Hove City Council,http://statistics.data.gov.uk/id/local-authority/00ML,Housing General Fund,BVAHOG,Homelessness,HML,Premises Related,C,Rents Payable,CC,02/02/2018,PAY01033022,TAAS,Temp Accom and Allocations,975,Revenue,Payment to Individual
Brighton & Hove City Council,http://statistics.data.gov.uk/id/local-authority/00ML,Adult Social Care,BVASOC,ASC Learning Disabilities,ALD,Third Party Payments,F,Other Establishments,FH,02/02/2018,PAY01033023,LDIS,Adults LD Community Care,355.6,Revenue,Payment to Individual
Brighton & Hove City Council,http://statistics.data.gov.uk/id/local-authority/00ML,Cultural and Related Serv,BVACUL,Culture and Heritage,CHG,Supplies and Services,E,Miscellaneous Expenses,EM,02/02/2018,PAY01033026,RPMU,Royal Pavilion and Museums,3900,Revenue,Payment to Individual
Brighton & Hove City Council,http://statistics.data.gov.uk/id/local-authority/00ML,Adult Social Care,BVASOC,ASC Learning Disabilities,ALD,Customer n Client Receipts,M,Fees n Charges,MB,02/02/2018,PAY01033027,LDIS,Adults LD Community Care,-260,Revenue,Payment to Individual
Brighton & Hove City Council,http://statistics.data.gov.uk/id/local-authority/00ML,Adult Social Care,BVASOC,ASC Learning Disabilities,ALD,Third Party Payments,F,Other Establishments,FH,02/02/2018,PAY01033027,LDIS,Adults LD Community Care,1246,Revenue,Payment to Individual
Brighton & Hove City Council,http://statistics.data.gov.uk/id/local-authority/00ML,Adult Social Care,BVASOC,ASC Learning Disabilities,ALD,Third Party Payments,F,Other Establishments,FH,02/02/2018,PAY01033028,LDIS,Adults LD Community Care,962,Revenue,Payment to Individual
Brighton & Hove City Council,http://statistics.data.gov.uk/id/local-authority/00ML,Adult Social Care,BVASOC,ASC Physical Support,PHY,Customer n Client Receipts,M,Fees n Charges,MB,02/02/2018,PAY01033029,PHYS,Physical Support,-24,Revenue,Payment to Individual
Brighton & Hove City Council,http://statistics.data.gov.uk/id/local-authority/00ML,Adult Social Care,BVASOC,ASC Physical Support,PHY,Third Party Payments,F,Other Establishments,FH,02/02/2018,PAY01033029,PHYS,Physical Support,335.6,Revenue,Payment to Individual
Brighton & Hove City Council,http://statistics.data.gov.uk/id/local-authority/00ML,Adult Social Care,BVASOC,ASC Learning Disabilities,ALD,Customer n Client Receipts,M,Fees n Charges,MB,02/02/2018,PAY01033030,LDIS,Adults LD Community Care,-320,Revenue,Payment to Individual
Brighton & Hove City Council,http://statistics.data.gov.uk/id/local-authority/00ML,Adult Social Care,BVASOC,ASC Learning Disabilities,ALD,Third Party Payments,F,Other Establishments,FH,02/02/2018,PAY01033030,LDIS,Adults LD Community Care,3659.4,Revenue,Payment to Individual
Brighton & Hove City Council,http://statistics.data.gov.uk/id/local-authority/00ML,Housing General Fund,BVAHOG,Homelessness,HML,Premises Related,C,Rents Payable,CC,02/02/2018,PAY01033031,TAAS,Temp Accom and Allocations,850,Revenue,Payment to Individual
Brighton & Hove City Council,http://statistics.data.gov.uk/id/local-authority/00ML,Housing General Fund,BVAHOG,Homelessness,HML,Third Party Payments,F,Other Establishments,FH,02/02/2018,PAY01033032,TAAS,Temp Accom and Allocations,295,Revenue,Key Locations
Brighton & Hove City Council,http://statistics.data.gov.uk/id/local-authority/00ML,Children`s & Education Serv,BVAEDU,Child Srvcs - Fostering,FLF,Third Party Payments,F,Other Establishments,FH,02/02/2018,PAY01033034,CHIC,Fostering and Adoption,564,Revenue,Payment to Individual
Brighton & Hove City Council,http://statistics.data.gov.uk/id/local-authority/00ML,Adult Social Care,BVASOC,ASC Learning Disabilities,ALD,Customer n Client Receipts,M,Fees n Charges,MB,02/02/2018,PAY01033036,LDIS,Adults LD Community Care,-216,Revenue,Payment to Individual
Brighton & Hove City Council,http://statistics.data.gov.uk/id/local-authority/00ML,Adult Social Care,BVASOC,ASC Learning Disabilities,ALD,Third Party Payments,F,Other Establishments,FH,02/02/2018,PAY01033036,LDIS,Adults LD Community Care,3399.4,Revenue,Payment to Individual
Brighton & Hove City Council,http://statistics.data.gov.uk/id/local-authority/00ML,Adult Social Care,BVASOC,ASC Physical Support,PHY,Customer n Client Receipts,M,Fees n Charges,MB,02/02/2018,PAY01033037,PHYS,Physical Support,-168,Revenue,Payment to Individual
Brighton & Hove City Council,http://statistics.data.gov.uk/id/local-authority/00ML,Adult Social Care,BVASOC,ASC Physical Support,PHY,Third Party Payments,F,Other Establishments,FH,02/02/2018,PAY01033037,PHYS,Physical Support,2496,Revenue,Payment to Individual
Brighton & Hove City Council,http://statistics.data.gov.uk/id/local-authority/00ML,Adult Social Care,BVASOC,ASC Learning Disabilities,ALD,Third Party Payments,F,Other Establishments,FH,02/02/2018,PAY01033038,LDIS,Adults LD Community Care,293.6,Revenue,Payment to Individual
Brighton & Hove City Council,http://statistics.data.gov.uk/id/local-authority/00ML,Adult Social Care,BVASOC,ASC Learning Disabilities,ALD,Third Party Payments,F,Other Establishments,FH,02/02/2018,PAY01033039,LDIS,Adults LD Community Care,540.6,Revenue,Payment to Individual
Brighton & Hove City Council,http://statistics.data.gov.uk/id/local-authority/00ML,Adult Social Care,BVASOC,ASC Learning Disabilities,ALD,Third Party Payments,F,Other Establishments,FH,02/02/2018,PAY01033040,LDIS,Adults LD Community Care,2225.2,Revenue,Payment to Individual
Brighton & Hove City Council,http://statistics.data.gov.uk/id/local-authority/00ML,Housing General Fund,BVAHOG,Homelessness,HML,Premises Related,C,Rents Payable,CC,02/02/2018,PAY01033041,TAAS,Temp Accom and Allocations,975,Revenue,Payment to Individual
Brighton & Hove City Council,http://statistics.data.gov.uk/id/local-authority/00ML,Children`s & Education Serv,BVAEDU,Child Srvcs Leaving Care,FAL,Third Party Payments,F,Other Establishments,FH,02/02/2018,PAY01033042,CARL,Care Leavers,65,Revenue,Payment to Individual
Brighton & Hove City Council,http://statistics.data.gov.uk/id/local-authority/00ML,Children`s & Education Serv,BVAEDU,Child Srvcs Leaving Care,FAL,Transfer Payments,G,Other Transfer Payments,GD,02/02/2018,PAY01033042,CARL,Care Leavers,191,Revenue,Payment to Individual
Brighton & Hove City Council,http://statistics.data.gov.uk/id/local-authority/00ML,Adult Social Care,BVASOC,ASC Mental Health Support,MHP,Third Party Payments,F,Other Establishments,FH,02/02/2018,PAY01033043,MENH,Mental Health Support,508.4,Revenue,Payment to Individual
Brighton & Hove City Council,http://statistics.data.gov.uk/id/local-authority/00ML,Highways and Transportation,BVAHRT,Traffic Mgmnt and Road Safety,TMR,Premises Related,C,Repair Maint n Alterations,CA,02/02/2018,PAY01033044,HIGH,Traffic Management,6825.52,Revenue,Trapeze ITS Ltd
Brighton & Hove City Council,http://statistics.data.gov.uk/id/local-authority/00ML,Highways and Transportation,BVAHRT,Traffic Mgmnt and Road Safety,TMR,Supplies and Services,E,Services,EF,02/02/2018,PAY01033044,HIGH,Traffic Management,11368.55,Revenue,Trapeze ITS Ltd
Brighton & Hove City Council,http://statistics.data.gov.uk/id/local-authority/00ML,Adult Social Care,BVASOC,ASC Physical Support,PHY,Third Party Payments,F,Other Establishments,FH,02/02/2018,PAY01033045,PHYS,Physical Support,389.6,Revenue,Payment to Individual
Brighton & Hove City Council,http://statistics.data.gov.uk/id/local-authority/00ML,Children`s & Education Serv,BVAEDU,Child Srvcs - Fostering,FLF,Third Party Payments,F,Other Establishments,FH,02/02/2018,PAY01033046,CHIC,Fostering and Adoption,488,Revenue,Payment to Individual
Brighton & Hove City Council,http://statistics.data.gov.uk/id/local-authority/00ML,Adult Social Care,BVASOC,ASC Learning Disabilities,ALD,Third Party Payments,F,Other Establishments,FH,02/02/2018,PAY01033047,LDIS,Adults LD Community Care,2055,Revenue,Payment to Individual
Brighton & Hove City Council,http://statistics.data.gov.uk/id/local-authority/00ML,Adult Social Care,BVASOC,ASC Learning Disabilities,ALD,Third Party Payments,F,Other Establishments,FH,02/02/2018,PAY01033048,LDIS,Adults LD Community Care,1430.4,Revenue,Payment to Individual
Brighton & Hove City Council,http://statistics.data.gov.uk/id/local-authority/00ML,Adult Social Care,BVASOC,ASC Physical Support,PHY,Customer n Client Receipts,M,Fees n Charges,MB,02/02/2018,PAY01033051,PHYS,Physical Support,-104,Revenue,Payment to Individual
Brighton & Hove City Council,http://statistics.data.gov.uk/id/local-authority/00ML,Adult Social Care,BVASOC,ASC Physical Support,PHY,Third Party Payments,F,Other Establishments,FH,02/02/2018,PAY01033051,PHYS,Physical Support,1356,Revenue,Payment to Individual
Brighton & Hove City Council,http://statistics.data.gov.uk/id/local-authority/00ML,Children`s & Education Serv,BVAEDU,Child Srvcs - Fostering,FLF,Third Party Payments,F,Other Establishments,FH,02/02/2018,PAY01033052,CHIC,Fostering and Adoption,414,Revenue,Payment to Individual
Brighton & Hove City Council,http://statistics.data.gov.uk/id/local-authority/00ML,Children`s & Education Serv,BVAEDU,Child Srvcs - Fostering,FLF,Third Party Payments,F,Other Establishments,FH,02/02/2018,PAY01033053,CHIC,Fostering and Adoption,752,Revenue,Payment to Individual
Brighton & Hove City Council,http://statistics.data.gov.uk/id/local-authority/00ML,Adult Social Care,BVASOC,ASC Mental Health Support,MHP,Third Party Payments,F,Other Establishments,FH,02/02/2018,PAY01033054,MENH,Mental Health Support,508.2,Revenue,Payment to Individual
Brighton & Hove City Council,http://statistics.data.gov.uk/id/local-authority/00ML,Adult Social Care,BVASOC,ASC Physical Support,PHY,Third Party Payments,F,Other Establishments,FH,02/02/2018,PAY01033055,PHYS,Physical Support,1067.4,Revenue,Payment to Individual
Brighton & Hove City Council,http://statistics.data.gov.uk/id/local-authority/00ML,Adult Social Care,BVASOC,ASC Physical Support,PHY,Third Party Payments,F,Other Establishments,FH,02/02/2018,PAY01033057,PHYS,Physical Support,5415.8,Revenue,Payment to Individual
Brighton & Hove City Council,http://statistics.data.gov.uk/id/local-authority/00ML,Adult Social Care,BVASOC,ASC Learning Disabilities,ALD,Customer n Client Receipts,M,Fees n Charges,MB,02/02/2018,PAY01033060,LDIS,Adults LD Community Care,-20,Revenue,Payment to Individual
Brighton & Hove City Council,http://statistics.data.gov.uk/id/local-authority/00ML,Adult Social Care,BVASOC,ASC Learning Disabilities,ALD,Third Party Payments,F,Other Establishments,FH,02/02/2018,PAY01033060,LDIS,Adults LD Community Care,774.4,Revenue,Payment to Individual
Brighton & Hove City Council,http://statistics.data.gov.uk/id/local-authority/00ML,Adult Social Care,BVASOC,ASC Physical Support,PHY,Third Party Payments,F,Other Establishments,FH,02/02/2018,PAY01033061,PHYS,Physical Support,1126.4,Revenue,Payment to Individual
Brighton & Hove City Council,http://statistics.data.gov.uk/id/local-authority/00ML,Housing General Fund,BVAHOG,Homelessness,HML,Premises Related,C,Rents Payable,CC,02/02/2018,PAY01033063,TAAS,Temp Accom and Allocations,1250,Revenue,Payment to Individual
Brighton & Hove City Council,http://statistics.data.gov.uk/id/local-authority/00ML,Adult Social Care,BVASOC,ASC Physical Support,PHY,Customer n Client Receipts,M,Fees n Charges,MB,02/02/2018,PAY01033064,PHYS,Physical Support,-216,Revenue,Payment to Individual
Brighton & Hove City Council,http://statistics.data.gov.uk/id/local-authority/00ML,Adult Social Care,BVASOC,ASC Physical Support,PHY,Third Party Payments,F,Other Establishments,FH,02/02/2018,PAY01033064,PHYS,Physical Support,516.8,Revenue,Payment to Individual
Brighton & Hove City Council,http://statistics.data.gov.uk/id/local-authority/00ML,Adult Social Care,BVASOC,ASC Physical Support,PHY,Customer n Client Receipts,M,Fees n Charges,MB,02/02/2018,PAY01033065,PHYS,Physical Support,-1116,Revenue,Payment to Individual
Brighton & Hove City Council,http://statistics.data.gov.uk/id/local-authority/00ML,Adult Social Care,BVASOC,ASC Physical Support,PHY,Third Party Payments,F,Other Establishments,FH,02/02/2018,PAY01033065,PHYS,Physical Support,1876.4,Revenue,Payment to Individual
Brighton & Hove City Council,http://statistics.data.gov.uk/id/local-authority/00ML,Adult Social Care,BVASOC,ASC Physical Support,PHY,Third Party Payments,F,Other Establishments,FH,02/02/2018,PAY01033067,PHYS,Physical Support,389.8,Revenue,Payment to Individual
Brighton & Hove City Council,http://statistics.data.gov.uk/id/local-authority/00ML,Adult Social Care,BVASOC,ASC Learning Disabilities,ALD,Third Party Payments,F,Other Establishments,FH,02/02/2018,PAY01033068,LDIS,Adults LD Community Care,524.4,Revenue,Payment to Individual
Brighton & Hove City Council,http://statistics.data.gov.uk/id/local-authority/00ML,Adult Social Care,BVASOC,ASC Learning Disabilities,ALD,Third Party Payments,F,Other Establishments,FH,02/02/2018,PAY01033069,LDIS,Adults LD Community Care,5304,Revenue,Payment to Individual
Brighton & Hove City Council,http://statistics.data.gov.uk/id/local-authority/00ML,Adult Social Care,BVASOC,ASC Learning Disabilities,ALD,Third Party Payments,F,Other Establishments,FH,02/02/2018,PAY01033070,LDIS,Adults LD Community Care,346.2,Revenue,Payment to Individual
Brighton & Hove City Council,http://statistics.data.gov.uk/id/local-authority/00ML,Housing General Fund,BVAHOG,Homelessness,HML,Premises Related,C,Rents Payable,CC,02/02/2018,PAY01033071,TAAS,Temp Accom and Allocations,950,Revenue,Payment to Individual
Brighton & Hove City Council,http://statistics.data.gov.uk/id/local-authority/00ML,Public Health,BVAPHE,Public Health,PHE,Third Party Payments,F,Other Establishments,FH,02/02/2018,PAY01033073,PHCM,PH Commissioning,2079.04,Revenue,Ship Street Surgery
Brighton & Hove City Council,http://statistics.data.gov.uk/id/local-authority/00ML,Adult Social Care,BVASOC,ASC Learning Disabilities,ALD,Third Party Payments,F,Other Establishments,FH,02/02/2018,PAY01033074,LDIS,Adults LD Community Care,1981.4,Revenue,Payment to Individual
Brighton & Hove City Council,http://statistics.data.gov.uk/id/local-authority/00ML,Adult Social Care,BVASOC,ASC Learning Disabilities,ALD,Third Party Payments,F,Other Establishments,FH,02/02/2018,PAY01033075,LDIS,Adults LD Community Care,1934.8,Revenue,Payment to Individual
Brighton & Hove City Council,http://statistics.data.gov.uk/id/local-authority/00ML,Children`s & Education Serv,BVAEDU,Child Srvcs - Fostering,FLF,Third Party Payments,F,Other Establishments,FH,02/02/2018,PAY01033076,CHIC,Fostering and Adoption,376,Revenue,Payment to Individual
Brighton & Hove City Council,http://statistics.data.gov.uk/id/local-authority/00ML,Children`s & Education Serv,BVAEDU,Child Srvcs - Fostering,FLF,Third Party Payments,F,Other Establishments,FH,02/02/2018,PAY01033078,CHIC,Fostering and Adoption,730,Revenue,Payment to Individual
Brighton & Hove City Council,http://statistics.data.gov.uk/id/local-authority/00ML,Children`s & Education Serv,BVAEDU,Child Srvcs - Fostering,FLF,Third Party Payments,F,Other Establishments,FH,02/02/2018,PAY01033079,CHIC,Fostering and Adoption,381,Revenue,Payment to Individual
Brighton & Hove City Council,http://statistics.data.gov.uk/id/local-authority/00ML,Adult Social Care,BVASOC,ASC Learning Disabilities,ALD,Third Party Payments,F,Other Establishments,FH,02/02/2018,PAY01033081,LDIS,Adults LD Community Care,254,Revenue,Payment to Individual
Brighton & Hove City Council,http://statistics.data.gov.uk/id/local-authority/00ML,Adult Social Care,BVASOC,ASC Learning Disabilities,ALD,Third Party Payments,F,Other Establishments,FH,02/02/2018,PAY01033082,LDIS,Adults LD Community Care,1039.4,Revenue,Payment to Individual
Brighton & Hove City Council,http://statistics.data.gov.uk/id/local-authority/00ML,Adult Social Care,BVASOC,ASC Learning Disabilities,ALD,Third Party Payments,F,Other Establishments,FH,02/02/2018,PAY01033083,LDIS,Adults LD Community Care,2059.2,Revenue,Payment to Individual
Brighton & Hove City Council,http://statistics.data.gov.uk/id/local-authority/00ML,Adult Social Care,BVASOC,ASC Learning Disabilities,ALD,Third Party Payments,F,Other Establishments,FH,02/02/2018,PAY01033084,LDIS,Adults LD Community Care,598,Revenue,Payment to Individual
Brighton & Hove City Council,http://statistics.data.gov.uk/id/local-authority/00ML,Adult Social Care,BVASOC,ASC Physical Support,PHY,Third Party Payments,F,Other Establishments,FH,02/02/2018,PAY01033085,PHYS,Physical Support,915,Revenue,Payment to Individual
Brighton & Hove City Council,http://statistics.data.gov.uk/id/local-authority/00ML,Adult Social Care,BVASOC,ASC Learning Disabilities,ALD,Third Party Payments,F,Other Establishments,FH,02/02/2018,PAY01033086,LDIS,Adults LD Community Care,525.2,Revenue,Payment to Individual
Brighton & Hove City Council,http://statistics.data.gov.uk/id/local-authority/00ML,Adult Social Care,BVASOC,ASC Physical Support,PHY,Customer n Client Receipts,M,Fees n Charges,MB,02/02/2018,PAY01033087,PHYS,Physical Support,-12,Revenue,Payment to Individual
Brighton & Hove City Council,http://statistics.data.gov.uk/id/local-authority/00ML,Adult Social Care,BVASOC,ASC Physical Support,PHY,Third Party Payments,F,Other Establishments,FH,02/02/2018,PAY01033087,PHYS,Physical Support,915,Revenue,Payment to Individual
Brighton & Hove City Council,http://statistics.data.gov.uk/id/local-authority/00ML,Adult Social Care,BVASOC,ASC Physical Support,PHY,Customer n Client Receipts,M,Fees n Charges,MB,02/02/2018,PAY01033088,PHYS,Physical Support,-180,Revenue,Payment to Individual
Brighton & Hove City Council,http://statistics.data.gov.uk/id/local-authority/00ML,Adult Social Care,BVASOC,ASC Physical Support,PHY,Third Party Payments,F,Other Establishments,FH,02/02/2018,PAY01033088,PHYS,Physical Support,516.2,Revenue,Payment to Individual
Brighton & Hove City Council,http://statistics.data.gov.uk/id/local-authority/00ML,Adult Social Care,BVASOC,ASC Physical Support,PHY,Customer n Client Receipts,M,Fees n Charges,MB,02/02/2018,PAY01033089,PHYS,Physical Support,-104,Revenue,Payment to Individual
Brighton & Hove City Council,http://statistics.data.gov.uk/id/local-authority/00ML,Adult Social Care,BVASOC,ASC Physical Support,PHY,Third Party Payments,F,Other Establishments,FH,02/02/2018,PAY01033089,PHYS,Physical Support,914.4,Revenue,Payment to Individual
Brighton & Hove City Council,http://statistics.data.gov.uk/id/local-authority/00ML,Housing General Fund,BVAHOG,Homelessness,HML,Premises Related,C,Rents Payable,CC,02/02/2018,PAY01033090,TAAS,Temp Accom and Allocations,2400,Revenue,Payment to Individual
Brighton & Hove City Council,http://statistics.data.gov.uk/id/local-authority/00ML,Adult Social Care,BVASOC,ASC Mental Health Support,MHP,Third Party Payments,F,Other Establishments,FH,02/02/2018,PAY01033091,MENH,Mental Health Support,957.4,Revenue,Payment to Individual
Brighton & Hove City Council,http://statistics.data.gov.uk/id/local-authority/00ML,Adult Social Care,BVASOC,ASC Memory Cognition Support,MEM,Customer n Client Receipts,M,Fees n Charges,MB,02/02/2018,PAY01033092,COGN,Memory Cognition Support,-1936.63,Revenue,Hazelgrove Nursing Home
Brighton & Hove City Council,http://statistics.data.gov.uk/id/local-authority/00ML,Adult Social Care,BVASOC,ASC Memory Cognition Support,MEM,Third Party Payments,F,Other Establishments,FH,02/02/2018,PAY01033092,COGN,Memory Cognition Support,10065.1,Revenue,Hazelgrove Nursing Home
Brighton & Hove City Council,http://statistics.data.gov.uk/id/local-authority/00ML,Adult Social Care,BVASOC,ASC Learning Disabilities,ALD,Customer n Client Receipts,M,Fees n Charges,MB,02/02/2018,PAY01033093,LDIS,Adults LD Community Care,-44.4,Revenue,Payment to Individual
Brighton & Hove City Council,http://statistics.data.gov.uk/id/local-authority/00ML,Adult Social Care,BVASOC,ASC Learning Disabilities,ALD,Third Party Payments,F,Other Establishments,FH,02/02/2018,PAY01033093,LDIS,Adults LD Community Care,687.8,Revenue,Payment to Individual
Brighton & Hove City Council,http://statistics.data.gov.uk/id/local-authority/00ML,Children`s & Education Serv,BVAEDU,Child Srvcs - Fostering,FLF,Third Party Payments,F,Other Establishments,FH,02/02/2018,PAY01033094,CHIC,Fostering and Adoption,452,Revenue,Payment to Individual
Brighton & Hove City Council,http://statistics.data.gov.uk/id/local-authority/00ML,Children`s & Education Serv,BVAEDU,Child Srvcs - Fostering,FLF,Third Party Payments,F,Other Establishments,FH,02/02/2018,PAY01033095,CHIC,Fostering and Adoption,698,Revenue,Payment to Individual
Brighton & Hove City Council,http://statistics.data.gov.uk/id/local-authority/00ML,Adult Social Care,BVASOC,ASC Physical Support,PHY,Third Party Payments,F,Other Establishments,FH,02/02/2018,PAY01033096,PHYS,Physical Support,2373.4,Revenue,Payment to Individual
Brighton & Hove City Council,http://statistics.data.gov.uk/id/local-authority/00ML,Adult Social Care,BVASOC,ASC Physical Support,PHY,Third Party Payments,F,Other Establishments,FH,02/02/2018,PAY01033097,PHYS,Physical Support,703,Revenue,Payment to Individual
Brighton & Hove City Council,http://statistics.data.gov.uk/id/local-authority/00ML,Adult Social Care,BVASOC,ASC Learning Disabilities,ALD,Third Party Payments,F,Other Establishments,FH,02/02/2018,PAY01033098,LDIS,Adults LD Community Care,741.4,Revenue,Payment to Individual
Brighton & Hove City Council,http://statistics.data.gov.uk/id/local-authority/00ML,Cultural and Related Serv,BVACUL,Culture and Heritage,CHG,Supplies and Services,E,Services,EF,02/02/2018,PAY01033100,RPMU,Royal Pavilion and Museums,2029.7,Revenue,Annabel Westman Ltd
Brighton & Hove City Council,http://statistics.data.gov.uk/id/local-authority/00ML,Public Health,BVAPHE,Public Health,PHE,Third Party Payments,F,Other Establishments,FH,02/02/2018,PAY01033101,PHCM,PH Commissioning,6390.69,Revenue,Seven Dials Medical Centre  
Brighton & Hove City Council,http://statistics.data.gov.uk/id/local-authority/00ML,Adult Social Care,BVASOC,ASC Learning Disabilities,ALD,Customer n Client Receipts,M,Fees n Charges,MB,02/02/2018,PAY01033104,LDIS,Adults LD Community Care,-40,Revenue,Payment to Individual
Brighton & Hove City Council,http://statistics.data.gov.uk/id/local-authority/00ML,Adult Social Care,BVASOC,ASC Learning Disabilities,ALD,Third Party Payments,F,Other Establishments,FH,02/02/2018,PAY01033104,LDIS,Adults LD Community Care,958.8,Revenue,Payment to Individual
Brighton & Hove City Council,http://statistics.data.gov.uk/id/local-authority/00ML,Adult Social Care,BVASOC,ASC Physical Support,PHY,Third Party Payments,F,Other Establishments,FH,02/02/2018,PAY01033105,PHYS,Physical Support,610,Revenue,Payment to Individual
Brighton & Hove City Council,http://statistics.data.gov.uk/id/local-authority/00ML,Children`s & Education Serv,BVAEDU,Child Srvcs - Fostering,FLF,Third Party Payments,F,Other Establishments,FH,02/02/2018,PAY01033106,CHIC,Fostering and Adoption,346,Revenue,Payment to Individual
Brighton & Hove City Council,http://statistics.data.gov.uk/id/local-authority/00ML,Non I&E,BVANON,CAP Housing Services GF,4HG,Capital Grants,PF,Capital Grants,PFL5,02/02/2018,PAY01033108,PSHG,Private Sector Housing,1540.49,Capital,Mears Home Improvement Limited
Brighton & Hove City Council,http://statistics.data.gov.uk/id/local-authority/00ML,Adult Social Care,BVASOC,ASC Physical Support,PHY,Customer n Client Receipts,M,Fees n Charges,MB,02/02/2018,PAY01033109,PHYS,Physical Support,-132,Revenue,Payment to Individual
Brighton & Hove City Council,http://statistics.data.gov.uk/id/local-authority/00ML,Adult Social Care,BVASOC,ASC Physical Support,PHY,Third Party Payments,F,Other Establishments,FH,02/02/2018,PAY01033109,PHYS,Physical Support,606.4,Revenue,Payment to Individual
Brighton & Hove City Council,http://statistics.data.gov.uk/id/local-authority/00ML,Housing General Fund,BVAHOG,Homelessness,HML,Premises Related,C,Rents Payable,CC,02/02/2018,PAY01033110,TAAS,Temp Accom and Allocations,900,Revenue,Payment to Individual
Brighton & Hove City Council,http://statistics.data.gov.uk/id/local-authority/00ML,Adult Social Care,BVASOC,ASC Learning Disabilities,ALD,Customer n Client Receipts,M,Fees n Charges,MB,02/02/2018,PAY01033111,LDIS,Adults LD Community Care,-172,Revenue,Payment to Individual
Brighton & Hove City Council,http://statistics.data.gov.uk/id/local-authority/00ML,Adult Social Care,BVASOC,ASC Learning Disabilities,ALD,Third Party Payments,F,Other Establishments,FH,02/02/2018,PAY01033111,LDIS,Adults LD Community Care,981.68,Revenue,Payment to Individual
Brighton & Hove City Council,http://statistics.data.gov.uk/id/local-authority/00ML,Adult Social Care,BVASOC,ASC Sensory Support,AHV,Third Party Payments,F,Other Establishments,FH,02/02/2018,PAY01033112,SORY,Sensory Support,254.4,Revenue,Payment to Individual
Brighton & Hove City Council,http://statistics.data.gov.uk/id/local-authority/00ML,Central Support and Overheads,BVACEN,Support Services (SSC),PPT,Supplies and Services,E,Miscellaneous Expenses,EM,02/02/2018,PAY01033115,FINS,Financial Services,464.64,Revenue,Paypoint Network Ltd
Brighton & Hove City Council,http://statistics.data.gov.uk/id/local-authority/00ML,Adult Social Care,BVASOC,ASC Physical Support,PHY,Third Party Payments,F,Other Establishments,FH,02/02/2018,PAY01033116,PHYS,Physical Support,1829.2,Revenue,Payment to Individual
Brighton & Hove City Council,http://statistics.data.gov.uk/id/local-authority/00ML,Adult Social Care,BVASOC,ASC Physical Support,PHY,Customer n Client Receipts,M,Fees n Charges,MB,02/02/2018,PAY01033117,PHYS,Physical Support,-60,Revenue,Payment to Individual
Brighton & Hove City Council,http://statistics.data.gov.uk/id/local-authority/00ML,Adult Social Care,BVASOC,ASC Physical Support,PHY,Third Party Payments,F,Other Establishments,FH,02/02/2018,PAY01033117,PHYS,Physical Support,1350.4,Revenue,Payment to Individual
Brighton & Hove City Council,http://statistics.data.gov.uk/id/local-authority/00ML,Adult Social Care,BVASOC,ASC Physical Support,PHY,Customer n Client Receipts,M,Fees n Charges,MB,02/02/2018,PAY01033118,PHYS,Physical Support,-276,Revenue,Payment to Individual
Brighton & Hove City Council,http://statistics.data.gov.uk/id/local-authority/00ML,Adult Social Care,BVASOC,ASC Physical Support,PHY,Third Party Payments,F,Other Establishments,FH,02/02/2018,PAY01033118,PHYS,Physical Support,931.6,Revenue,Payment to Individual
Brighton & Hove City Council,http://statistics.data.gov.uk/id/local-authority/00ML,Children`s & Education Serv,BVAEDU,Child Srvcs Adoption,FAA,Third Party Payments,F,Other Establishments,FH,02/02/2018,PAY01033120,CHIC,Fostering and Adoption,270.5,Revenue,Payment to Individual
Brighton & Hove City Council,http://statistics.data.gov.uk/id/local-authority/00ML,Children`s & Education Serv,BVAEDU,Child Srvcs - Fostering,FLF,Third Party Payments,F,Other Establishments,FH,02/02/2018,PAY01033120,CHIC,Fostering and Adoption,346,Revenue,Payment to Individual
Brighton & Hove City Council,http://statistics.data.gov.uk/id/local-authority/00ML,Housing Revenue Account,BVAHOU,Hsing Management - HRA,HGM,Premises Related,C,Repair Maint n Alterations,CA,02/02/2018,PAY01033121,HPAI,Property & Investment,4054.36,Revenue,Liftec Lifts Ltd
Brighton & Hove City Council,http://statistics.data.gov.uk/id/local-authority/00ML,Adult Social Care,BVASOC,ASC Physical Support,PHY,Third Party Payments,F,Other Establishments,FH,02/02/2018,PAY01033122,PHYS,Physical Support,610,Revenue,Payment to Individual
Brighton & Hove City Council,http://statistics.data.gov.uk/id/local-authority/00ML,Public Health,BVAPHE,Public Health,PHE,Third Party Payments,F,Other Establishments,FH,02/02/2018,PAY01033123,PHCM,PH Commissioning,4906.21,Revenue,Carden Surgery
Brighton & Hove City Council,http://statistics.data.gov.uk/id/local-authority/00ML,Adult Social Care,BVASOC,ASC Learning Disabilities,ALD,Customer n Client Receipts,M,Fees n Charges,MB,02/02/2018,PAY01033125,LDIS,Adults LD Community Care,-188,Revenue,Payment to Individual
Brighton & Hove City Council,http://statistics.data.gov.uk/id/local-authority/00ML,Adult Social Care,BVASOC,ASC Learning Disabilities,ALD,Third Party Payments,F,Other Establishments,FH,02/02/2018,PAY01033125,LDIS,Adults LD Community Care,2678.8,Revenue,Payment to Individual
Brighton & Hove City Council,http://statistics.data.gov.uk/id/local-authority/00ML,Adult Social Care,BVASOC,ASC Learning Disabilities,ALD,Customer n Client Receipts,M,Fees n Charges,MB,02/02/2018,PAY01033126,LDIS,Adults LD Community Care,-164,Revenue,Payment to Individual
Brighton & Hove City Council,http://statistics.data.gov.uk/id/local-authority/00ML,Adult Social Care,BVASOC,ASC Learning Disabilities,ALD,Third Party Payments,F,Other Establishments,FH,02/02/2018,PAY01033126,LDIS,Adults LD Community Care,2669.4,Revenue,Payment to Individual
Brighton & Hove City Council,http://statistics.data.gov.uk/id/local-authority/00ML,Adult Social Care,BVASOC,ASC Learning Disabilities,ALD,Customer n Client Receipts,M,Fees n Charges,MB,02/02/2018,PAY01033127,LDIS,Adults LD Community Care,-176,Revenue,Payment to Individual
Brighton & Hove City Council,http://statistics.data.gov.uk/id/local-authority/00ML,Adult Social Care,BVASOC,ASC Learning Disabilities,ALD,Third Party Payments,F,Other Establishments,FH,02/02/2018,PAY01033127,LDIS,Adults LD Community Care,3453.4,Revenue,Payment to Individual
Brighton & Hove City Council,http://statistics.data.gov.uk/id/local-authority/00ML,Children`s & Education Serv,BVAEDU,Child Srvcs - Fostering,FLF,Third Party Payments,F,Other Establishments,FH,02/02/2018,PAY01033129,CHIC,Fostering and Adoption,422,Revenue,Payment to Individual
Brighton & Hove City Council,http://statistics.data.gov.uk/id/local-authority/00ML,Adult Social Care,BVASOC,ASC Physical Support,PHY,Customer n Client Receipts,M,Fees n Charges,MB,02/02/2018,PAY01033132,PHYS,Physical Support,-100,Revenue,Payment to Individual
Brighton & Hove City Council,http://statistics.data.gov.uk/id/local-authority/00ML,Adult Social Care,BVASOC,ASC Physical Support,PHY,Third Party Payments,F,Other Establishments,FH,02/02/2018,PAY01033132,PHYS,Physical Support,389.8,Revenue,Payment to Individual
Brighton & Hove City Council,http://statistics.data.gov.uk/id/local-authority/00ML,Children`s & Education Serv,BVAEDU,Child Srvcs - Fostering,FLF,Third Party Payments,F,Other Establishments,FH,02/02/2018,PAY01033134,CHIC,Fostering and Adoption,376,Revenue,Payment to Individual
Brighton & Hove City Council,http://statistics.data.gov.uk/id/local-authority/00ML,Adult Social Care,BVASOC,ASC Physical Support,PHY,Third Party Payments,F,Other Establishments,FH,02/02/2018,PAY01033136,PHYS,Physical Support,827.4,Revenue,Payment to Individual
Brighton & Hove City Council,http://statistics.data.gov.uk/id/local-authority/00ML,Adult Social Care,BVASOC,ASC Physical Support,PHY,Customer n Client Receipts,M,Fees n Charges,MB,02/02/2018,PAY01033137,PHYS,Physical Support,-52,Revenue,Payment to Individual
Brighton & Hove City Council,http://statistics.data.gov.uk/id/local-authority/00ML,Adult Social Care,BVASOC,ASC Physical Support,PHY,Third Party Payments,F,Other Establishments,FH,02/02/2018,PAY01033137,PHYS,Physical Support,658.4,Revenue,Payment to Individual
Brighton & Hove City Council,http://statistics.data.gov.uk/id/local-authority/00ML,Children`s & Education Serv,BVAEDU,Child Srvcs - Fostering,FLF,Third Party Payments,F,Other Establishments,FH,02/02/2018,PAY01033138,CHIC,Fostering and Adoption,376,Revenue,Payment to Individual
Brighton & Hove City Council,http://statistics.data.gov.uk/id/local-authority/00ML,Public Health,BVAPHE,Public Health,PHE,Third Party Payments,F,Other Establishments,FH,02/02/2018,PAY01033139,PHCM,PH Commissioning,5536.85,Revenue,Benfield Valley Healthcare Hub
Brighton & Hove City Council,http://statistics.data.gov.uk/id/local-authority/00ML,Housing General Fund,BVAHOG,Homelessness,HML,Premises Related,C,Rents Payable,CC,02/02/2018,PAY01033140,TAAS,Temp Accom and Allocations,1000,Revenue,Payment to Individual
Brighton & Hove City Council,http://statistics.data.gov.uk/id/local-authority/00ML,Children`s & Education Serv,BVAEDU,Child Srvcs - Fostering,FLF,Third Party Payments,F,Other Establishments,FH,02/02/2018,PAY01033142,CHIC,Fostering and Adoption,452,Revenue,Payment to Individual
Brighton & Hove City Council,http://statistics.data.gov.uk/id/local-authority/00ML,Adult Social Care,BVASOC,ASC Mental Health Support,MHP,Third Party Payments,F,Other Establishments,FH,02/02/2018,PAY01033143,MENH,Mental Health Support,254,Revenue,Payment to Individual
Brighton & Hove City Council,http://statistics.data.gov.uk/id/local-authority/00ML,Adult Social Care,BVASOC,ASC Physical Support,PHY,Third Party Payments,F,Other Establishments,FH,02/02/2018,PAY01033144,PHYS,Physical Support,3760.04,Revenue,Payment to Individual
Brighton & Hove City Council,http://statistics.data.gov.uk/id/local-authority/00ML,Housing General Fund,BVAHOG,Homelessness,HML,Premises Related,C,Rents Payable,CC,02/02/2018,PAY01033145,TAAS,Temp Accom and Allocations,670,Revenue,Payment to Individual
Brighton & Hove City Council,http://statistics.data.gov.uk/id/local-authority/00ML,Cultural and Related Serv,BVACUL,Culture and Heritage,CHG,Supplies and Services,E,Miscellaneous Expenses,EM,02/02/2018,PAY01033146,RPMU,Royal Pavilion and Museums,600,Revenue,Payment to Individual
Brighton & Hove City Council,http://statistics.data.gov.uk/id/local-authority/00ML,Housing General Fund,BVAHOG,Homelessness,HML,Premises Related,C,Rents Payable,CC,02/02/2018,PAY01033147,TAAS,Temp Accom and Allocations,1000,Revenue,Payment to Individual
Brighton & Hove City Council,http://statistics.data.gov.uk/id/local-authority/00ML,Housing General Fund,BVAHOG,Homelessness,HML,Premises Related,C,Repair Maint n Alterations,CA,02/02/2018,PAY01033148,TAAS,Temp Accom and Allocations,460,Revenue,Gas-Elec
Brighton & Hove City Council,http://statistics.data.gov.uk/id/local-authority/00ML,Adult Social Care,BVASOC,ASC Physical Support,PHY,Third Party Payments,F,Other Establishments,FH,02/02/2018,PAY01033149,PHYS,Physical Support,737,Revenue,Payment to Individual
Brighton & Hove City Council,http://statistics.data.gov.uk/id/local-authority/00ML,Adult Social Care,BVASOC,ASC Physical Support,PHY,Customer n Client Receipts,M,Fees n Charges,MB,02/02/2018,PAY01033150,PHYS,Physical Support,-120,Revenue,Payment to Individual
Brighton & Hove City Council,http://statistics.data.gov.uk/id/local-authority/00ML,Adult Social Care,BVASOC,ASC Physical Support,PHY,Third Party Payments,F,Other Establishments,FH,02/02/2018,PAY01033150,PHYS,Physical Support,694.6,Revenue,Payment to Individual
Brighton & Hove City Council,http://statistics.data.gov.uk/id/local-authority/00ML,Adult Social Care,BVASOC,ASC Learning Disabilities,ALD,Customer n Client Receipts,M,Fees n Charges,MB,02/02/2018,PAY01033151,LDIS,Adults LD Community Care,-68,Revenue,Payment to Individual
Brighton & Hove City Council,http://statistics.data.gov.uk/id/local-authority/00ML,Adult Social Care,BVASOC,ASC Learning Disabilities,ALD,Third Party Payments,F,Other Establishments,FH,02/02/2018,PAY01033151,LDIS,Adults LD Community Care,1755.6,Revenue,Payment to Individual
Brighton & Hove City Council,http://statistics.data.gov.uk/id/local-authority/00ML,Housing General Fund,BVAHOG,Homelessness,HML,Premises Related,C,Rents Payable,CC,02/02/2018,PAY01033152,TAAS,Temp Accom and Allocations,950,Revenue,Payment to Individual
Brighton & Hove City Council,http://statistics.data.gov.uk/id/local-authority/00ML,Central Support and Overheads,BVACEN,Support Services (SSC),PPT,Supplies and Services,E,Services,EF,02/02/2018,PAY01033153,LEGS,Legal Services,2100,Revenue,Payment to Individual
Brighton & Hove City Council,http://statistics.data.gov.uk/id/local-authority/00ML,Adult Social Care,BVASOC,ASC Physical Support,PHY,Customer n Client Receipts,M,Fees n Charges,MB,02/02/2018,PAY01033154,PHYS,Physical Support,-40,Revenue,Payment to Individual
Brighton & Hove City Council,http://statistics.data.gov.uk/id/local-authority/00ML,Adult Social Care,BVASOC,ASC Physical Support,PHY,Third Party Payments,F,Other Establishments,FH,02/02/2018,PAY01033154,PHYS,Physical Support,1906.4,Revenue,Payment to Individual
Brighton & Hove City Council,http://statistics.data.gov.uk/id/local-authority/00ML,Adult Social Care,BVASOC,ASC Physical Support,PHY,Third Party Payments,F,Other Establishments,FH,02/02/2018,PAY01033155,PHYS,Physical Support,254,Revenue,Payment to Individual
Brighton & Hove City Council,http://statistics.data.gov.uk/id/local-authority/00ML,Children`s & Education Serv,BVAEDU,Child Srvcs - Fostering,FLF,Third Party Payments,F,Other Establishments,FH,02/02/2018,PAY01033156,CHIC,Fostering and Adoption,414,Revenue,Payment to Individual
Brighton & Hove City Council,http://statistics.data.gov.uk/id/local-authority/00ML,Housing General Fund,BVAHOG,Homelessness,HML,Premises Related,C,Rents Payable,CC,02/02/2018,PAY01033158,TAAS,Temp Accom and Allocations,925,Revenue,Payment to Individual
Brighton & Hove City Council,http://statistics.data.gov.uk/id/local-authority/00ML,Adult Social Care,BVASOC,ASC Physical Support,PHY,Third Party Payments,F,Other Establishments,FH,02/02/2018,PAY01033159,PHYS,Physical Support,558.8,Revenue,Payment to Individual
Brighton & Hove City Council,http://statistics.data.gov.uk/id/local-authority/00ML,Adult Social Care,BVASOC,ASC Physical Support,PHY,Customer n Client Receipts,M,Fees n Charges,MB,02/02/2018,PAY01033160,PHYS,Physical Support,-124,Revenue,Payment to Individual
Brighton & Hove City Council,http://statistics.data.gov.uk/id/local-authority/00ML,Adult Social Care,BVASOC,ASC Physical Support,PHY,Third Party Payments,F,Other Establishments,FH,02/02/2018,PAY01033160,PHYS,Physical Support,745.2,Revenue,Payment to Individual
Brighton & Hove City Council,http://statistics.data.gov.uk/id/local-authority/00ML,Adult Social Care,BVASOC,ASC Physical Support,PHY,Customer n Client Receipts,M,Fees n Charges,MB,02/02/2018,PAY01033161,PHYS,Physical Support,-96,Revenue,Payment to Individual
Brighton & Hove City Council,http://statistics.data.gov.uk/id/local-authority/00ML,Adult Social Care,BVASOC,ASC Physical Support,PHY,Third Party Payments,F,Other Establishments,FH,02/02/2018,PAY01033161,PHYS,Physical Support,793.2,Revenue,Payment to Individual
Brighton & Hove City Council,http://statistics.data.gov.uk/id/local-authority/00ML,Adult Social Care,BVASOC,ASC Memory Cognition Support,MEM,Customer n Client Receipts,M,Fees n Charges,MB,02/02/2018,PAY01033162,COGN,Memory Cognition Support,-228,Revenue,Payment to Individual
Brighton & Hove City Council,http://statistics.data.gov.uk/id/local-authority/00ML,Adult Social Care,BVASOC,ASC Memory Cognition Support,MEM,Third Party Payments,F,Other Establishments,FH,02/02/2018,PAY01033162,COGN,Memory Cognition Support,1807.2,Revenue,Payment to Individual
Brighton & Hove City Council,http://statistics.data.gov.uk/id/local-authority/00ML,Adult Social Care,BVASOC,ASC Learning Disabilities,ALD,Third Party Payments,F,Other Establishments,FH,02/02/2018,PAY01033163,LDIS,Adults LD Community Care,325,Revenue,Payment to Individual
Brighton & Hove City Council,http://statistics.data.gov.uk/id/local-authority/00ML,Housing General Fund,BVAHOG,Homelessness,HML,Premises Related,C,Rents Payable,CC,02/02/2018,PAY01033164,TAAS,Temp Accom and Allocations,925,Revenue,Payment to Individual
Brighton & Hove City Council,http://statistics.data.gov.uk/id/local-authority/00ML,Adult Social Care,BVASOC,ASC Physical Support,PHY,Customer n Client Receipts,M,Fees n Charges,MB,02/02/2018,PAY01033165,PHYS,Physical Support,-252,Revenue,Payment to Individual
Brighton & Hove City Council,http://statistics.data.gov.uk/id/local-authority/00ML,Adult Social Care,BVASOC,ASC Physical Support,PHY,Third Party Payments,F,Other Establishments,FH,02/02/2018,PAY01033165,PHYS,Physical Support,1082.8,Revenue,Payment to Individual
Brighton & Hove City Council,http://statistics.data.gov.uk/id/local-authority/00ML,Adult Social Care,BVASOC,ASC Physical Support,PHY,Customer n Client Receipts,M,Fees n Charges,MB,02/02/2018,PAY01033166,PHYS,Physical Support,-272,Revenue,Payment to Individual
Brighton & Hove City Council,http://statistics.data.gov.uk/id/local-authority/00ML,Adult Social Care,BVASOC,ASC Physical Support,PHY,Third Party Payments,F,Other Establishments,FH,02/02/2018,PAY01033166,PHYS,Physical Support,790,Revenue,Payment to Individual
Brighton & Hove City Council,http://statistics.data.gov.uk/id/local-authority/00ML,Adult Social Care,BVASOC,ASC Physical Support,PHY,Third Party Payments,F,Other Establishments,FH,02/02/2018,PAY01033167,PHYS,Physical Support,3265.4,Revenue,Payment to Individual
Brighton & Hove City Council,http://statistics.data.gov.uk/id/local-authority/00ML,Children`s & Education Serv,BVAEDU,Child Srvcs - Fostering,FLF,Third Party Payments,F,Other Establishments,FH,02/02/2018,PAY01033168,CHIC,Fostering and Adoption,339.17,Revenue,Payment to Individual
Brighton & Hove City Council,http://statistics.data.gov.uk/id/local-authority/00ML,Children`s & Education Serv,BVAEDU,Child Srvcs - Fostering,FLF,Third Party Payments,F,Other Establishments,FH,02/02/2018,PAY01033169,CHIC,Fostering and Adoption,678,Revenue,Payment to Individual
Brighton & Hove City Council,http://statistics.data.gov.uk/id/local-authority/00ML,Adult Social Care,BVASOC,ASC Physical Support,PHY,Third Party Payments,F,Other Establishments,FH,02/02/2018,PAY01033170,PHYS,Physical Support,1987.8,Revenue,Payment to Individual
Brighton & Hove City Council,http://statistics.data.gov.uk/id/local-authority/00ML,Adult Social Care,BVASOC,ASC Physical Support,PHY,Third Party Payments,F,Other Establishments,FH,02/02/2018,PAY01033171,PHYS,Physical Support,598.4,Revenue,Payment to Individual
Brighton & Hove City Council,http://statistics.data.gov.uk/id/local-authority/00ML,Adult Social Care,BVASOC,ASC Learning Disabilities,ALD,Third Party Payments,F,Other Establishments,FH,02/02/2018,PAY01033172,LDIS,Adults LD Community Care,798,Revenue,Payment to Individual
Brighton & Hove City Council,http://statistics.data.gov.uk/id/local-authority/00ML,Adult Social Care,BVASOC,ASC Physical Support,PHY,Third Party Payments,F,Other Establishments,FH,02/02/2018,PAY01033173,PHYS,Physical Support,376.8,Revenue,Payment to Individual
Brighton & Hove City Council,http://statistics.data.gov.uk/id/local-authority/00ML,Adult Social Care,BVASOC,ASC Physical Support,PHY,Third Party Payments,F,Other Establishments,FH,02/02/2018,PAY01033174,PHYS,Physical Support,745.4,Revenue,Payment to Individual
Brighton & Hove City Council,http://statistics.data.gov.uk/id/local-authority/00ML,Adult Social Care,BVASOC,ASC Physical Support,PHY,Third Party Payments,F,Other Establishments,FH,02/02/2018,PAY01033175,PHYS,Physical Support,305,Revenue,Payment to Individual
Brighton & Hove City Council,http://statistics.data.gov.uk/id/local-authority/00ML,Adult Social Care,BVASOC,ASC Physical Support,PHY,Third Party Payments,F,Other Establishments,FH,02/02/2018,PAY01033176,PHYS,Physical Support,1027,Revenue,Payment to Individual
Brighton & Hove City Council,http://statistics.data.gov.uk/id/local-authority/00ML,Children`s & Education Serv,BVAEDU,Child Srvcs - Fostering,FLF,Third Party Payments,F,Other Establishments,FH,02/02/2018,PAY01033177,CHIC,Fostering and Adoption,414,Revenue,Payment to Individual
Brighton & Hove City Council,http://statistics.data.gov.uk/id/local-authority/00ML,Housing General Fund,BVAHOG,Homelessness,HML,Premises Related,C,Rents Payable,CC,02/02/2018,PAY01033178,TAAS,Temp Accom and Allocations,1075,Revenue,Payment to Individual
Brighton & Hove City Council,http://statistics.data.gov.uk/id/local-authority/00ML,Housing General Fund,BVAHOG,Homelessness,HML,Premises Related,C,Rents Payable,CC,02/02/2018,PAY01033179,TAAS,Temp Accom and Allocations,1100,Revenue,Payment to Individual
Brighton & Hove City Council,http://statistics.data.gov.uk/id/local-authority/00ML,Children`s & Education Serv,BVAEDU,Child Srvcs - Fostering,FLF,Third Party Payments,F,Other Establishments,FH,02/02/2018,PAY01033180,CHIC,Fostering and Adoption,346,Revenue,Payment to Individual
Brighton & Hove City Council,http://statistics.data.gov.uk/id/local-authority/00ML,Adult Social Care,BVASOC,Commission & Service Delivery,CMM,Supplies and Services,E,Equip't Furniture n Materials,EA,02/02/2018,PAY01033181,LDMA,Adults LD Management,576,Revenue,Pharma Supply Ltd
Brighton & Hove City Council,http://statistics.data.gov.uk/id/local-authority/00ML,Adult Social Care,BVASOC,Social Care Activities,ACM,Indirect Employees,B,Misc Employee Costs,BP,02/02/2018,PAY01033181,ASIT,Assessment and SIT,204,Revenue,Pharma Supply Ltd
Brighton & Hove City Council,http://statistics.data.gov.uk/id/local-authority/00ML,Public Health,BVAPHE,Public Health,PHE,Third Party Payments,F,Other Establishments,FH,02/02/2018,PAY01033181,PHCM,PH Commissioning,343.02,Revenue,Pharma Supply Ltd
Brighton & Hove City Council,http://statistics.data.gov.uk/id/local-authority/00ML,Adult Social Care,BVASOC,ASC Memory Cognition Support,MEM,Customer n Client Receipts,M,Fees n Charges,MB,02/02/2018,PAY01033182,COGN,Memory Cognition Support,-220,Revenue,Payment to Individual
Brighton & Hove City Council,http://statistics.data.gov.uk/id/local-authority/00ML,Adult Social Care,BVASOC,ASC Memory Cognition Support,MEM,Third Party Payments,F,Other Establishments,FH,02/02/2018,PAY01033182,COGN,Memory Cognition Support,3277.8,Revenue,Payment to Individual
Brighton & Hove City Council,http://statistics.data.gov.uk/id/local-authority/00ML,Central Support and Overheads,BVACEN,Holding Accounts,PPH,Transport Related,D,Direct Transport Costs,DA,02/02/2018,PAY01033183,CICL,City Clean,4319.6,Revenue,Allstar Business Solutions Ltd
Brighton & Hove City Council,http://statistics.data.gov.uk/id/local-authority/00ML,Adult Social Care,BVASOC,ASC Physical Support,PHY,Third Party Payments,F,Other Establishments,FH,02/02/2018,PAY01033184,PHYS,Physical Support,890.4,Revenue,Payment to Individual
Brighton & Hove City Council,http://statistics.data.gov.uk/id/local-authority/00ML,Children`s & Education Serv,BVAEDU,Child Srvcs Leaving Care,FAL,Third Party Payments,F,Other Establishments,FH,02/02/2018,PAY01033185,CARL,Care Leavers,92,Revenue,Payment to Individual
Brighton & Hove City Council,http://statistics.data.gov.uk/id/local-authority/00ML,Children`s & Education Serv,BVAEDU,Child Srvcs Leaving Care,FAL,Transfer Payments,G,Other Transfer Payments,GD,02/02/2018,PAY01033185,CARL,Care Leavers,191,Revenue,Payment to Individual
Brighton & Hove City Council,http://statistics.data.gov.uk/id/local-authority/00ML,Children`s & Education Serv,BVAEDU,Child Srvcs - Fostering,FLF,Third Party Payments,F,Other Establishments,FH,02/02/2018,PAY01033186,CHIC,Fostering and Adoption,384,Revenue,Payment to Individual
Brighton & Hove City Council,http://statistics.data.gov.uk/id/local-authority/00ML,Public Health,BVAPHE,Public Health,PHE,Third Party Payments,F,Other Establishments,FH,02/02/2018,PAY01033187,PHCM,PH Commissioning,16065.34,Revenue,Boots UK Ltd
Brighton & Hove City Council,http://statistics.data.gov.uk/id/local-authority/00ML,Children`s & Education Serv,BVAEDU,Child Srvcs Adoption,FAA,Third Party Payments,F,Other Establishments,FH,02/02/2018,PAY01033190,CHIC,Fostering and Adoption,300,Revenue,Payment to Individual
Brighton & Hove City Council,http://statistics.data.gov.uk/id/local-authority/00ML,Adult Social Care,BVASOC,ASC Physical Support,PHY,Customer n Client Receipts,M,Fees n Charges,MB,02/02/2018,PAY01033193,PHYS,Physical Support,-100,Revenue,Payment to Individual
Brighton & Hove City Council,http://statistics.data.gov.uk/id/local-authority/00ML,Adult Social Care,BVASOC,ASC Physical Support,PHY,Third Party Payments,F,Other Establishments,FH,02/02/2018,PAY01033193,PHYS,Physical Support,1211.6,Revenue,Payment to Individual
Brighton & Hove City Council,http://statistics.data.gov.uk/id/local-authority/00ML,Adult Social Care,BVASOC,ASC Physical Support,PHY,Third Party Payments,F,Other Establishments,FH,02/02/2018,PAY01033194,PHYS,Physical Support,567.6,Revenue,Payment to Individual
Brighton & Hove City Council,http://statistics.data.gov.uk/id/local-authority/00ML,Adult Social Care,BVASOC,ASC Learning Disabilities,ALD,Customer n Client Receipts,M,Fees n Charges,MB,02/02/2018,PAY01033197,LDIS,Adults LD Community Care,-85.28,Revenue,Payment to Individual
Brighton & Hove City Council,http://statistics.data.gov.uk/id/local-authority/00ML,Adult Social Care,BVASOC,ASC Learning Disabilities,ALD,Third Party Payments,F,Other Establishments,FH,02/02/2018,PAY01033197,LDIS,Adults LD Community Care,692.44,Revenue,Payment to Individual
Brighton & Hove City Council,http://statistics.data.gov.uk/id/local-authority/00ML,Adult Social Care,BVASOC,ASC Learning Disabilities,ALD,Customer n Client Receipts,M,Fees n Charges,MB,02/02/2018,PAY01033198,LDIS,Adults LD Community Care,-27.72,Revenue,Payment to Individual
Brighton & Hove City Council,http://statistics.data.gov.uk/id/local-authority/00ML,Adult Social Care,BVASOC,ASC Learning Disabilities,ALD,Third Party Payments,F,Other Establishments,FH,02/02/2018,PAY01033198,LDIS,Adults LD Community Care,897.24,Revenue,Payment to Individual
Brighton & Hove City Council,http://statistics.data.gov.uk/id/local-authority/00ML,Adult Social Care,BVASOC,ASC Physical Support,PHY,Third Party Payments,F,Other Establishments,FH,02/02/2018,PAY01033199,PHYS,Physical Support,466,Revenue,Payment to Individual
Brighton & Hove City Council,http://statistics.data.gov.uk/id/local-authority/00ML,Housing General Fund,BVAHOG,Homelessness,HML,Premises Related,C,Rents Payable,CC,02/02/2018,PAY01033200,TAAS,Temp Accom and Allocations,1825,Revenue,First Charterhouse Investments Ltd
Brighton & Hove City Council,http://statistics.data.gov.uk/id/local-authority/00ML,Adult Social Care,BVASOC,ASC Physical Support,PHY,Third Party Payments,F,Other Establishments,FH,02/02/2018,PAY01033201,PHYS,Physical Support,276,Revenue,Payment to Individual
Brighton & Hove City Council,http://statistics.data.gov.uk/id/local-authority/00ML,Adult Social Care,BVASOC,ASC Physical Support,PHY,Customer n Client Receipts,M,Fees n Charges,MB,02/02/2018,PAY01033203,PHYS,Physical Support,-172,Revenue,Payment to Individual
Brighton & Hove City Council,http://statistics.data.gov.uk/id/local-authority/00ML,Adult Social Care,BVASOC,ASC Physical Support,PHY,Third Party Payments,F,Other Establishments,FH,02/02/2018,PAY01033203,PHYS,Physical Support,1211.4,Revenue,Payment to Individual
Brighton & Hove City Council,http://statistics.data.gov.uk/id/local-authority/00ML,Adult Social Care,BVASOC,ASC Learning Disabilities,ALD,Third Party Payments,F,Other Establishments,FH,02/02/2018,PAY01033204,LDIS,Adults LD Community Care,1121.2,Revenue,Payment to Individual
Brighton & Hove City Council,http://statistics.data.gov.uk/id/local-authority/00ML,Adult Social Care,BVASOC,ASC Learning Disabilities,ALD,Third Party Payments,F,Other Establishments,FH,02/02/2018,PAY01033205,LDIS,Adults LD Community Care,6400,Revenue,Parkwood Lodge
Brighton & Hove City Council,http://statistics.data.gov.uk/id/local-authority/00ML,Children`s & Education Serv,BVAEDU,Child Srvcs - Fostering,FLF,Third Party Payments,F,Other Establishments,FH,02/02/2018,PAY01033206,CHIC,Fostering and Adoption,250.85,Revenue,Payment to Individual
